Organisation name,Organisation Code,Effective date,Directorate / service where expenditure incurred,Service Category label,Service category URI,Supplier (Beneficiary) name,Local supplier (beneficiary) internal reference,Supplier,Supplier registered charity number,VCSE grant,Payment date - G/L Date,Transaction number,Net Amount,Irrecoverable VAT,purpose_of_spend,Procurement classification / merchant category: Council�s procurement category name,Procurement classification / merchant category: CPV label,Procurement classification / merchant category: CPV code,Procurement classification / merchant category: Proclass label,Procurement classification / merchant category: Proclass code,card_transaction
The Royal Borough of Kensington and Chelsea,RBKC,,Adult Social Care & Health,Head of Service Complex Placement,,Medequip Assistive Technology Ltd ,1234994,,,,05/03/2020,2200081202,"124,012.80",,Joint Authorities,,,,,,No
The Royal Borough of Kensington and Chelsea,RBKC,,Adult Social Care & Health,Head of Service Complex Placement,,Medequip Assistive Technology Ltd ,1234994,,,,05/03/2020,2200081215,"81,708.35",,Joint Authorities,,,,,,No
The Royal Borough of Kensington and Chelsea,RBKC,,Adult Social Care & Health,Head of Service Complex,,Medequip Assistive Technology Ltd ,1234994,,,,14/01/2020,2200068524,"143,173.31",,Hired and Contracted Services,,,,,,No
The Royal Borough of Kensington and Chelsea,RBKC,,Adult Social Care & Health,Head of Service Procurement,,The Knowledge Academy Limited ,1235517,,,,03/01/2020,2200066554,645,,Training related expenditure,,,,,,No
The Royal Borough of Kensington and Chelsea,RBKC,,Adult Social Care & Health,Head of Service Complex,,Red Alert Ltd ,1231238,,,,08/01/2020,2200067676,700,,Payments to Voluntary bodies,,,,,,No
The Royal Borough of Kensington and Chelsea,RBKC,,Adult Social Care & Health,Head of Service Complex,,Tunstall Healthcare (UK) Ltd ,1235586,,,,23/01/2020,2200070479,593,,Payments to Voluntary bodies,,,,,,No
The Royal Borough of Kensington and Chelsea,RBKC,,Adult Social Care & Health,Head of Service Complex,,Tunstall Healthcare (UK) Ltd ,1235586,,,,20/02/2020,2200078093,"3,750.00",,Payments to Voluntary bodies,,,,,,No
The Royal Borough of Kensington and Chelsea,RBKC,,Environment & Communities,Support and Systems,,London Borough Of Hackney,1265736,,,,29/01/2020,2200071871,649,,Fees,,,,,,No
The Royal Borough of Kensington and Chelsea,RBKC,,Environment & Communities,Support and Systems,,"BSI Assurance UK Ltd (Membership, Subscriptions and Standards)",1232995,,,,18/03/2020,2200084054,"1,435.00",,Subscriptions,,,,,,No
The Royal Borough of Kensington and Chelsea,RBKC,,Environment & Communities,Support and Systems,,Chartered Association ,1252686,,,,05/02/2020,2200073286,"1,250.00",,Membership Fees,,,,,,No
The Royal Borough of Kensington and Chelsea,RBKC,,Environment & Communities,Support and Systems,,Chartered Association ,1252686,,,,24/02/2020,2200078685,590,,Training related expenditure,,,,,,No
The Royal Borough of Kensington and Chelsea,RBKC,,Environment & Communities,Support and Systems,,Chartered Association ,1252686,,,,24/02/2020,2200078686,550,,Training related expenditure,,,,,,No
The Royal Borough of Kensington and Chelsea,RBKC,,Environment & Communities,Support and Systems,,LABC ,1234875,,,,08/01/2020,2200067555,"5,002.00",,Training related expenditure,,,,,,No
The Royal Borough of Kensington and Chelsea,RBKC,,Environment & Communities,Support and Systems,,LABC ,1234875,,,,25/03/2020,2200085564,"2,758.08",,Subscriptions,,,,,,No
The Royal Borough of Kensington and Chelsea,RBKC,,Environment & Communities,Support and Systems,,London District Surveyors Association,1234927,,,,04/03/2020,2200080684,695,,Membership Fees,,,,,,No
The Royal Borough of Kensington and Chelsea,RBKC,,Environment & Communities,Support and Systems,,Seventy Eight Ltd,1266384,,,,19/02/2020,2200077942,"1,600.00",,Professional Fees,,,,,,No
The Royal Borough of Kensington and Chelsea,RBKC,,Environment & Communities,Support and Systems,,Seventy Eight Ltd,1266384,,,,19/02/2020,2200077943,"2,400.00",,Professional Fees,,,,,,No
The Royal Borough of Kensington and Chelsea,RBKC,,Environment & Communities,Support and Systems,,Wates Living Space (Maintenance) Ltd,1231445,,,,25/03/2020,2200085562,"1,228.95",,Building Maintenace and Improvement :E12,,,,,,No
The Royal Borough of Kensington and Chelsea,RBKC,,Environment & Communities,Parks and Open Spaces,,C J Jordan & Son Ltd ,1233031,,,,20/02/2020,2200078216,837.9,,Creditors Control : AP GRIR,,,,,,No
The Royal Borough of Kensington and Chelsea,RBKC,,Environment & Communities,Parks and Open Spaces,,C J Jordan & Son Ltd ,1233031,,,,20/02/2020,2200078219,820.28,,Creditors Control : AP GRIR,,,,,,No
The Royal Borough of Kensington and Chelsea,RBKC,,Environment & Communities,Parks and Open Spaces,,C J Jordan & Son Ltd ,1233031,,,,20/02/2020,2200078221,502.74,,Creditors Control : AP GRIR,,,,,,No
The Royal Borough of Kensington and Chelsea,RBKC,,Environment & Communities,Parks and Open Spaces,,C J Jordan & Son Ltd ,1233031,,,,27/02/2020,2200079700,670.32,,Creditors Control : AP GRIR,,,,,,No
The Royal Borough of Kensington and Chelsea,RBKC,,Environment & Communities,Parks and Open Spaces,,C J Jordan & Son Ltd ,1233031,,,,28/02/2020,2200079887,941.54,,Creditors Control : AP GRIR,,,,,,No
The Royal Borough of Kensington and Chelsea,RBKC,,Environment & Communities,Parks and Open Spaces,,C J Jordan & Son Ltd ,1233031,,,,28/02/2020,2200079889,"1,155.44",,Creditors Control : AP GRIR,,,,,,No
The Royal Borough of Kensington and Chelsea,RBKC,,Environment & Communities,Parks and Open Spaces,,C J Jordan & Son Ltd ,1233031,,,,10/03/2020,2200082329,837.9,,Creditors Control : AP GRIR,,,,,,No
The Royal Borough of Kensington and Chelsea,RBKC,,Environment & Communities,Parks and Open Spaces,,C J Jordan & Son Ltd ,1233031,,,,24/03/2020,2200085412,670.32,,Creditors Control : AP GRIR,,,,,,No
The Royal Borough of Kensington and Chelsea,RBKC,,Environment & Communities,Parks and Open Spaces,,C J Jordan & Son Ltd ,1233031,,,,24/03/2020,2200085414,502.74,,Creditors Control : AP GRIR,,,,,,No
The Royal Borough of Kensington and Chelsea,RBKC,,Environment & Communities,Parks and Open Spaces,,Idverde Ltd ,1231380,,,,25/02/2020,2200079004,"38,185.24",,Creditors Control : AP GRIR,,,,,,No
The Royal Borough of Kensington and Chelsea,RBKC,,Environment & Communities,Parks and Open Spaces,,Quadron Services Ltd T/A Idverde ,1231423,,,,09/01/2020,2200067889,"36,804.73",,Creditors Control : AP GRIR,,,,,,No
The Royal Borough of Kensington and Chelsea,RBKC,,Environment & Communities,Parks and Open Spaces,,Quadron Services Ltd T/A Idverde ,1231423,,,,05/02/2020,2200073429,"36,804.73",,Creditors Control : AP GRIR,,,,,,No
The Royal Borough of Kensington and Chelsea,RBKC,,Environment & Communities,Parks and Open Spaces,,Quadron Services Ltd T/A Idverde ,1231423,,,,04/03/2020,2200080671,"5,724.54",,Payments to Private Contractors,,,,,,No
The Royal Borough of Kensington and Chelsea,RBKC,,Environment & Communities,Parks and Open Spaces,,Quadron Services Ltd T/A Idverde ,1231423,,,,04/03/2020,2200080947,"5,724.54",,Payments to Private Contractors,,,,,,No
The Royal Borough of Kensington and Chelsea,RBKC,,Environment & Communities,Parks and Open Spaces,,Quadron Services Ltd T/A Idverde ,1231423,,,,13/03/2020,2200083108,"3,275.28",,Payments to Private Contractors,,,,,,No
The Royal Borough of Kensington and Chelsea,RBKC,,Environment & Communities,Parks and Open Spaces,,Quadron Services Ltd T/A Idverde ,1231423,,,,13/03/2020,2200083109,"2,449.26",,Payments to Private Contractors,,,,,,No
The Royal Borough of Kensington and Chelsea,RBKC,,Environment & Communities,Parks and Open Spaces,,Quadron Services Ltd T/A Idverde ,1231423,,,,26/03/2020,2200085901,"5,724.54",,Payments to Private Contractors,,,,,,No
The Royal Borough of Kensington and Chelsea,RBKC,,Resources & Assets,Facilities Management,,Santia Asbestos Management Ltd ,1255345,,,,04/02/2020,2200073056,"16,107.61",,Creditors Control : AP GRIR,,,,,,No
The Royal Borough of Kensington and Chelsea,RBKC,,Environment & Communities,Community Safety,,City Of Westminster ,1231771,,,,27/01/2020,2200070949,"61,661.00",,Hired and Contracted Services,,,,,,No
The Royal Borough of Kensington and Chelsea,RBKC,,Environment & Communities,Community Safety,,City Of Westminster ,1231771,,,,07/02/2020,2200073862,"61,661.00",,Hired and Contracted Services,,,,,,No
The Royal Borough of Kensington and Chelsea,RBKC,,Capital Projects,Capital,,3Bm Ltd ,1232075,,,,16/01/2020,2200069036,"73,846.39",,Payments to main contractor,,,,,,No
The Royal Borough of Kensington and Chelsea,RBKC,,Capital Projects,Capital,,3Bm Ltd ,1232075,,,,29/01/2020,2200071845,"2,400.00",,Payments to main contractor,,,,,,No
The Royal Borough of Kensington and Chelsea,RBKC,,Capital Projects,Capital,,3Bm Ltd ,1232075,,,,30/01/2020,2200072109,"44,832.90",,Payments to main contractor,,,,,,No
The Royal Borough of Kensington and Chelsea,RBKC,,Capital Projects,Capital,,3Bm Ltd ,1232075,,,,30/01/2020,2200072110,"103,538.05",,Payments to main contractor,,,,,,No
The Royal Borough of Kensington and Chelsea,RBKC,,Capital Projects,Capital,,3Bm Ltd ,1232075,,,,30/01/2020,2200072112,"1,935.00",,Payments to main contractor,,,,,,No
The Royal Borough of Kensington and Chelsea,RBKC,,Capital Projects,Capital,,3Bm Ltd ,1232075,,,,30/01/2020,2200072113,"3,700.00",,Payments to main contractor,,,,,,No
The Royal Borough of Kensington and Chelsea,RBKC,,Capital Projects,Capital,,3Bm Ltd ,1232075,,,,30/01/2020,2200072115,"2,472.50",,Payments to main contractor,,,,,,No
The Royal Borough of Kensington and Chelsea,RBKC,,Capital Projects,Capital,,3Bm Ltd ,1232075,,,,30/01/2020,2200072116,"2,093.67",,Payments to main contractor,,,,,,No
The Royal Borough of Kensington and Chelsea,RBKC,,Capital Projects,Capital,,3Bm Ltd ,1232075,,,,30/01/2020,2200072117,"5,700.00",,Payments to main contractor,,,,,,No
The Royal Borough of Kensington and Chelsea,RBKC,,Capital Projects,Capital,,3Bm Ltd ,1232075,,,,04/02/2020,2200072975,"1,329.13",,Payments to main contractor,,,,,,No
The Royal Borough of Kensington and Chelsea,RBKC,,Capital Projects,Capital,,3Bm Ltd ,1232075,,,,04/02/2020,2200072977,886.88,,Payments to main contractor,,,,,,No
The Royal Borough of Kensington and Chelsea,RBKC,,Capital Projects,Capital,,3Bm Ltd ,1232075,,,,14/02/2020,2200076473,"5,642.00",,Payments to main contractor,,,,,,No
The Royal Borough of Kensington and Chelsea,RBKC,,Capital Projects,Capital,,3Bm Ltd ,1232075,,,,14/02/2020,2200076475,"4,400.00",,Payments to main contractor,,,,,,No
The Royal Borough of Kensington and Chelsea,RBKC,,Capital Projects,Capital,,3Bm Ltd ,1232075,,,,14/02/2020,2200076476,905.5,,Payments to main contractor,,,,,,No
The Royal Borough of Kensington and Chelsea,RBKC,,Capital Projects,Capital,,3Bm Ltd ,1232075,,,,14/02/2020,2200076478,"1,850.00",,Payments to main contractor,,,,,,No
The Royal Borough of Kensington and Chelsea,RBKC,,Capital Projects,Capital,,3Bm Ltd ,1232075,,,,14/02/2020,2200076480,"5,642.00",,Payments to main contractor,,,,,,No
The Royal Borough of Kensington and Chelsea,RBKC,,Capital Projects,Capital,,3Bm Ltd ,1232075,,,,14/02/2020,2200076482,"1,850.00",,Payments to main contractor,,,,,,No
The Royal Borough of Kensington and Chelsea,RBKC,,Capital Projects,Capital,,3Bm Ltd ,1232075,,,,14/02/2020,2200076484,"2,472.50",,Payments to main contractor,,,,,,No
The Royal Borough of Kensington and Chelsea,RBKC,,Capital Projects,Capital,,3Bm Ltd ,1232075,,,,14/02/2020,2200076485,"45,377.19",,Payments to main contractor,,,,,,No
The Royal Borough of Kensington and Chelsea,RBKC,,Capital Projects,Capital,,3Bm Ltd ,1232075,,,,14/02/2020,2200076486,"30,158.24",,Payments to main contractor,,,,,,No
The Royal Borough of Kensington and Chelsea,RBKC,,Capital Projects,Capital,,3Bm Ltd ,1232075,,,,16/02/2020,2200076646,"38,501.97",,Payments to main contractor,,,,,,No
The Royal Borough of Kensington and Chelsea,RBKC,,Capital Projects,Capital,,3Bm Ltd ,1232075,,,,21/02/2020,2200078392,"1,850.00",,Payments to main contractor,,,,,,No
The Royal Borough of Kensington and Chelsea,RBKC,,Capital Projects,Capital,,3Bm Ltd ,1232075,,,,21/02/2020,2200078406,"1,264.20",,Payments to main contractor,,,,,,No
The Royal Borough of Kensington and Chelsea,RBKC,,Capital Projects,Capital,,3Bm Ltd ,1232075,,,,24/02/2020,2200078633,"13,523.32",,Payments to main contractor,,,,,,No
The Royal Borough of Kensington and Chelsea,RBKC,,Capital Projects,Capital,,3Bm Ltd ,1232075,,,,24/02/2020,2200078640,"116,261.53",,Payments to main contractor,,,,,,No
The Royal Borough of Kensington and Chelsea,RBKC,,Capital Projects,Capital,,3Bm Ltd ,1232075,,,,03/03/2020,2200080505,"4,400.00",,Payments to main contractor,,,,,,No
The Royal Borough of Kensington and Chelsea,RBKC,,Capital Projects,Capital,,3Bm Ltd ,1232075,,,,03/03/2020,2200080506,"5,700.00",,Payments to main contractor,,,,,,No
The Royal Borough of Kensington and Chelsea,RBKC,,Capital Projects,Capital,,3Bm Ltd ,1232075,,,,03/03/2020,2200080507,"110,113.39",,Payments to main contractor,,,,,,No
The Royal Borough of Kensington and Chelsea,RBKC,,Capital Projects,Capital,,3Bm Ltd ,1232075,,,,03/03/2020,2200080508,789.17,,Payments to main contractor,,,,,,No
The Royal Borough of Kensington and Chelsea,RBKC,,Capital Projects,Capital,,3Bm Ltd ,1232075,,,,09/03/2020,2200082092,"120,967.81",,Payments to main contractor,,,,,,No
The Royal Borough of Kensington and Chelsea,RBKC,,Capital Projects,Capital,,3Bm Ltd ,1232075,,,,09/03/2020,2200082108,"5,700.00",,Payments to main contractor,,,,,,No
The Royal Borough of Kensington and Chelsea,RBKC,,Capital Projects,Capital,,3Bm Ltd ,1232075,,,,11/03/2020,2200082630,"1,850.00",,Payments to main contractor,,,,,,No
The Royal Borough of Kensington and Chelsea,RBKC,,Capital Projects,Capital,,3Bm Ltd ,1232075,,,,16/03/2020,2200083377,"4,975.00",,Payments to main contractor,,,,,,No
The Royal Borough of Kensington and Chelsea,RBKC,,Capital Projects,Capital,,3Bm Ltd ,1232075,,,,16/03/2020,2200083381,"3,888.75",,Payments to main contractor,,,,,,No
The Royal Borough of Kensington and Chelsea,RBKC,,Capital Projects,Capital,,3Bm Ltd ,1232075,,,,25/03/2020,2200085626,"1,505.00",,Payments to main contractor,,,,,,No
The Royal Borough of Kensington and Chelsea,RBKC,,Capital Projects,Capital,,3Bm Ltd ,1232075,,,,25/03/2020,2200085627,582.65,,Payments to main contractor,,,,,,No
The Royal Borough of Kensington and Chelsea,RBKC,,Capital Projects,Capital,,3Bm Ltd ,1232075,,,,25/03/2020,2200085628,"1,152.94",,Payments to main contractor,,,,,,No
The Royal Borough of Kensington and Chelsea,RBKC,,Capital Projects,Capital,,3Bm Ltd ,1232075,,,,26/03/2020,2200085906,"1,069.63",,Payments to main contractor,,,,,,No
The Royal Borough of Kensington and Chelsea,RBKC,,Capital Projects,Capital,,3D Aluminium Plas Ltd,1263779,,,,21/01/2020,2200069805,"7,500.00",,Payments to main contractor,,,,,,No
The Royal Borough of Kensington and Chelsea,RBKC,,Capital Projects,Capital,,A N Contract Service Ltd ,1232095,,,,14/01/2020,2200068651,"1,356.00",,Payments to main contractor,,,,,,No
The Royal Borough of Kensington and Chelsea,RBKC,,Capital Projects,Capital,,ABCA Systems LTD ,1252858,,,,31/01/2020,3110153972,"2,351.10",,Payments to main contractor,,,,,,No
The Royal Borough of Kensington and Chelsea,RBKC,,Capital Projects,Capital,,ABCA Systems LTD ,1252858,,,,31/01/2020,3110153973,"8,870.00",,Payments to main contractor,,,,,,No
The Royal Borough of Kensington and Chelsea,RBKC,,Capital Projects,Capital,,Abc Building & Maintenance Contractors,1231156,,,,17/01/2020,2200069248,"5,632.00",,Payments to main contractor,,,,,,No
The Royal Borough of Kensington and Chelsea,RBKC,,Capital Projects,Capital,,Abc Building & Maintenance Contractors,1231156,,,,17/01/2020,2200069249,"7,302.00",,Payments to main contractor,,,,,,No
The Royal Borough of Kensington and Chelsea,RBKC,,Capital Projects,Capital,,Abc Building & Maintenance Contractors,1231156,,,,17/01/2020,2200069288,"11,691.00",,Payments to main contractor,,,,,,No
The Royal Borough of Kensington and Chelsea,RBKC,,Capital Projects,Capital,,Abc Building & Maintenance Contractors,1231156,,,,30/01/2020,2200072095,"8,364.00",,Payments to main contractor,,,,,,No
The Royal Borough of Kensington and Chelsea,RBKC,,Capital Projects,Capital,,Abc Building & Maintenance Contractors,1231156,,,,10/02/2020,2200074392,"7,044.00",,Payments to main contractor,,,,,,No
The Royal Borough of Kensington and Chelsea,RBKC,,Capital Projects,Capital,,Abc Building & Maintenance Contractors,1231156,,,,10/03/2020,2200082429,"8,807.00",,Payments to main contractor,,,,,,No
The Royal Borough of Kensington and Chelsea,RBKC,,Capital Projects,Capital,,Abc Building & Maintenance Contractors,1231156,,,,31/03/2020,2200086958,"7,189.00",,Payments to main contractor,,,,,,No
The Royal Borough of Kensington and Chelsea,RBKC,,Capital Projects,Capital,,Abc Building & Maintenance Contractors,1231156,,,,31/03/2020,2200086959,"7,619.00",,Payments to main contractor,,,,,,No
The Royal Borough of Kensington and Chelsea,RBKC,,Capital Projects,Capital,,Absolute Audio Visual Sol,1265383,,,,21/01/2020,2200069711,"9,298.02",,Professional Fees : Non Legal,,,,,,No
The Royal Borough of Kensington and Chelsea,RBKC,,Capital Projects,Capital,,Academy Consulting Solutions Ltd ,1232117,,,,05/02/2020,2200073261,"1,680.00",,Other Consultants,,,,,,No
The Royal Borough of Kensington and Chelsea,RBKC,,Capital Projects,Capital,,Academy Consulting Solutions Ltd ,1232117,,,,05/02/2020,2200073262,"1,880.00",,Other Consultants,,,,,,No
The Royal Borough of Kensington and Chelsea,RBKC,,Capital Projects,Capital,,Adair Limited ,1254959,,,,11/02/2020,3110158110,"8,973.00",,Professional Fees : Non Legal,,,,,,No
The Royal Borough of Kensington and Chelsea,RBKC,,Capital Projects,Capital,,Adair Limited ,1254959,,,,11/02/2020,3110158111,"37,122.00",,Professional Fees : Non Legal,,,,,,No
The Royal Borough of Kensington and Chelsea,RBKC,,Capital Projects,Capital,,Adair Limited ,1254959,,,,19/02/2020,3110161595,"10,545.00",,Professional Fees : Non Legal,,,,,,No
The Royal Borough of Kensington and Chelsea,RBKC,,Capital Projects,Capital,,Adam Architecture Ltd ,1232322,,,,13/02/2020,2200076119,"63,100.00",,Creditors Control : AP GRIR,,,,,,No
The Royal Borough of Kensington and Chelsea,RBKC,,Capital Projects,Capital,,Adam Architecture Ltd ,1232322,,,,16/03/2020,2200083506,"210,000.00",,Creditors Control : AP GRIR,,,,,,No
The Royal Borough of Kensington and Chelsea,RBKC,,Capital Projects,Capital,,Adam Thomas Consultancy ,1253275,,,,13/01/2020,2200068434,637.5,,Other Consultants,,,,,,No
The Royal Borough of Kensington and Chelsea,RBKC,,Capital Projects,Capital,,Air Surveys Limited,1265415,,,,13/01/2020,2200068360,727.5,,Other Consultants,,,,,,No
The Royal Borough of Kensington and Chelsea,RBKC,,Capital Projects,Capital,,Alexander Scaffold Ltd ,1231166,,,,16/01/2020,3110149323,900,,Payments to main contractor,,,,,,No
The Royal Borough of Kensington and Chelsea,RBKC,,Capital Projects,Capital,,Alexander Scaffold Ltd ,1231166,,,,16/01/2020,3110149324,900,,Payments to main contractor,,,,,,No
The Royal Borough of Kensington and Chelsea,RBKC,,Capital Projects,Capital,,Alexander Scaffold Ltd ,1231166,,,,16/01/2020,3110149325,900,,Payments to main contractor,,,,,,No
The Royal Borough of Kensington and Chelsea,RBKC,,Capital Projects,Capital,,Alexander Scaffold Ltd ,1231166,,,,16/01/2020,3110149326,900,,Payments to main contractor,,,,,,No
The Royal Borough of Kensington and Chelsea,RBKC,,Capital Projects,Capital,,Alexander Scaffold Ltd ,1231166,,,,22/01/2020,2200070180,"1,160.00",,Payments to main contractor,,,,,,No
The Royal Borough of Kensington and Chelsea,RBKC,,Capital Projects,Capital,,Alexander Scaffold Ltd ,1231166,,,,13/02/2020,2200076144,620,,Payments to main contractor,,,,,,No
The Royal Borough of Kensington and Chelsea,RBKC,,Capital Projects,Capital,,Allchimneys London UK Ltd,1259398,,,,04/02/2020,3110154425,"3,887.00",,Payments to main contractor,,,,,,No
The Royal Borough of Kensington and Chelsea,RBKC,,Capital Projects,Capital,,Allies & Morrison LLP ,1232371,,,,20/01/2020,2200069557,"61,125.00",,Creditors Control : AP GRIR,,,,,,No
The Royal Borough of Kensington and Chelsea,RBKC,,Capital Projects,Capital,,Anstey Horne & Co Ltd ,1232407,,,,10/02/2020,2200074366,940,,Other Consultants,,,,,,No
The Royal Borough of Kensington and Chelsea,RBKC,,Capital Projects,Capital,,Anstey Horne & Co Ltd ,1232407,,,,10/02/2020,2200074367,"1,710.00",,Other Consultants,,,,,,No
The Royal Borough of Kensington and Chelsea,RBKC,,Capital Projects,Capital,,Anstey Horne & Co Ltd ,1232407,,,,10/02/2020,2200074381,"1,840.80",,Other Consultants,,,,,,No
The Royal Borough of Kensington and Chelsea,RBKC,,Capital Projects,Capital,,Anstey Horne & Co Ltd ,1232407,,,,10/02/2020,2200074382,865,,Other Consultants,,,,,,No
The Royal Borough of Kensington and Chelsea,RBKC,,Capital Projects,Capital,,Anstey Horne & Co Ltd ,1232407,,,,12/03/2020,2200082925,"1,300.00",,Other Consultants,,,,,,No
The Royal Borough of Kensington and Chelsea,RBKC,,Capital Projects,Capital,,Aquaneed Ltd,1260944,,,,07/01/2020,2200067351,"7,561.80",,Payments to main contractor,,,,,,No
The Royal Borough of Kensington and Chelsea,RBKC,,Capital Projects,Capital,,Aquaneed Ltd,1260944,,,,09/01/2020,2200067899,"12,913.01",,Payments to main contractor,,,,,,No
The Royal Borough of Kensington and Chelsea,RBKC,,Capital Projects,Capital,,Aquaneed Ltd,1260944,,,,17/01/2020,2200069245,"9,516.70",,Payments to main contractor,,,,,,No
The Royal Borough of Kensington and Chelsea,RBKC,,Capital Projects,Capital,,Aquaneed Ltd,1260944,,,,10/03/2020,2200082483,"9,614.96",,Payments to main contractor,,,,,,No
The Royal Borough of Kensington and Chelsea,RBKC,,Capital Projects,Capital,,Aquaneed Ltd,1260944,,,,10/03/2020,2200082485,"8,262.16",,Payments to main contractor,,,,,,No
The Royal Borough of Kensington and Chelsea,RBKC,,Capital Projects,Capital,,Aquaneed Ltd,1260944,,,,27/03/2020,2200086389,"8,041.34",,Payments to main contractor,,,,,,No
The Royal Borough of Kensington and Chelsea,RBKC,,Capital Projects,Capital,,Aquaneed Ltd,1260944,,,,27/03/2020,2200086390,"4,627.53",,Payments to main contractor,,,,,,No
The Royal Borough of Kensington and Chelsea,RBKC,,Capital Projects,Capital,,Aquaneed Ltd,1260944,,,,31/03/2020,2200086957,"6,752.78",,Payments to main contractor,,,,,,No
The Royal Borough of Kensington and Chelsea,RBKC,,Capital Projects,Capital,,Arcadis Llp ,1232430,,,,25/03/2020,2200085526,"5,000.00",,Other Consultants,,,,,,No
The Royal Borough of Kensington and Chelsea,RBKC,,Capital Projects,Capital,,Arcadis Llp ,1232430,,,,25/03/2020,2200085527,"5,000.00",,Other Consultants,,,,,,No
The Royal Borough of Kensington and Chelsea,RBKC,,Capital Projects,Capital,,Arcadis Llp ,1232430,,,,25/03/2020,2200085528,"5,000.00",,Other Consultants,,,,,,No
The Royal Borough of Kensington and Chelsea,RBKC,,Capital Projects,Capital,,Architecture PLB ,1232434,,,,15/01/2020,2200068895,"3,112.50",,Construction : enhancements,,,,,,No
The Royal Borough of Kensington and Chelsea,RBKC,,Capital Projects,Capital,,Arcus Consulting Llp,1265536,,,,11/02/2020,2200074635,"1,995.00",,Creditors Control : AP GRIR,,,,,,No
The Royal Borough of Kensington and Chelsea,RBKC,,Capital Projects,Capital,,Arcus Consulting Llp,1265536,,,,11/02/2020,2200074635,"1,500.00",,Creditors Control : AP GRIR,,,,,,No
The Royal Borough of Kensington and Chelsea,RBKC,,Capital Projects,Capital,,Arcus Consulting Llp,1265536,,,,10/03/2020,2200082379,"14,182.00",,Creditors Control : AP GRIR,,,,,,No
The Royal Borough of Kensington and Chelsea,RBKC,,Capital Projects,Capital,,Ark Build Plc ,1231173,,,,09/01/2020,2200067906,"60,690.77",,Construction : enhancements,,,,,,No
The Royal Borough of Kensington and Chelsea,RBKC,,Capital Projects,Capital,,Ark Build Plc ,1231173,,,,23/01/2020,2200070377,"73,774.40",,Site Works,,,,,,No
The Royal Borough of Kensington and Chelsea,RBKC,,Capital Projects,Capital,,Ark Build Plc ,1231173,,,,06/02/2020,2200073620,"31,401.87",,Payments to main contractor,,,,,,No
The Royal Borough of Kensington and Chelsea,RBKC,,Capital Projects,Capital,,Ark Build Plc ,1231173,,,,10/02/2020,2200074356,"54,059.61",,Payments to main contractor,,,,,,No
The Royal Borough of Kensington and Chelsea,RBKC,,Capital Projects,Capital,,Ark Build Plc ,1231173,,,,09/03/2020,2200081986,"41,200.91",,Professional Fees : Non Legal,,,,,,No
The Royal Borough of Kensington and Chelsea,RBKC,,Capital Projects,Capital,,Ark Build Plc ,1231173,,,,10/03/2020,2200082300,"111,433.96",,Payments to main contractor,,,,,,No
The Royal Borough of Kensington and Chelsea,RBKC,,Capital Projects,Capital,,Artelia Projects UK Ltd T/A Artelia UK,1232443,,,,03/01/2020,2200066557,"2,960.00",,Other Consultants,,,,,,No
The Royal Borough of Kensington and Chelsea,RBKC,,Capital Projects,Capital,,Artelia Projects UK Ltd T/A Artelia UK,1232443,,,,31/01/2020,2200072428,"2,960.00",,Other Consultants,,,,,,No
The Royal Borough of Kensington and Chelsea,RBKC,,Capital Projects,Capital,,Artelia Projects UK Ltd T/A Artelia UK,1232443,,,,06/02/2020,2200073635,"1,875.00",,Construction : enhancements,,,,,,No
The Royal Borough of Kensington and Chelsea,RBKC,,Capital Projects,Capital,,Artelia Projects UK Ltd T/A Artelia UK,1232443,,,,04/03/2020,2200080681,"1,875.00",,Construction : enhancements,,,,,,No
The Royal Borough of Kensington and Chelsea,RBKC,,Capital Projects,Capital,,Artelia Projects UK Ltd T/A Artelia UK,1232443,,,,10/03/2020,2200082303,"2,960.00",,Other Consultants,,,,,,No
The Royal Borough of Kensington and Chelsea,RBKC,,Capital Projects,Capital,,Artelia Projects UK Ltd T/A Artelia UK,1232443,,,,12/03/2020,2200082965,"2,960.00",,Other Consultants,,,,,,No
The Royal Borough of Kensington and Chelsea,RBKC,,Capital Projects,Capital,,Ashburnham Community School ,1236058,,,,14/02/2020,2200076472,"50,757.00",,Payments to main contractor,,,,,,No
The Royal Borough of Kensington and Chelsea,RBKC,,Capital Projects,Capital,,Ashburnham Community School ,1236058,,,,09/03/2020,2200082102,"1,182.00",,Payments to main contractor,,,,,,No
The Royal Borough of Kensington and Chelsea,RBKC,,Capital Projects,Capital,,Ashburnham Community School ,1236058,,,,09/03/2020,2200082103,"1,556.00",,Payments to main contractor,,,,,,No
The Royal Borough of Kensington and Chelsea,RBKC,,Capital Projects,Capital,,Ashburnham Community School ,1236058,,,,09/03/2020,2200082104,"4,180.00",,Payments to main contractor,,,,,,No
The Royal Borough of Kensington and Chelsea,RBKC,,Capital Projects,Capital,,Ashburnham Community School ,1236058,,,,09/03/2020,2200082105,925,,Payments to main contractor,,,,,,No
The Royal Borough of Kensington and Chelsea,RBKC,,Capital Projects,Capital,,Ashburnham Community School ,1236058,,,,09/03/2020,2200082106,"1,270.00",,Payments to main contractor,,,,,,No
The Royal Borough of Kensington and Chelsea,RBKC,,Capital Projects,Capital,,Ashburnham Community School ,1236058,,,,12/03/2020,2200082948,750,,Payments to main contractor,,,,,,No
The Royal Borough of Kensington and Chelsea,RBKC,,Capital Projects,Capital,,Ashfords Llp ,1232627,,,,10/01/2020,2200067984,"2,320.00",,Other Consultants,,,,,,No
The Royal Borough of Kensington and Chelsea,RBKC,,Capital Projects,Capital,,Ashfords Llp ,1232627,,,,15/01/2020,2200068803,580,,Other Consultants,,,,,,No
The Royal Borough of Kensington and Chelsea,RBKC,,Capital Projects,Capital,,Ashfords Llp ,1232627,,,,24/01/2020,2200070643,"2,913.00",,Construction : enhancements,,,,,,No
The Royal Borough of Kensington and Chelsea,RBKC,,Capital Projects,Capital,,Ashfords Llp ,1232627,,,,04/03/2020,2200080620,"1,979.50",,Legal Fees & expenses,,,,,,No
The Royal Borough of Kensington and Chelsea,RBKC,,Capital Projects,Capital,,Ashfords Llp ,1232627,,,,04/03/2020,2200080621,"42,884.00",,Legal Fees & expenses,,,,,,No
The Royal Borough of Kensington and Chelsea,RBKC,,Capital Projects,Capital,,BB7 FIRE LIMITED,1258576,,,,18/03/2020,2200084164,"5,500.00",,Professional Fees : Non Legal,,,,,,No
The Royal Borough of Kensington and Chelsea,RBKC,,Capital Projects,Capital,,BB7 FIRE LIMITED,1258576,,,,20/03/2020,2200084717,750,,Professional Fees : Non Legal,,,,,,No
The Royal Borough of Kensington and Chelsea,RBKC,,Capital Projects,Capital,,BT Global Services ,1233001,,,,24/02/2020,2200078649,"4,062.00",,Creditors Control : AP GRIR,,,,,,No
The Royal Borough of Kensington and Chelsea,RBKC,,Capital Projects,Capital,,BT Global Services ,1233001,,,,24/02/2020,2200078649,"16,740.00",,Creditors Control : AP GRIR,,,,,,No
The Royal Borough of Kensington and Chelsea,RBKC,,Capital Projects,Capital,,Baily Garner LLP ,1232685,,,,10/03/2020,2200082386,"7,574.14",,Other Consultants,,,,,,No
The Royal Borough of Kensington and Chelsea,RBKC,,Capital Projects,Capital,,Bell Decorating & Building Ltd ,1232723,,,,14/02/2020,2200076292,"3,498.00",,Construction : enhancements,,,,,,No
The Royal Borough of Kensington and Chelsea,RBKC,,Capital Projects,Capital,,London Letterbox Marketing ,1234938,,,,09/01/2020,2200067851,"1,165.12",,Creditors Control : AP GRIR,,,,,,No
The Royal Borough of Kensington and Chelsea,RBKC,,Capital Projects,Capital,,London Letterbox Marketing ,1234938,,,,21/01/2020,2200069822,"1,912.34",,Creditors Control : AP GRIR,,,,,,No
The Royal Borough of Kensington and Chelsea,RBKC,,Capital Projects,Capital,,London Letterbox Marketing ,1234938,,,,14/02/2020,2200076338,999.03,,Construction : enhancements,,,,,,No
The Royal Borough of Kensington and Chelsea,RBKC,,Capital Projects,Capital,,Bevington Primary School ,1236065,,,,23/01/2020,2200070537,600,,Creditors Control : AP GRIR,,,,,,No
The Royal Borough of Kensington and Chelsea,RBKC,,Capital Projects,Capital,,Bevington Primary School ,1236065,,,,04/02/2020,2200072981,"50,000.00",,Payments to main contractor,,,,,,No
The Royal Borough of Kensington and Chelsea,RBKC,,Capital Projects,Capital,,Bird Brain UK ltd,1232749,,,,11/03/2020,2200082676,650,,Payments to main contractor,,,,,,No
The Royal Borough of Kensington and Chelsea,RBKC,,Capital Projects,Capital,,Bishop Creighton House Care & Repair Clients Account,1232751,,,,09/01/2020,2200067902,"6,669.55",,Payments to main contractor,,,,,,No
The Royal Borough of Kensington and Chelsea,RBKC,,Capital Projects,Capital,,Bishop Creighton House Care & Repair Clients Account,1232751,,,,09/03/2020,2200081930,"5,960.00",,Payments to main contractor,,,,,,No
The Royal Borough of Kensington and Chelsea,RBKC,,Capital Projects,Capital,,Bishop Creighton House Care & Repair Clients Account,1232751,,,,13/03/2020,2200083244,"8,432.50",,Payments to main contractor,,,,,,No
The Royal Borough of Kensington and Chelsea,RBKC,,Capital Projects,Capital,,Bishop Creighton House Care & Repair Clients Account,1232751,,,,25/03/2020,2200085632,"15,893.00",,Payments to main contractor,,,,,,No
The Royal Borough of Kensington and Chelsea,RBKC,,Capital Projects,Capital,,Bishop Creighton House Care & Repair Clients Account,1232751,,,,26/03/2020,2200085846,"16,307.60",,Creditors Control : AP GRIR,,,,,,No
The Royal Borough of Kensington and Chelsea,RBKC,,Capital Projects,Capital,,Black Box Network Services ,1231180,,,,29/01/2020,2200071914,531,,Creditors Control : AP GRIR,,,,,,No
The Royal Borough of Kensington and Chelsea,RBKC,,Capital Projects,Capital,,Black Box Network Services ,1231180,,,,05/02/2020,2200073236,"1,112.00",,Creditors Control : AP GRIR,,,,,,No
The Royal Borough of Kensington and Chelsea,RBKC,,Capital Projects,Capital,,Black Box Network Services ,1231180,,,,11/02/2020,2200074687,"1,050.00",,Other capital equipment,,,,,,No
The Royal Borough of Kensington and Chelsea,RBKC,,Capital Projects,Capital,,Black Box Network Services ,1231180,,,,11/03/2020,2200082576,"1,354.00",,Creditors Control : AP GRIR,,,,,,No
The Royal Borough of Kensington and Chelsea,RBKC,,Capital Projects,Capital,,Blackwall Hire Ltd ,1232756,,,,07/01/2020,2200067313,"1,159.00",,Creditors Control : AP GRIR,,,,,,No
The Royal Borough of Kensington and Chelsea,RBKC,,Capital Projects,Capital,,Blackwall Hire Ltd ,1232756,,,,07/01/2020,2200067314,"1,194.00",,Creditors Control : AP GRIR,,,,,,No
The Royal Borough of Kensington and Chelsea,RBKC,,Capital Projects,Capital,,Blackwall Hire Ltd ,1232756,,,,07/01/2020,2200067315,746.5,,Creditors Control : AP GRIR,,,,,,No
The Royal Borough of Kensington and Chelsea,RBKC,,Capital Projects,Capital,,Blackwall Hire Ltd ,1232756,,,,07/01/2020,2200067316,"1,049.00",,Creditors Control : AP GRIR,,,,,,No
The Royal Borough of Kensington and Chelsea,RBKC,,Capital Projects,Capital,,Blackwall Hire Ltd ,1232756,,,,07/01/2020,2200067385,"1,727.00",,Creditors Control : AP GRIR,,,,,,No
The Royal Borough of Kensington and Chelsea,RBKC,,Capital Projects,Capital,,Bouygues (Uk) Limited,1231182,,,,15/01/2020,2200068901,"92,638.50",,Other Consultants,,,,,,No
The Royal Borough of Kensington and Chelsea,RBKC,,Capital Projects,Capital,,Redact Details,1232986,,,,28/01/2020,2200071205,"16,500.00",,Professional Fees : Non Legal,,,,,,No
The Royal Borough of Kensington and Chelsea,RBKC,,Capital Projects,Capital,,Building Design Partnership Ltd ,1233009,,,,26/03/2020,2200086049,"21,000.00",,Other Consultants,,,,,,No
The Royal Borough of Kensington and Chelsea,RBKC,,Capital Projects,Capital,,CBRE Capital Advisors,1233314,,,,08/01/2020,2200067533,"4,000.00",,Site Works,,,,,,No
The Royal Borough of Kensington and Chelsea,RBKC,,Capital Projects,Capital,,CBRE Capital Advisors,1233314,,,,08/01/2020,2200067534,"3,000.00",,Site Works,,,,,,No
The Royal Borough of Kensington and Chelsea,RBKC,,Capital Projects,Capital,,CBRE Capital Advisors,1233314,,,,08/01/2020,2200067535,"3,000.00",,Site Works,,,,,,No
The Royal Borough of Kensington and Chelsea,RBKC,,Capital Projects,Capital,,CBRE Capital Advisors,1233314,,,,08/01/2020,2200067536,"2,950.00",,Site Works,,,,,,No
The Royal Borough of Kensington and Chelsea,RBKC,,Capital Projects,Capital,,CBRE Capital Advisors,1233314,,,,08/01/2020,2200067537,"3,000.00",,Site Works,,,,,,No
The Royal Borough of Kensington and Chelsea,RBKC,,Capital Projects,Capital,,CBRE Capital Advisors,1233314,,,,08/01/2020,2200067538,"1,950.00",,Site Works,,,,,,No
The Royal Borough of Kensington and Chelsea,RBKC,,Capital Projects,Capital,,CBRE Capital Advisors,1233314,,,,06/02/2020,2200073764,"5,000.00",,Site Works,,,,,,No
The Royal Borough of Kensington and Chelsea,RBKC,,Capital Projects,Capital,,CBRE Capital Advisors,1233314,,,,10/03/2020,2200082437,"5,000.00",,Creditors Control : AP GRIR,,,,,,No
The Royal Borough of Kensington and Chelsea,RBKC,,Capital Projects,Capital,,CBRE Capital Advisors,1233314,,,,10/03/2020,2200082437,"5,000.00",,Creditors Control : AP GRIR,,,,,,No
The Royal Borough of Kensington and Chelsea,RBKC,,Capital Projects,Capital,,CBRE Capital Advisors,1233314,,,,10/03/2020,2200082437,"5,000.00",,Creditors Control : AP GRIR,,,,,,No
The Royal Borough of Kensington and Chelsea,RBKC,,Capital Projects,Capital,,CBRE Capital Advisors,1233314,,,,10/03/2020,2200082437,"5,000.00",,Creditors Control : AP GRIR,,,,,,No
The Royal Borough of Kensington and Chelsea,RBKC,,Capital Projects,Capital,,CBS Maintenance Ltd ,1256122,,,,31/01/2020,3110153977,"2,400.00",,Payments to main contractor,,,,,,No
The Royal Borough of Kensington and Chelsea,RBKC,,Capital Projects,Capital,,CU Phosco Lighting Ltd ,1233732,,,,10/02/2020,2200074320,"8,244.00",,Construction : enhancements,,,,,,No
The Royal Borough of Kensington and Chelsea,RBKC,,Capital Projects,Capital,,Calford Seadon (Health & Safety) Ltd,1233044,,,,24/01/2020,3110152186,800,,Professional Fees : Non Legal,,,,,,No
The Royal Borough of Kensington and Chelsea,RBKC,,Capital Projects,Capital,,Campbell Tickell Ltd ,1233060,,,,13/01/2020,2200068357,"1,470.66",,Creditors Control : AP GRIR,,,,,,No
The Royal Borough of Kensington and Chelsea,RBKC,,Capital Projects,Capital,,Capital Property & Construction ,1256857,,,,23/01/2020,3110152092,"8,500.00",,Payments to main contractor,,,,,,No
The Royal Borough of Kensington and Chelsea,RBKC,,Capital Projects,Capital,,Capital Property & Construction ,1256857,,,,23/01/2020,3110152093,"20,000.00",,Professional Fees : Non Legal,,,,,,No
The Royal Borough of Kensington and Chelsea,RBKC,,Capital Projects,Capital,,Capital Property & Construction ,1256857,,,,23/01/2020,3110152094,"1,275.00",,Payments to main contractor,,,,,,No
The Royal Borough of Kensington and Chelsea,RBKC,,Capital Projects,Capital,,Capital Property & Construction ,1256857,,,,23/01/2020,3110152095,"15,000.00",,Payments to main contractor,,,,,,No
The Royal Borough of Kensington and Chelsea,RBKC,,Capital Projects,Capital,,Capital Property & Construction ,1256857,,,,13/02/2020,3110158920,"20,000.00",,Payments to main contractor,,,,,,No
The Royal Borough of Kensington and Chelsea,RBKC,,Capital Projects,Capital,,Capital Property & Construction ,1256857,,,,02/03/2020,3110163978,"1,915.00",,Professional Fees : Non Legal,,,,,,No
The Royal Borough of Kensington and Chelsea,RBKC,,Capital Projects,Capital,,Cappagh Contractors Construction (London) Ltd,1233084,,,,10/03/2020,2200082467,"3,878.41",,Construction : enhancements,,,,,,No
The Royal Borough of Kensington and Chelsea,RBKC,,Capital Projects,Capital,,Cappagh Contractors Construction (London) Ltd,1233084,,,,26/03/2020,2200086055,"9,805.54",,Payments to main contractor,,,,,,No
The Royal Borough of Kensington and Chelsea,RBKC,,Capital Projects,Capital,,Capsticks Solicitors LLP ,1233085,,,,17/03/2020,3110171482,700,,Professional Fees : Non Legal,,,,,,No
The Royal Borough of Kensington and Chelsea,RBKC,,Capital Projects,Capital,,Capsticks Solicitors LLP ,1233085,,,,17/03/2020,3110171483,595,,Payments to main contractor,,,,,,No
The Royal Borough of Kensington and Chelsea,RBKC,,Capital Projects,Capital,,Catalyst Housing Ltd ,1233307,,,,02/03/2020,2200080146,"50,000.00",,Payments to main contractor,,,,,,No
The Royal Borough of Kensington and Chelsea,RBKC,,Capital Projects,Capital,,Centurian Surfacing Ltd,1265770,,,,10/02/2020,2200074376,"2,458.00",,Payments to main contractor,,,,,,No
The Royal Borough of Kensington and Chelsea,RBKC,,Capital Projects,Capital,,Charles Marsden-Smedley Ltd ,1233339,,,,04/02/2020,2200072895,"5,000.00",,Other Consultants,,,,,,No
The Royal Borough of Kensington and Chelsea,RBKC,,Capital Projects,Capital,,Chelsea Open Air Nursery School ,1232794,,,,24/02/2020,2200078626,"7,345.00",,Payments to main contractor,,,,,,No
The Royal Borough of Kensington and Chelsea,RBKC,,Capital Projects,Capital,,Chelsea Open Air Nursery School ,1232794,,,,06/03/2020,2200081441,"31,519.00",,Payments to main contractor,,,,,,No
The Royal Borough of Kensington and Chelsea,RBKC,,Capital Projects,Capital,,City Of Westminster ,1231771,,,,20/02/2020,2200078080,"12,430.00",,Creditors Control : AP GRIR,,,,,,No
The Royal Borough of Kensington and Chelsea,RBKC,,Capital Projects,Capital,,City Of Westminster ,1231771,,,,20/02/2020,2200078080,"1,013.50",,Creditors Control : AP GRIR,,,,,,No
The Royal Borough of Kensington and Chelsea,RBKC,,Capital Projects,Capital,,City Of Westminster ,1231771,,,,26/02/2020,2200079409,"75,000.00",,Engineering Consultancy Fees,,,,,,No
The Royal Borough of Kensington and Chelsea,RBKC,,Capital Projects,Capital,,City Of Westminster ,1231771,,,,04/03/2020,2200080661,"12,430.00",,Creditors Control : AP GRIR,,,,,,No
The Royal Borough of Kensington and Chelsea,RBKC,,Capital Projects,Capital,,City Of Westminster ,1231771,,,,04/03/2020,2200080661,"1,013.50",,Creditors Control : AP GRIR,,,,,,No
The Royal Borough of Kensington and Chelsea,RBKC,,Capital Projects,Capital,,City Of Westminster ,1231771,,,,19/03/2020,2200084460,"8,707.00",,Creditors Control : AP GRIR,,,,,,No
The Royal Borough of Kensington and Chelsea,RBKC,,Capital Projects,Capital,,Civica Uk Ltd ,1233395,,,,23/01/2020,2200070336,"45,295.00",,Creditors Control : AP GRIR,,,,,,No
The Royal Borough of Kensington and Chelsea,RBKC,,Capital Projects,Capital,,Civica Uk Ltd ,1233395,,,,28/01/2020,2200071423,"38,902.50",,Professional Fees : Non Legal,,,,,,No
The Royal Borough of Kensington and Chelsea,RBKC,,Capital Projects,Capital,,Civica Uk Ltd ,1233395,,,,17/03/2020,2200083876,"2,580.00",,Payments to main contractor,,,,,,No
The Royal Borough of Kensington and Chelsea,RBKC,,Capital Projects,Capital,,Coli Construction Ltd,1262703,,,,27/03/2020,2200086282,"17,314.65",,Payments to main contractor,,,,,,No
The Royal Borough of Kensington and Chelsea,RBKC,,Capital Projects,Capital,,Coli Construction Ltd,1262703,,,,27/03/2020,2200086284,"3,573.83",,Payments to main contractor,,,,,,No
The Royal Borough of Kensington and Chelsea,RBKC,,Capital Projects,Capital,,Conisbee ,1233655,,,,13/01/2020,2200068417,"1,850.00",,Construction : enhancements,,,,,,No
The Royal Borough of Kensington and Chelsea,RBKC,,Capital Projects,Capital,,Conisbee ,1233655,,,,05/02/2020,2200073425,"1,625.00",,Construction : enhancements,,,,,,No
The Royal Borough of Kensington and Chelsea,RBKC,,Capital Projects,Capital,,Connected Response Limite,1265273,,,,03/02/2020,2200072727,"64,969.80",,Payments to main contractor,,,,,,No
The Royal Borough of Kensington and Chelsea,RBKC,,Capital Projects,Capital,,Coopers Fire Ltd ,1231192,,,,16/01/2020,3110149327,"38,250.00",,Payments to main contractor,,,,,,No
The Royal Borough of Kensington and Chelsea,RBKC,,Capital Projects,Capital,,Core Projects Ltd ,1233682,,,,27/03/2020,2200086342,"6,975.00",,Payments to main contractor,,,,,,No
The Royal Borough of Kensington and Chelsea,RBKC,,Capital Projects,Capital,,Cupaz ,1233737,,,,18/02/2020,2200077506,"74,107.56",,Other Consultants,,,,,,No
The Royal Borough of Kensington and Chelsea,RBKC,,Capital Projects,Capital,,Cupaz ,1233737,,,,06/03/2020,2200081370,"93,838.44",,Other Consultants,,,,,,No
The Royal Borough of Kensington and Chelsea,RBKC,,Capital Projects,Capital,,Currie & Brown UK Ltd ,1233738,,,,29/01/2020,2200071812,"5,059.88",,Site Works,,,,,,No
The Royal Borough of Kensington and Chelsea,RBKC,,Capital Projects,Capital,,Currie & Brown UK Ltd ,1233738,,,,25/02/2020,2200079033,"5,059.88",,Site Works,,,,,,No
The Royal Borough of Kensington and Chelsea,RBKC,,Capital Projects,Capital,,Currie & Brown UK Ltd ,1233738,,,,23/03/2020,2200084942,"5,059.88",,Site Works,,,,,,No
The Royal Borough of Kensington and Chelsea,RBKC,,Capital Projects,Capital,,Curtins Consulting ,1254272,,,,28/01/2020,3110153697,"3,251.25",,Professional Fees : Non Legal,,,,,,No
The Royal Borough of Kensington and Chelsea,RBKC,,Capital Projects,Capital,,D&B Facades UK Ltd ,1254414,,,,13/02/2020,3110158921,"15,624.05",,Payments to main contractor,,,,,,No
The Royal Borough of Kensington and Chelsea,RBKC,,Capital Projects,Capital,,Danacom Ltd,1262818,,,,25/02/2020,2200078883,"29,233.00",,Creditors Control : AP GRIR,,,,,,No
The Royal Borough of Kensington and Chelsea,RBKC,,Capital Projects,Capital,,Danacom Ltd,1262818,,,,23/03/2020,2200085059,"48,849.00",,Special Maintenance,,,,,,No
The Royal Borough of Kensington and Chelsea,RBKC,,Capital Projects,Capital,,Danacom Ltd,1262818,,,,23/03/2020,2200085060,"39,207.00",,Special Maintenance,,,,,,No
The Royal Borough of Kensington and Chelsea,RBKC,,Capital Projects,Capital,,Daniel Connal Partnership ,1233757,,,,13/02/2020,3110158922,"1,650.00",,Professional Fees : Non Legal,,,,,,No
The Royal Borough of Kensington and Chelsea,RBKC,,Capital Projects,Capital,,Daniel Connal Partnership ,1233757,,,,13/02/2020,3110158923,"2,530.00",,Professional Fees : Non Legal,,,,,,No
The Royal Borough of Kensington and Chelsea,RBKC,,Capital Projects,Capital,,Daniel Connal Partnership ,1233757,,,,18/02/2020,3110161503,"1,760.00",,Professional Fees : Non Legal,,,,,,No
The Royal Borough of Kensington and Chelsea,RBKC,,Capital Projects,Capital,,Diocese of Westminster,1259151,,,,16/01/2020,2200069034,"100,000.00",,Payments to main contractor,,,,,,No
The Royal Borough of Kensington and Chelsea,RBKC,,Capital Projects,Capital,,Ductclean (Uk) Ltd,1231197,,,,17/01/2020,2200069262,"1,406.00",,Professional Fees : Non Legal,,,,,,No
The Royal Borough of Kensington and Chelsea,RBKC,,Capital Projects,Capital,,Edmundson Electrical,1261331,,,,19/03/2020,2200084305,"24,222.00",,Payments to main contractor,,,,,,No
The Royal Borough of Kensington and Chelsea,RBKC,,Capital Projects,Capital,,Emisphere Ltd ,1231200,,,,10/01/2020,2200068074,"8,173.00",,Payments to main contractor,,,,,,No
The Royal Borough of Kensington and Chelsea,RBKC,,Capital Projects,Capital,,Emisphere Ltd ,1231200,,,,10/03/2020,2200082482,"6,665.00",,Payments to main contractor,,,,,,No
The Royal Borough of Kensington and Chelsea,RBKC,,Capital Projects,Capital,,Emisphere Ltd ,1231200,,,,31/03/2020,2200086962,"6,610.00",,Payments to main contractor,,,,,,No
The Royal Borough of Kensington and Chelsea,RBKC,,Capital Projects,Capital,,Emisphere Ltd ,1231200,,,,31/03/2020,2200086963,"5,155.00",,Payments to main contractor,,,,,,No
The Royal Borough of Kensington and Chelsea,RBKC,,Capital Projects,Capital,,Engie Regeneration Ltd ,1231201,,,,16/03/2020,2200083417,"350,000.54",,Payments to main contractor,,,,,,No
The Royal Borough of Kensington and Chelsea,RBKC,,Capital Projects,Capital,,Engie Urban Energy Group Ltd ,1231202,,,,18/03/2020,3110172102,"63,204.00",,Payments to main contractor,,,,,,No
The Royal Borough of Kensington and Chelsea,RBKC,,Capital Projects,Capital,,Engie Urban Energy Group Ltd ,1231202,,,,18/03/2020,3110172103,"52,670.00",,Payments to main contractor,,,,,,No
The Royal Borough of Kensington and Chelsea,RBKC,,Capital Projects,Capital,,F.M Conway Ltd ,1231208,,,,02/01/2020,2200066341,"3,718.27",,Payments to main contractor,,,,,,No
The Royal Borough of Kensington and Chelsea,RBKC,,Capital Projects,Capital,,F.M Conway Ltd ,1231208,,,,15/01/2020,2200068912,"3,160.22",,Payments to main contractor,,,,,,No
The Royal Borough of Kensington and Chelsea,RBKC,,Capital Projects,Capital,,F.M Conway Ltd ,1231208,,,,15/01/2020,2200068913,"62,500.00",,Payments to main contractor,,,,,,No
The Royal Borough of Kensington and Chelsea,RBKC,,Capital Projects,Capital,,F.M Conway Ltd ,1231208,,,,21/01/2020,2200069747,"4,862.00",,Payments to main contractor,,,,,,No
The Royal Borough of Kensington and Chelsea,RBKC,,Capital Projects,Capital,,F.M Conway Ltd ,1231208,,,,21/01/2020,2200069928,"4,600.00",,Payments to main contractor,,,,,,No
The Royal Borough of Kensington and Chelsea,RBKC,,Capital Projects,Capital,,F.M Conway Ltd ,1231208,,,,24/01/2020,2200070618,"2,318.93",,Construction : enhancements,,,,,,No
The Royal Borough of Kensington and Chelsea,RBKC,,Capital Projects,Capital,,F.M Conway Ltd ,1231208,,,,28/01/2020,2200071571,"48,532.39",,Construction : enhancements,,,,,,No
The Royal Borough of Kensington and Chelsea,RBKC,,Capital Projects,Capital,,F.M Conway Ltd ,1231208,,,,30/01/2020,2200072068,920.45,,Construction : enhancements,,,,,,No
The Royal Borough of Kensington and Chelsea,RBKC,,Capital Projects,Capital,,F.M Conway Ltd ,1231208,,,,03/02/2020,2200072614,"7,127.37",,Construction : enhancements,,,,,,No
The Royal Borough of Kensington and Chelsea,RBKC,,Capital Projects,Capital,,F.M Conway Ltd ,1231208,,,,12/02/2020,2200074866,"95,245.03",,Site Works,,,,,,No
The Royal Borough of Kensington and Chelsea,RBKC,,Capital Projects,Capital,,F.M Conway Ltd ,1231208,,,,18/02/2020,2200077698,971.39,,Payments to main contractor,,,,,,No
The Royal Borough of Kensington and Chelsea,RBKC,,Capital Projects,Capital,,F.M Conway Ltd ,1231208,,,,25/02/2020,2200079034,"1,518.70",,Payments to main contractor,,,,,,No
The Royal Borough of Kensington and Chelsea,RBKC,,Capital Projects,Capital,,F.M Conway Ltd ,1231208,,,,05/03/2020,2200081138,"60,000.00",,Construction : enhancements,,,,,,No
The Royal Borough of Kensington and Chelsea,RBKC,,Capital Projects,Capital,,F.M Conway Ltd ,1231208,,,,06/03/2020,2200081547,"6,861.22",,Payments to main contractor,,,,,,No
The Royal Borough of Kensington and Chelsea,RBKC,,Capital Projects,Capital,,F.M Conway Ltd ,1231208,,,,09/03/2020,2200081886,"38,240.16",,Construction : enhancements,,,,,,No
The Royal Borough of Kensington and Chelsea,RBKC,,Capital Projects,Capital,,F.M Conway Ltd ,1231208,,,,09/03/2020,2200082145,"66,333.42",,Construction : enhancements,,,,,,No
The Royal Borough of Kensington and Chelsea,RBKC,,Capital Projects,Capital,,F.M Conway Ltd ,1231208,,,,09/03/2020,2200082146,"18,193.87",,Site Works,,,,,,No
The Royal Borough of Kensington and Chelsea,RBKC,,Capital Projects,Capital,,F.M Conway Ltd ,1231208,,,,10/03/2020,2200082319,"1,723.30",,Construction : enhancements,,,,,,No
The Royal Borough of Kensington and Chelsea,RBKC,,Capital Projects,Capital,,F.M Conway Ltd ,1231208,,,,10/03/2020,2200082466,"8,044.00",,Payments to main contractor,,,,,,No
The Royal Borough of Kensington and Chelsea,RBKC,,Capital Projects,Capital,,F.M Conway Ltd ,1231208,,,,11/03/2020,2200082698,"1,738.00",,Construction : enhancements,,,,,,No
The Royal Borough of Kensington and Chelsea,RBKC,,Capital Projects,Capital,,F.M Conway Ltd ,1231208,,,,11/03/2020,2200082715,"41,947.29",,Payments to main contractor,,,,,,No
The Royal Borough of Kensington and Chelsea,RBKC,,Capital Projects,Capital,,F.M Conway Ltd ,1231208,,,,12/03/2020,2200082884,"2,837.30",,Construction : enhancements,,,,,,No
The Royal Borough of Kensington and Chelsea,RBKC,,Capital Projects,Capital,,F.M Conway Ltd ,1231208,,,,17/03/2020,2200083733,"2,486.38",,Construction : enhancements,,,,,,No
The Royal Borough of Kensington and Chelsea,RBKC,,Capital Projects,Capital,,F.M Conway Ltd ,1231208,,,,20/03/2020,2200084680,"1,577.41",,Construction : enhancements,,,,,,No
The Royal Borough of Kensington and Chelsea,RBKC,,Capital Projects,Capital,,F.M Conway Ltd ,1231208,,,,24/03/2020,2200085245,"2,388.26",,Payments to main contractor,,,,,,No
The Royal Borough of Kensington and Chelsea,RBKC,,Capital Projects,Capital,,F.M Conway Ltd ,1231208,,,,24/03/2020,2200085246,"105,000.00",,Construction : enhancements,,,,,,No
The Royal Borough of Kensington and Chelsea,RBKC,,Capital Projects,Capital,,F.M Conway Ltd ,1231208,,,,24/03/2020,2200085254,"45,009.00",,Construction : enhancements,,,,,,No
The Royal Borough of Kensington and Chelsea,RBKC,,Capital Projects,Capital,,F.M Conway Ltd ,1231208,,,,24/03/2020,2200085326,"18,000.00",,Professional Fees : Non Legal,,,,,,No
The Royal Borough of Kensington and Chelsea,RBKC,,Capital Projects,Capital,,F.M Conway Ltd ,1231208,,,,24/03/2020,2200085327,"4,000.00",,Payments to main contractor,,,,,,No
The Royal Borough of Kensington and Chelsea,RBKC,,Capital Projects,Capital,,F.M Conway Ltd ,1231208,,,,26/03/2020,2200086045,"60,000.00",,Payments to main contractor,,,,,,No
The Royal Borough of Kensington and Chelsea,RBKC,,Capital Projects,Capital,,F.M Conway Ltd ,1231208,,,,30/03/2020,2200086612,896,,Street lighting,,,,,,No
The Royal Borough of Kensington and Chelsea,RBKC,,Capital Projects,Capital,,F.M Conway Ltd ,1231208,,,,30/03/2020,2200086760,704.25,,Engineering Consultancy Fees,,,,,,No
The Royal Borough of Kensington and Chelsea,RBKC,,Capital Projects,Capital,,F3Develop Limited,1259433,,,,03/01/2020,2200066500,"1,590.00",,Creditors Control : AP GRIR,,,,,,No
The Royal Borough of Kensington and Chelsea,RBKC,,Capital Projects,Capital,,F3Develop Limited,1259433,,,,23/01/2020,2200070539,"1,590.00",,Creditors Control : AP GRIR,,,,,,No
The Royal Borough of Kensington and Chelsea,RBKC,,Capital Projects,Capital,,F3Develop Limited,1259433,,,,04/02/2020,2200073060,"8,900.00",,Creditors Control : AP GRIR,,,,,,No
The Royal Borough of Kensington and Chelsea,RBKC,,Capital Projects,Capital,,F3Develop Limited,1259433,,,,05/02/2020,2200073259,"2,767.00",,Construction : enhancements,,,,,,No
The Royal Borough of Kensington and Chelsea,RBKC,,Capital Projects,Capital,,FES Support Services Ltd,1234410,,,,05/03/2020,2200081108,"27,018.09",,Payments to main contractor,,,,,,No
The Royal Borough of Kensington and Chelsea,RBKC,,Capital Projects,Capital,,FES Support Services Ltd,1234410,,,,12/03/2020,2200082961,"27,018.10",,Payments to main contractor,,,,,,No
The Royal Borough of Kensington and Chelsea,RBKC,,Capital Projects,Capital,,Faithful and Gould Limited,1234387,,,,05/03/2020,2200081245,"1,728.00",,Professional Fees : Non Legal,,,,,,No
The Royal Borough of Kensington and Chelsea,RBKC,,Capital Projects,Capital,,Faithful and Gould Limited,1234387,,,,16/03/2020,2200083411,"2,000.00",,Professional Fees : Non Legal,,,,,,No
The Royal Borough of Kensington and Chelsea,RBKC,,Capital Projects,Capital,,Faithful and Gould Limited,1234387,,,,16/03/2020,2200083474,"44,064.00",,Professional Fees : Non Legal,,,,,,No
The Royal Borough of Kensington and Chelsea,RBKC,,Capital Projects,Capital,,Freeway Lift Services Ltd ,1231213,,,,09/01/2020,2200067898,"2,454.00",,Payments to main contractor,,,,,,No
The Royal Borough of Kensington and Chelsea,RBKC,,Capital Projects,Capital,,Frost Meadowcroft Ltd ,1234591,,,,17/02/2020,2200076711,"3,500.00",,Creditors Control : AP GRIR,,,,,,No
The Royal Borough of Kensington and Chelsea,RBKC,,Capital Projects,Capital,,G&B Windows International,1264786,,,,19/02/2020,2200077994,"1,375.00",,Payments to main contractor,,,,,,No
The Royal Borough of Kensington and Chelsea,RBKC,,Capital Projects,Capital,,Shrimplin Brown Ltd,D000000023,,,,10/02/2020,3110157258,"5,000.00",,Construction : enhancements,,,,,,No
The Royal Borough of Kensington and Chelsea,RBKC,,Capital Projects,Capital,,Winckworth Sherwood LLP,D000000023,,,,10/02/2020,3110157267,"3,400.00",,Acquisition of Land & Buildings,,,,,,No
The Royal Borough of Kensington and Chelsea,RBKC,,Capital Projects,Capital,,GSC Solicitors LLP,D000000023,,,,13/03/2020,3110168771,"1,515.00",,Acquisition of Land & Buildings,,,,,,No
The Royal Borough of Kensington and Chelsea,RBKC,,Capital Projects,Capital,,Tant Building Surveying Ltd,D000000023,,,,17/03/2020,3110171225,750,,Acquisition of Land & Buildings,,,,,,No
The Royal Borough of Kensington and Chelsea,RBKC,,Capital Projects,Capital,,Gardiner & Theobald LLP ,1234613,,,,13/01/2020,2200068365,"9,000.00",,Other Consultants,,,,,,No
The Royal Borough of Kensington and Chelsea,RBKC,,Capital Projects,Capital,,Gardiner & Theobald LLP ,1234613,,,,13/01/2020,2200068366,"5,000.00",,Other Consultants,,,,,,No
The Royal Borough of Kensington and Chelsea,RBKC,,Capital Projects,Capital,,Gardiner & Theobald LLP ,1234613,,,,13/01/2020,2200068367,"9,000.00",,Other Consultants,,,,,,No
The Royal Borough of Kensington and Chelsea,RBKC,,Capital Projects,Capital,,Gardiner & Theobald LLP ,1234613,,,,04/03/2020,2200080940,"8,750.00",,Other Consultants,,,,,,No
The Royal Borough of Kensington and Chelsea,RBKC,,Capital Projects,Capital,,Gardiner & Theobald LLP ,1234613,,,,04/03/2020,2200080941,"8,750.00",,Other Consultants,,,,,,No
The Royal Borough of Kensington and Chelsea,RBKC,,Capital Projects,Capital,,Gardiner & Theobald LLP ,1234613,,,,04/03/2020,2200080943,"8,750.00",,Other Consultants,,,,,,No
The Royal Borough of Kensington and Chelsea,RBKC,,Capital Projects,Capital,,Gardiner & Theobald LLP ,1234613,,,,11/03/2020,2200082579,"4,500.00",,Other Consultants,,,,,,No
The Royal Borough of Kensington and Chelsea,RBKC,,Capital Projects,Capital,,Gardiner & Theobald LLP ,1234613,,,,11/03/2020,2200082580,"4,500.00",,Other Consultants,,,,,,No
The Royal Borough of Kensington and Chelsea,RBKC,,Capital Projects,Capital,,Gardiner & Theobald LLP ,1234613,,,,11/03/2020,2200082581,"4,500.00",,Other Consultants,,,,,,No
The Royal Borough of Kensington and Chelsea,RBKC,,Capital Projects,Capital,,Gardiner & Theobald LLP ,1234613,,,,11/03/2020,2200082582,"4,500.00",,Other Consultants,,,,,,No
The Royal Borough of Kensington and Chelsea,RBKC,,Capital Projects,Capital,,Gardiner & Theobald LLP ,1234613,,,,11/03/2020,2200082583,"4,500.00",,Other Consultants,,,,,,No
The Royal Borough of Kensington and Chelsea,RBKC,,Capital Projects,Capital,,Gardiner & Theobald LLP ,1234613,,,,11/03/2020,2200082584,"4,500.00",,Other Consultants,,,,,,No
The Royal Borough of Kensington and Chelsea,RBKC,,Capital Projects,Capital,,Gardiner & Theobald LLP ,1234613,,,,11/03/2020,2200082585,"4,500.00",,Other Consultants,,,,,,No
The Royal Borough of Kensington and Chelsea,RBKC,,Capital Projects,Capital,,Gardiner & Theobald LLP ,1234613,,,,11/03/2020,2200082586,"4,500.00",,Other Consultants,,,,,,No
The Royal Borough of Kensington and Chelsea,RBKC,,Capital Projects,Capital,,Gardiner & Theobald LLP ,1234613,,,,19/03/2020,2200084231,"10,500.00",,Other Consultants,,,,,,No
The Royal Borough of Kensington and Chelsea,RBKC,,Capital Projects,Capital,,Gardiner & Theobald LLP ,1234613,,,,19/03/2020,2200084232,"10,500.00",,Other Consultants,,,,,,No
The Royal Borough of Kensington and Chelsea,RBKC,,Capital Projects,Capital,,Gardiner & Theobald LLP ,1234613,,,,19/03/2020,2200084233,"10,500.00",,Other Consultants,,,,,,No
The Royal Borough of Kensington and Chelsea,RBKC,,Capital Projects,Capital,,Garvey Bros Builders ,1234614,,,,07/01/2020,2200067352,"1,150.00",,Payments to main contractor,,,,,,No
The Royal Borough of Kensington and Chelsea,RBKC,,Capital Projects,Capital,,Garvey Bros Builders ,1234614,,,,14/02/2020,2200076505,"9,867.00",,Payments to main contractor,,,,,,No
The Royal Borough of Kensington and Chelsea,RBKC,,Capital Projects,Capital,,Garvey Bros Builders ,1234614,,,,13/03/2020,2200083243,"2,740.00",,Payments to main contractor,,,,,,No
The Royal Borough of Kensington and Chelsea,RBKC,,Capital Projects,Capital,,Gateville ,1256408,,,,17/01/2020,2200069261,"6,008.00",,Payments to main contractor,,,,,,No
The Royal Borough of Kensington and Chelsea,RBKC,,Capital Projects,Capital,,Geotechnical and Environmental,1234639,,,,27/02/2020,2200079717,"13,915.50",,Site Works,,,,,,No
The Royal Borough of Kensington and Chelsea,RBKC,,Capital Projects,Capital,,Gerda Security Products Ltd ,1234642,,,,23/01/2020,2200070550,"1,992.00",,Payments to main contractor,,,,,,No
The Royal Borough of Kensington and Chelsea,RBKC,,Capital Projects,Capital,,Gerda Security Products Ltd ,1234642,,,,23/01/2020,2200070551,594,,Payments to main contractor,,,,,,No
The Royal Borough of Kensington and Chelsea,RBKC,,Capital Projects,Capital,,Gerda Security Products Ltd ,1234642,,,,24/01/2020,2200070718,"1,008.00",,Site Works,,,,,,No
The Royal Borough of Kensington and Chelsea,RBKC,,Capital Projects,Capital,,Gerda Security Products Ltd ,1234642,,,,24/01/2020,2200070719,"1,008.00",,Site Works,,,,,,No
The Royal Borough of Kensington and Chelsea,RBKC,,Capital Projects,Capital,,Gerda Security Products Ltd ,1234642,,,,24/01/2020,2200070720,"1,008.00",,Site Works,,,,,,No
The Royal Borough of Kensington and Chelsea,RBKC,,Capital Projects,Capital,,Gerda Security Products Ltd ,1234642,,,,24/01/2020,3110152187,"5,888.45",,Payments to main contractor,,,,,,No
The Royal Borough of Kensington and Chelsea,RBKC,,Capital Projects,Capital,,Gerda Security Products Ltd ,1234642,,,,24/01/2020,3110152188,700,,Payments to main contractor,,,,,,No
The Royal Borough of Kensington and Chelsea,RBKC,,Capital Projects,Capital,,Gerda Security Products Ltd ,1234642,,,,24/01/2020,3110152189,"1,245.00",,Payments to main contractor,,,,,,No
The Royal Borough of Kensington and Chelsea,RBKC,,Capital Projects,Capital,,Gerda Security Products Ltd ,1234642,,,,04/02/2020,3110154446,526.5,,Payments to main contractor,,,,,,No
The Royal Borough of Kensington and Chelsea,RBKC,,Capital Projects,Capital,,Gerda Security Products Ltd ,1234642,,,,04/02/2020,3110154447,"3,351.00",,Payments to main contractor,,,,,,No
The Royal Borough of Kensington and Chelsea,RBKC,,Capital Projects,Capital,,Gerda Security Products Ltd ,1234642,,,,04/02/2020,3110154448,"1,145.00",,Payments to main contractor,,,,,,No
The Royal Borough of Kensington and Chelsea,RBKC,,Capital Projects,Capital,,Gerda Security Products Ltd ,1234642,,,,04/02/2020,3110154449,"1,400.00",,Payments to main contractor,,,,,,No
The Royal Borough of Kensington and Chelsea,RBKC,,Capital Projects,Capital,,Gerda Security Products Ltd ,1234642,,,,05/02/2020,2200073449,"44,754.63",,Payments to main contractor,,,,,,No
The Royal Borough of Kensington and Chelsea,RBKC,,Capital Projects,Capital,,Gerda Security Products Ltd ,1234642,,,,11/02/2020,2200074638,"44,351.95",,Payments to main contractor,,,,,,No
The Royal Borough of Kensington and Chelsea,RBKC,,Capital Projects,Capital,,Gerda Security Products Ltd ,1234642,,,,04/03/2020,2200080960,"2,395.86",,Payments to main contractor,,,,,,No
The Royal Borough of Kensington and Chelsea,RBKC,,Capital Projects,Capital,,Gerda Security Products Ltd ,1234642,,,,04/03/2020,2200080962,"95,213.50",,Payments to main contractor,,,,,,No
The Royal Borough of Kensington and Chelsea,RBKC,,Capital Projects,Capital,,Gerda Security Products Ltd ,1234642,,,,04/03/2020,2200080964,"67,163.49",,Payments to main contractor,,,,,,No
The Royal Borough of Kensington and Chelsea,RBKC,,Capital Projects,Capital,,Gerda Security Products Ltd ,1234642,,,,04/03/2020,2200080966,"2,395.86",,Payments to main contractor,,,,,,No
The Royal Borough of Kensington and Chelsea,RBKC,,Capital Projects,Capital,,Gerda Security Products Ltd ,1234642,,,,05/03/2020,2200081246,"15,962.90",,Payments to main contractor,,,,,,No
The Royal Borough of Kensington and Chelsea,RBKC,,Capital Projects,Capital,,Gerda Security Products Ltd ,1234642,,,,05/03/2020,2200081247,"25,601.00",,Payments to main contractor,,,,,,No
The Royal Borough of Kensington and Chelsea,RBKC,,Capital Projects,Capital,,Gerda Security Products Ltd ,1234642,,,,11/03/2020,3110168007,"4,204.30",,Payments to main contractor,,,,,,No
The Royal Borough of Kensington and Chelsea,RBKC,,Capital Projects,Capital,,Gerda Security Products Ltd ,1234642,,,,12/03/2020,3110168236,"1,500.00",,Payments to main contractor,,,,,,No
The Royal Borough of Kensington and Chelsea,RBKC,,Capital Projects,Capital,,Gerda Security Products Ltd ,1234642,,,,16/03/2020,2200083473,"8,539.23",,Payments to main contractor,,,,,,No
The Royal Borough of Kensington and Chelsea,RBKC,,Capital Projects,Capital,,Gerda Security Products Ltd ,1234642,,,,18/03/2020,2200084161,"24,150.00",,Payments to main contractor,,,,,,No
The Royal Borough of Kensington and Chelsea,RBKC,,Capital Projects,Capital,,Gerda Security Products Ltd ,1234642,,,,18/03/2020,2200084162,"43,268.02",,Payments to main contractor,,,,,,No
The Royal Borough of Kensington and Chelsea,RBKC,,Capital Projects,Capital,,Gerda Security Products Ltd ,1234642,,,,25/03/2020,2200085573,"29,490.35",,Payments to main contractor,,,,,,No
The Royal Borough of Kensington and Chelsea,RBKC,,Capital Projects,Capital,,Gerda Security Products Ltd ,1234642,,,,25/03/2020,3110173692,"68,292.55",,Payments to main contractor,,,,,,No
The Royal Borough of Kensington and Chelsea,RBKC,,Capital Projects,Capital,,Gerda Security Products Ltd ,1234642,,,,25/03/2020,3110173693,"27,533.84",,Payments to main contractor,,,,,,No
The Royal Borough of Kensington and Chelsea,RBKC,,Capital Projects,Capital,,Gerda Security Products Ltd ,1234642,,,,31/03/2020,2200087004,"14,700.00",,Payments to main contractor,,,,,,No
The Royal Borough of Kensington and Chelsea,RBKC,,Capital Projects,Capital,,Gerda Security Products Ltd ,1234642,,,,31/03/2020,2200087007,"29,181.11",,Payments to main contractor,,,,,,No
The Royal Borough of Kensington and Chelsea,RBKC,,Capital Projects,Capital,,Gerda Security Products Ltd ,1234642,,,,31/03/2020,2200087013,"40,290.84",,Payments to main contractor,,,,,,No
The Royal Borough of Kensington and Chelsea,RBKC,,Capital Projects,Capital,,Gerda Security Products Ltd ,1234642,,,,31/03/2020,2200087053,"67,163.49",,Payments to main contractor,,,,,,No
The Royal Borough of Kensington and Chelsea,RBKC,,Capital Projects,Capital,,Ginkgo Landscape Contractors Ltd,1234647,,,,13/02/2020,2200076114,"9,848.40",,Creditors Control : AP GRIR,,,,,,No
The Royal Borough of Kensington and Chelsea,RBKC,,Capital Projects,Capital,,Ginkgo Landscape Contractors Ltd,1234647,,,,13/02/2020,2200076114,"2,829.52",,Creditors Control : AP GRIR,,,,,,No
The Royal Borough of Kensington and Chelsea,RBKC,,Capital Projects,Capital,,Ginkgo Landscape Contractors Ltd,1234647,,,,23/03/2020,2200085066,"3,298.36",,Creditors Control : AP GRIR,,,,,,No
The Royal Borough of Kensington and Chelsea,RBKC,,Capital Projects,Capital,,Gradient Consultants Ltd ,1230354,,,,04/02/2020,2200072894,750,,Other Consultants,,,,,,No
The Royal Borough of Kensington and Chelsea,RBKC,,Capital Projects,Capital,,Greenacre Recruitment,1258089,,,,03/01/2020,2200066492,"2,750.00",,Capitalised salaries,,,,,,No
The Royal Borough of Kensington and Chelsea,RBKC,,Capital Projects,Capital,,Greenacre Recruitment,1258089,,,,03/01/2020,2200066493,"2,625.00",,Capitalised salaries,,,,,,No
The Royal Borough of Kensington and Chelsea,RBKC,,Capital Projects,Capital,,Greenacre Recruitment,1258089,,,,03/01/2020,2200066494,"1,512.50",,Capitalised salaries,,,,,,No
The Royal Borough of Kensington and Chelsea,RBKC,,Capital Projects,Capital,,Greenacre Recruitment,1258089,,,,03/01/2020,2200066498,"2,625.00",,Capitalised salaries,,,,,,No
The Royal Borough of Kensington and Chelsea,RBKC,,Capital Projects,Capital,,Greenacre Recruitment,1258089,,,,20/01/2020,2200069451,"2,200.00",,Capitalised salaries,,,,,,No
The Royal Borough of Kensington and Chelsea,RBKC,,Capital Projects,Capital,,Greenacre Recruitment,1258089,,,,20/01/2020,2200069454,"2,625.00",,Capitalised salaries,,,,,,No
The Royal Borough of Kensington and Chelsea,RBKC,,Capital Projects,Capital,,Greenacre Recruitment,1258089,,,,27/01/2020,2200070900,"2,750.00",,Capitalised salaries,,,,,,No
The Royal Borough of Kensington and Chelsea,RBKC,,Capital Projects,Capital,,Greenacre Recruitment,1258089,,,,05/02/2020,2200073284,"2,625.00",,Capitalised salaries,,,,,,No
The Royal Borough of Kensington and Chelsea,RBKC,,Capital Projects,Capital,,Greenacre Recruitment,1258089,,,,05/02/2020,2200073291,"2,750.00",,Capitalised salaries,,,,,,No
The Royal Borough of Kensington and Chelsea,RBKC,,Capital Projects,Capital,,Greenacre Recruitment,1258089,,,,06/02/2020,2200073713,"1,575.00",,Capitalised salaries,,,,,,No
The Royal Borough of Kensington and Chelsea,RBKC,,Capital Projects,Capital,,Greenacre Recruitment,1258089,,,,13/03/2020,2200083194,"2,100.00",,Capitalised salaries,,,,,,No
The Royal Borough of Kensington and Chelsea,RBKC,,Capital Projects,Capital,,Greenacre Recruitment,1258089,,,,13/03/2020,2200083195,"2,625.00",,Capitalised salaries,,,,,,No
The Royal Borough of Kensington and Chelsea,RBKC,,Capital Projects,Capital,,Greenacre Recruitment,1258089,,,,13/03/2020,2200083197,"2,200.00",,Capitalised salaries,,,,,,No
The Royal Borough of Kensington and Chelsea,RBKC,,Capital Projects,Capital,,Greenacre Recruitment,1258089,,,,13/03/2020,2200083198,"2,100.00",,Capitalised salaries,,,,,,No
The Royal Borough of Kensington and Chelsea,RBKC,,Capital Projects,Capital,,Greenacre Recruitment,1258089,,,,13/03/2020,2200083199,"1,650.00",,Capitalised salaries,,,,,,No
The Royal Borough of Kensington and Chelsea,RBKC,,Capital Projects,Capital,,Greenacre Recruitment,1258089,,,,13/03/2020,2200083200,"2,625.00",,Capitalised salaries,,,,,,No
The Royal Borough of Kensington and Chelsea,RBKC,,Capital Projects,Capital,,Greenacre Recruitment,1258089,,,,13/03/2020,2200083201,"2,200.00",,Capitalised salaries,,,,,,No
The Royal Borough of Kensington and Chelsea,RBKC,,Capital Projects,Capital,,Greenacre Recruitment,1258089,,,,13/03/2020,2200083202,"2,750.00",,Capitalised salaries,,,,,,No
The Royal Borough of Kensington and Chelsea,RBKC,,Capital Projects,Capital,,Greenacre Recruitment,1258089,,,,13/03/2020,2200083203,"2,625.00",,Capitalised salaries,,,,,,No
The Royal Borough of Kensington and Chelsea,RBKC,,Capital Projects,Capital,,Greenacre Recruitment,1258089,,,,13/03/2020,2200083204,"2,625.00",,Capitalised salaries,,,,,,No
The Royal Borough of Kensington and Chelsea,RBKC,,Capital Projects,Capital,,Greenacre Recruitment,1258089,,,,13/03/2020,2200083205,"2,625.00",,Capitalised salaries,,,,,,No
The Royal Borough of Kensington and Chelsea,RBKC,,Capital Projects,Capital,,Greenacre Recruitment,1258089,,,,24/03/2020,2200085257,"2,625.00",,Capitalised salaries,,,,,,No
The Royal Borough of Kensington and Chelsea,RBKC,,Capital Projects,Capital,,Greenacre Recruitment,1258089,,,,30/03/2020,2200086541,"2,625.00",,Capitalised salaries,,,,,,No
The Royal Borough of Kensington and Chelsea,RBKC,,Capital Projects,Capital,,Greenwich Leisure Ltd (Gll) ,1234678,,,,09/01/2020,2200067827,"22,932.00",,Other Consultants,,,,,,No
The Royal Borough of Kensington and Chelsea,RBKC,,Capital Projects,Capital,,Greenwich Leisure Ltd (Gll) ,1234678,,,,10/01/2020,2200068058,"21,168.00",,Other Consultants,,,,,,No
The Royal Borough of Kensington and Chelsea,RBKC,,Capital Projects,Capital,,Greenwich Leisure Ltd (Gll) ,1234678,,,,05/02/2020,2200073263,"14,467.00",,Other Consultants,,,,,,No
The Royal Borough of Kensington and Chelsea,RBKC,,Capital Projects,Capital,,Greenwich Leisure Ltd (Gll) ,1234678,,,,05/02/2020,2200073264,"1,350.00",,Other Consultants,,,,,,No
The Royal Borough of Kensington and Chelsea,RBKC,,Capital Projects,Capital,,Greenwich Leisure Ltd (Gll) ,1234678,,,,05/02/2020,2200073371,"29,614.00",,Other Consultants,,,,,,No
The Royal Borough of Kensington and Chelsea,RBKC,,Capital Projects,Capital,,Guarding UK Ltd ,1230372,,,,02/03/2020,2200080156,"10,949.68",,Creditors Control : AP GRIR,,,,,,No
The Royal Borough of Kensington and Chelsea,RBKC,,Capital Projects,Capital,,Guarding UK Ltd ,1230372,,,,03/03/2020,2200080387,"11,866.80",,Creditors Control : AP GRIR,,,,,,No
The Royal Borough of Kensington and Chelsea,RBKC,,Capital Projects,Capital,,Guarding UK Ltd ,1230372,,,,03/03/2020,2200080510,"11,484.00",,Creditors Control : AP GRIR,,,,,,No
The Royal Borough of Kensington and Chelsea,RBKC,,Capital Projects,Capital,,Guarding UK Ltd ,1230372,,,,03/03/2020,2200080512,"12,632.40",,Creditors Control : AP GRIR,,,,,,No
The Royal Borough of Kensington and Chelsea,RBKC,,Capital Projects,Capital,,Guarding UK Ltd ,1230372,,,,03/03/2020,2200080513,"12,249.60",,Creditors Control : AP GRIR,,,,,,No
The Royal Borough of Kensington and Chelsea,RBKC,,Capital Projects,Capital,,Guarding UK Ltd ,1230372,,,,30/03/2020,2200086607,"13,321.44",,Creditors Control : AP GRIR,,,,,,No
The Royal Borough of Kensington and Chelsea,RBKC,,Capital Projects,Capital,,Guideline Lift Services Ltd ,1231219,,,,31/01/2020,3110153978,"173,077.02",,Payments to main contractor,,,,,,No
The Royal Borough of Kensington and Chelsea,RBKC,,Capital Projects,Capital,,Guideline Lift Services Ltd ,1231219,,,,12/03/2020,3110168237,"188,901.48",,Payments to main contractor,,,,,,No
The Royal Borough of Kensington and Chelsea,RBKC,,Capital Projects,Capital,,Guideline Lift Services Ltd ,1231219,,,,27/03/2020,3110173901,"157,252.57",,Payments to main contractor,,,,,,No
The Royal Borough of Kensington and Chelsea,RBKC,,Capital Projects,Capital,,Hedera Screens Limited,1266352,,,,21/02/2020,2200078372,"10,786.00",,Creditors Control : AP GRIR,,,,,,No
The Royal Borough of Kensington and Chelsea,RBKC,,Capital Projects,Capital,,Hags - Smp Limited ,1231221,,,,09/01/2020,2200067904,"40,000.00",,Construction : enhancements,,,,,,No
The Royal Borough of Kensington and Chelsea,RBKC,,Capital Projects,Capital,,Hags - Smp Limited ,1231221,,,,22/01/2020,2200070123,"2,765.65",,Construction : enhancements,,,,,,No
The Royal Borough of Kensington and Chelsea,RBKC,,Capital Projects,Capital,,Hags - Smp Limited ,1231221,,,,22/01/2020,2200070263,"35,094.00",,Construction : enhancements,,,,,,No
The Royal Borough of Kensington and Chelsea,RBKC,,Capital Projects,Capital,,Hammersmith Community Gardens Association,1234685,,,,21/01/2020,2200069828,"5,000.00",,Creditors Control : AP GRIR,,,,,,No
The Royal Borough of Kensington and Chelsea,RBKC,,Capital Projects,Capital,,Harrow Club W10 ,1230381,,,,17/01/2020,3110149401,"4,690.00",,Payments to sub contractor,,,,,,No
The Royal Borough of Kensington and Chelsea,RBKC,,Capital Projects,Capital,,Harrow Club W10 ,1230381,,,,17/01/2020,3110149401,765,,Payments to sub contractor,,,,,,No
The Royal Borough of Kensington and Chelsea,RBKC,,Capital Projects,Capital,,Haworth Tompkins Ltd,1230393,,,,03/03/2020,2200080441,"20,400.00",,Other Consultants,,,,,,No
The Royal Borough of Kensington and Chelsea,RBKC,,Capital Projects,Capital,,Haworth Tompkins Ltd,1230393,,,,03/03/2020,2200080530,"15,520.00",,Creditors Control : AP GRIR,,,,,,No
The Royal Borough of Kensington and Chelsea,RBKC,,Capital Projects,Capital,,Henry Riley LLP ,1230402,,,,04/02/2020,2200072989,"3,500.00",,Other Consultants,,,,,,No
The Royal Borough of Kensington and Chelsea,RBKC,,Capital Projects,Capital,,Henry Riley LLP ,1230402,,,,27/02/2020,2200079546,"6,700.00",,Other Consultants,,,,,,No
The Royal Borough of Kensington and Chelsea,RBKC,,Capital Projects,Capital,,Henry Riley LLP ,1230402,,,,26/03/2020,2200086050,"6,700.00",,Other Consultants,,,,,,No
The Royal Borough of Kensington and Chelsea,RBKC,,Capital Projects,Capital,,Hillrose Property Services ,1254826,,,,19/03/2020,2200084405,"7,764.25",,Payments to main contractor,,,,,,No
The Royal Borough of Kensington and Chelsea,RBKC,,Capital Projects,Capital,,Hillrose Property Services ,1254826,,,,26/03/2020,2200086085,"6,573.12",,Payments to main contractor,,,,,,No
The Royal Borough of Kensington and Chelsea,RBKC,,Capital Projects,Capital,,Holy Trinity School ,1236081,,,,04/02/2020,2200072980,"5,595.84",,Payments to main contractor,,,,,,No
The Royal Borough of Kensington and Chelsea,RBKC,,Capital Projects,Capital,,Houseline Building Services Ltd ,1231377,,,,07/01/2020,2200067199,"4,791.04",,Construction : enhancements,,,,,,No
The Royal Borough of Kensington and Chelsea,RBKC,,Capital Projects,Capital,,Houseline Building Services Ltd ,1231377,,,,03/03/2020,2200080353,"33,722.55",,Construction : enhancements,,,,,,No
The Royal Borough of Kensington and Chelsea,RBKC,,Capital Projects,Capital,,Hunters and Partners Ltd ,1254860,,,,08/01/2020,2200067671,999.4,,Payments to main contractor,,,,,,No
The Royal Borough of Kensington and Chelsea,RBKC,,Capital Projects,Capital,,Hunters and Partners Ltd ,1254860,,,,08/01/2020,2200067673,"4,000.60",,Payments to main contractor,,,,,,No
The Royal Borough of Kensington and Chelsea,RBKC,,Capital Projects,Capital,,Hybrid Ecology Ltd,1265959,,,,29/01/2020,2200071824,"1,535.00",,Creditors Control : AP GRIR,,,,,,No
The Royal Borough of Kensington and Chelsea,RBKC,,Capital Projects,Capital,,Idverde Ltd ,1231380,,,,21/01/2020,2200069814,"4,208.53",,Construction : enhancements,,,,,,No
The Royal Borough of Kensington and Chelsea,RBKC,,Capital Projects,Capital,,Idverde Ltd ,1231380,,,,28/02/2020,2200079804,"17,932.04",,Construction : enhancements,,,,,,No
The Royal Borough of Kensington and Chelsea,RBKC,,Capital Projects,Capital,,Indigo Lodge Limited T/A Drayton Fencing,1231381,,,,04/02/2020,2200072974,840,,Construction : enhancements,,,,,,No
The Royal Borough of Kensington and Chelsea,RBKC,,Capital Projects,Capital,,Ingleton Wood ,1234783,,,,09/01/2020,2200067846,720,,Other Consultants,,,,,,No
The Royal Borough of Kensington and Chelsea,RBKC,,Capital Projects,Capital,,Ingleton Wood ,1234783,,,,13/02/2020,2200075993,720,,Other Consultants,,,,,,No
The Royal Borough of Kensington and Chelsea,RBKC,,Capital Projects,Capital,,Ingleton Wood ,1234783,,,,27/02/2020,2200079724,"2,412.72",,Other Consultants,,,,,,No
The Royal Borough of Kensington and Chelsea,RBKC,,Capital Projects,Capital,,Insight Direct (Uk) Ltd ,1234788,,,,04/02/2020,2200073062,620,,Creditors Control : AP GRIR,,,,,,No
The Royal Borough of Kensington and Chelsea,RBKC,,Capital Projects,Capital,,Insight Direct (Uk) Ltd ,1234788,,,,04/02/2020,2200073062,794,,Creditors Control : AP GRIR,,,,,,No
The Royal Borough of Kensington and Chelsea,RBKC,,Capital Projects,Capital,,Insight Direct (Uk) Ltd ,1234788,,,,17/03/2020,2200083810,739.5,,Creditors Control : AP GRIR,,,,,,No
The Royal Borough of Kensington and Chelsea,RBKC,,Capital Projects,Capital,,J & J Topgrade Ltd ,1234807,,,,26/03/2020,2200085823,590,,Creditors Control : AP GRIR,,,,,,No
The Royal Borough of Kensington and Chelsea,RBKC,,Capital Projects,Capital,,John McAslan & Partners Limited ,1254281,,,,12/02/2020,3110158351,"4,000.00",,Payments to main contractor,,,,,,No
The Royal Borough of Kensington and Chelsea,RBKC,,Capital Projects,Capital,,John McAslan & Partners Limited ,1254281,,,,12/02/2020,3110158352,"2,000.00",,Payments to main contractor,,,,,,No
The Royal Borough of Kensington and Chelsea,RBKC,,Capital Projects,Capital,,John McAslan & Partners Limited ,1254281,,,,12/02/2020,3110158353,"2,000.00",,Payments to main contractor,,,,,,No
The Royal Borough of Kensington and Chelsea,RBKC,,Capital Projects,Capital,,K & T Heating Services Ltd ,1231384,,,,14/01/2020,3110148720,"23,205.00",,Payments to main contractor,,,,,,No
The Royal Borough of Kensington and Chelsea,RBKC,,Capital Projects,Capital,,K & T Heating Services Ltd ,1231384,,,,14/01/2020,3110148725,742.56,,Payments to main contractor,,,,,,No
The Royal Borough of Kensington and Chelsea,RBKC,,Capital Projects,Capital,,K & T Heating Services Ltd ,1231384,,,,12/03/2020,3110168238,"26,638.50",,Payments to main contractor,,,,,,No
The Royal Borough of Kensington and Chelsea,RBKC,,Capital Projects,Capital,,K & T Heating Services Ltd ,1231384,,,,12/03/2020,3110168243,"19,846.80",,Payments to main contractor,,,,,,No
The Royal Borough of Kensington and Chelsea,RBKC,,Capital Projects,Capital,,K & T Heating Services Ltd ,1231384,,,,12/03/2020,3110168244,"101,181.00",,Payments to main contractor,,,,,,No
The Royal Borough of Kensington and Chelsea,RBKC,,Capital Projects,Capital,,K & T Heating Services Ltd ,1231384,,,,27/03/2020,3110173902,"47,146.00",,Payments to main contractor,,,,,,No
The Royal Borough of Kensington and Chelsea,RBKC,,Capital Projects,Capital,,Kaner Olette Limited T/a Kaner Olette Architects,1234833,,,,16/01/2020,2200068989,"3,110.62",,Payments to main contractor,,,,,,No
The Royal Borough of Kensington and Chelsea,RBKC,,Capital Projects,Capital,,Kaner Olette Limited T/a Kaner Olette Architects,1234833,,,,10/02/2020,2200074355,"3,110.62",,Payments to main contractor,,,,,,No
The Royal Borough of Kensington and Chelsea,RBKC,,Capital Projects,Capital,,Kaner Olette Limited T/a Kaner Olette Architects,1234833,,,,12/03/2020,2200082963,"3,460.62",,Payments to main contractor,,,,,,No
The Royal Borough of Kensington and Chelsea,RBKC,,Capital Projects,Capital,,Kaner Olette Limited T/a Kaner Olette Architects,1234833,,,,30/03/2020,2200086675,"3,110.62",,Payments to main contractor,,,,,,No
The Royal Borough of Kensington and Chelsea,RBKC,,Capital Projects,Capital,,Kids On The Green ,1234851,,,,10/03/2020,3110167909,"2,362.00",,Payments to main contractor,,,,,,No
The Royal Borough of Kensington and Chelsea,RBKC,,Capital Projects,Capital,,Knight Frank Llp ,1230552,,,,15/01/2020,2200068792,"1,500.00",,Creditors Control : AP GRIR,,,,,,No
The Royal Borough of Kensington and Chelsea,RBKC,,Capital Projects,Capital,,Landmark Chambers,1263434,,,,24/01/2020,2200070716,600,,Legal Fees & expenses,,,,,,No
The Royal Borough of Kensington and Chelsea,RBKC,,Capital Projects,Capital,,Landrock Phillips Ltd ,1230566,,,,06/02/2020,2200073761,"1,500.00",,Payments to main contractor,,,,,,No
The Royal Borough of Kensington and Chelsea,RBKC,,Capital Projects,Capital,,Langley Taylor Building Consultancy LLP,1230569,,,,04/02/2020,2200072885,"1,125.00",,Professional Fees : Non Legal,,,,,,No
The Royal Borough of Kensington and Chelsea,RBKC,,Capital Projects,Capital,,Redact Details,1231389,,,,10/03/2020,2200082480,"4,880.00",,Payments to main contractor,,,,,,No
The Royal Borough of Kensington and Chelsea,RBKC,,Capital Projects,Capital,,Redact Details,1231389,,,,26/03/2020,2200086081,"6,105.00",,Payments to main contractor,,,,,,No
The Royal Borough of Kensington and Chelsea,RBKC,,Capital Projects,Capital,,Redact Details,1231389,,,,26/03/2020,2200086082,"7,590.00",,Payments to main contractor,,,,,,No
The Royal Borough of Kensington and Chelsea,RBKC,,Capital Projects,Capital,,Lend Lease Consulting (Emea) Ltd ,1234899,,,,04/02/2020,2200073015,"8,687.00",,Construction : enhancements,,,,,,No
The Royal Borough of Kensington and Chelsea,RBKC,,Capital Projects,Capital,,Lend Lease Consulting (Emea) Ltd ,1234899,,,,03/03/2020,2200080440,"8,687.00",,Construction : enhancements,,,,,,No
The Royal Borough of Kensington and Chelsea,RBKC,,Capital Projects,Capital,,Lexden Consultancy Ltd,1261556,,,,10/02/2020,2200074393,588,,Professional Fees : Non Legal,,,,,,No
The Royal Borough of Kensington and Chelsea,RBKC,,Capital Projects,Capital,,Lexden Consultancy Ltd,1261556,,,,12/03/2020,2200082976,"1,176.00",,Professional Fees : Non Legal,,,,,,No
The Royal Borough of Kensington and Chelsea,RBKC,,Capital Projects,Capital,,London Fire Solutions LLP ,1231392,,,,04/02/2020,3110154450,"24,554.41",,Payments to main contractor,,,,,,No
The Royal Borough of Kensington and Chelsea,RBKC,,Capital Projects,Capital,,London Fire Solutions LLP ,1231392,,,,04/02/2020,3110154451,"9,806.50",,Payments to main contractor,,,,,,No
The Royal Borough of Kensington and Chelsea,RBKC,,Capital Projects,Capital,,London Fire Solutions LLP ,1231392,,,,04/02/2020,3110154452,"60,226.45",,Payments to main contractor,,,,,,No
The Royal Borough of Kensington and Chelsea,RBKC,,Capital Projects,Capital,,MDA Consulting Limited ,1234989,,,,07/01/2020,2200067250,"1,892.00",,Professional Fees : Non Legal,,,,,,No
The Royal Borough of Kensington and Chelsea,RBKC,,Capital Projects,Capital,,MDA Consulting Limited ,1234989,,,,31/01/2020,2200072375,704,,Other Consultants,,,,,,No
The Royal Borough of Kensington and Chelsea,RBKC,,Capital Projects,Capital,,MDA Consulting Limited ,1234989,,,,05/02/2020,2200073453,880,,Other Consultants,,,,,,No
The Royal Borough of Kensington and Chelsea,RBKC,,Capital Projects,Capital,,MDA Consulting Limited ,1234989,,,,06/02/2020,2200073636,528,,Site Works,,,,,,No
The Royal Borough of Kensington and Chelsea,RBKC,,Capital Projects,Capital,,MDA Consulting Limited ,1234989,,,,13/02/2020,2200075991,528,,Professional Fees : Non Legal,,,,,,No
The Royal Borough of Kensington and Chelsea,RBKC,,Capital Projects,Capital,,MDA Consulting Limited ,1234989,,,,27/02/2020,2200079550,704,,Other Consultants,,,,,,No
The Royal Borough of Kensington and Chelsea,RBKC,,Capital Projects,Capital,,MDA Consulting Limited ,1234989,,,,02/03/2020,2200080088,880,,Site Works,,,,,,No
The Royal Borough of Kensington and Chelsea,RBKC,,Capital Projects,Capital,,MDA Consulting Limited ,1234989,,,,02/03/2020,2200080138,880,,Other Consultants,,,,,,No
The Royal Borough of Kensington and Chelsea,RBKC,,Capital Projects,Capital,,MDA Consulting Limited ,1234989,,,,04/03/2020,2200080726,880,,Professional Fees : Non Legal,,,,,,No
The Royal Borough of Kensington and Chelsea,RBKC,,Capital Projects,Capital,,MMM Architects Ltd,1259041,,,,15/01/2020,2200068871,"1,500.00",,Payments to main contractor,,,,,,No
The Royal Borough of Kensington and Chelsea,RBKC,,Capital Projects,Capital,,MMM Architects Ltd,1259041,,,,22/01/2020,2200070160,"1,500.00",,Payments to main contractor,,,,,,No
The Royal Borough of Kensington and Chelsea,RBKC,,Capital Projects,Capital,,MMM Architects Ltd,1259041,,,,03/02/2020,2200072615,"1,500.00",,Payments to main contractor,,,,,,No
The Royal Borough of Kensington and Chelsea,RBKC,,Capital Projects,Capital,,MMM Architects Ltd,1259041,,,,03/03/2020,2200080482,"1,500.00",,Payments to main contractor,,,,,,No
The Royal Borough of Kensington and Chelsea,RBKC,,Capital Projects,Capital,,MPS Housing Ltd ,1253367,,,,31/01/2020,2200072440,"212,581.68",,Creditors Control : AP GRIR,,,,,,No
The Royal Borough of Kensington and Chelsea,RBKC,,Capital Projects,Capital,,MPS Housing Ltd ,1253367,,,,05/02/2020,2200073367,"75,440.95",,Creditors Control : AP GRIR,,,,,,No
The Royal Borough of Kensington and Chelsea,RBKC,,Capital Projects,Capital,,MPS Housing Ltd ,1253367,,,,14/02/2020,2200076409,"52,544.87",,Creditors Control : AP GRIR,,,,,,No
The Royal Borough of Kensington and Chelsea,RBKC,,Capital Projects,Capital,,MPS Housing Ltd ,1253367,,,,02/03/2020,2200080139,"285,182.03",,Creditors Control : AP GRIR,,,,,,No
The Royal Borough of Kensington and Chelsea,RBKC,,Capital Projects,Capital,,MPS Housing Ltd ,1253367,,,,09/03/2020,2200082094,"37,666.00",,Creditors Control : AP GRIR,,,,,,No
The Royal Borough of Kensington and Chelsea,RBKC,,Capital Projects,Capital,,MPS Housing Ltd ,1253367,,,,24/03/2020,2200085373,"399,571.69",,Creditors Control : AP GRIR,,,,,,No
The Royal Borough of Kensington and Chelsea,RBKC,,Capital Projects,Capital,,Mti Technology Limited,1230721,,,,19/03/2020,2200084445,"18,000.00",,Creditors Control : AP GRIR,,,,,,No
The Royal Borough of Kensington and Chelsea,RBKC,,Capital Projects,Capital,,Maccreanor Lavington Ltd,1262735,,,,09/01/2020,2200067884,"43,452.50",,Site Works,,,,,,No
The Royal Borough of Kensington and Chelsea,RBKC,,Capital Projects,Capital,,Maccreanor Lavington Ltd,1262735,,,,03/02/2020,2200072709,"44,961.00",,Site Works,,,,,,No
The Royal Borough of Kensington and Chelsea,RBKC,,Capital Projects,Capital,,Maccreanor Lavington Ltd,1262735,,,,03/03/2020,2200080501,"6,302.00",,Site Works,,,,,,No
The Royal Borough of Kensington and Chelsea,RBKC,,Capital Projects,Capital,,Maccreanor Lavington Ltd,1262735,,,,03/03/2020,2200080502,"25,000.00",,Site Works,,,,,,No
The Royal Borough of Kensington and Chelsea,RBKC,,Capital Projects,Capital,,Maccreanor Lavington Ltd,1262735,,,,04/03/2020,2200080683,"4,500.00",,Site Works,,,,,,No
The Royal Borough of Kensington and Chelsea,RBKC,,Capital Projects,Capital,,Mace Limited ,1230643,,,,10/01/2020,2200068001,"847,308.28",,Construction : enhancements,,,,,,No
The Royal Borough of Kensington and Chelsea,RBKC,,Capital Projects,Capital,,Mace Limited ,1230643,,,,17/02/2020,2200076685,"895,063.77",,Construction : enhancements,,,,,,No
The Royal Borough of Kensington and Chelsea,RBKC,,Capital Projects,Capital,,Mace Limited ,1230643,,,,09/03/2020,2200082064,"1,081,449.93",,Construction : enhancements,,,,,,No
The Royal Borough of Kensington and Chelsea,RBKC,,Capital Projects,Capital,,Malcolm Hollis LLP ,1230657,,,,21/01/2020,2200069714,"3,830.00",,Construction : enhancements,,,,,,No
The Royal Borough of Kensington and Chelsea,RBKC,,Capital Projects,Capital,,Master Locking Systems Ltd,1262396,,,,05/02/2020,2200073341,"5,643.46",,Creditors Control : AP GRIR,,,,,,No
The Royal Borough of Kensington and Chelsea,RBKC,,Capital Projects,Capital,,Michael Page International Recruitment Ltd,1235002,,,,29/01/2020,2200071830,938.16,,Capitalised salaries,,,,,,No
The Royal Borough of Kensington and Chelsea,RBKC,,Capital Projects,Capital,,Michael Page International Recruitment Ltd,1235002,,,,03/02/2020,2200072665,807.86,,Capitalised salaries,,,,,,No
The Royal Borough of Kensington and Chelsea,RBKC,,Capital Projects,Capital,,Michael Page International Recruitment Ltd,1235002,,,,06/02/2020,2200073696,807.86,,Capitalised salaries,,,,,,No
The Royal Borough of Kensington and Chelsea,RBKC,,Capital Projects,Capital,,Michael Page International Recruitment Ltd,1235002,,,,06/02/2020,2200073700,755.74,,Capitalised salaries,,,,,,No
The Royal Borough of Kensington and Chelsea,RBKC,,Capital Projects,Capital,,Michael Page International Recruitment Ltd,1235002,,,,06/02/2020,2200073705,573.32,,Capitalised salaries,,,,,,No
The Royal Borough of Kensington and Chelsea,RBKC,,Capital Projects,Capital,,Michael Page International Recruitment Ltd,1235002,,,,06/02/2020,2200073708,886.04,,Capitalised salaries,,,,,,No
The Royal Borough of Kensington and Chelsea,RBKC,,Capital Projects,Capital,,Michael Page International Recruitment Ltd,1235002,,,,06/02/2020,2200073712,886.04,,Capitalised salaries,,,,,,No
The Royal Borough of Kensington and Chelsea,RBKC,,Capital Projects,Capital,,Michael Page International Recruitment Ltd,1235002,,,,07/02/2020,2200073924,938.16,,Capitalised salaries,,,,,,No
The Royal Borough of Kensington and Chelsea,RBKC,,Capital Projects,Capital,,Michael Page International Recruitment Ltd,1235002,,,,13/02/2020,2200075989,859.98,,Capitalised salaries,,,,,,No
The Royal Borough of Kensington and Chelsea,RBKC,,Capital Projects,Capital,,Michael Page International Recruitment Ltd,1235002,,,,19/02/2020,2200077988,912.1,,Capitalised salaries,,,,,,No
The Royal Borough of Kensington and Chelsea,RBKC,,Capital Projects,Capital,,Michael Page International Recruitment Ltd,1235002,,,,03/03/2020,2200080417,938.16,,Capitalised salaries,,,,,,No
The Royal Borough of Kensington and Chelsea,RBKC,,Capital Projects,Capital,,Michael Page International Recruitment Ltd,1235002,,,,12/03/2020,2200082928,"1,016.34",,Capitalised salaries,,,,,,No
The Royal Borough of Kensington and Chelsea,RBKC,,Capital Projects,Capital,,Michael Page International Recruitment Ltd,1235002,,,,18/03/2020,2200084168,938.16,,Capitalised salaries,,,,,,No
The Royal Borough of Kensington and Chelsea,RBKC,,Capital Projects,Capital,,Michael Page International Recruitment Ltd,1235002,,,,31/03/2020,2200087048,781.8,,Capitalised salaries,,,,,,No
The Royal Borough of Kensington and Chelsea,RBKC,,Capital Projects,Capital,,Millwood Servicing Ltd ,1253373,,,,12/03/2020,3110168246,"3,964.29",,Payments to main contractor,,,,,,No
The Royal Borough of Kensington and Chelsea,RBKC,,Capital Projects,Capital,,Montagu Evans LLP ,1230713,,,,12/03/2020,2200082933,"5,521.06",,Other Consultants,,,,,,No
The Royal Borough of Kensington and Chelsea,RBKC,,Capital Projects,Capital,,Morgan Sindall Construction,1260362,,,,05/02/2020,2200073266,"181,829.85",,Other Consultants,,,,,,No
The Royal Borough of Kensington and Chelsea,RBKC,,Capital Projects,Capital,,Morgan Sindall Construction,1260362,,,,27/02/2020,2200079549,"607,949.44",,Other Consultants,,,,,,No
The Royal Borough of Kensington and Chelsea,RBKC,,Capital Projects,Capital,,Morgan Sindall Construction,1260362,,,,19/03/2020,2200084234,"476,984.93",,Other Consultants,,,,,,No
The Royal Borough of Kensington and Chelsea,RBKC,,Capital Projects,Capital,,Mulalley & Company Ltd ,1231403,,,,13/02/2020,3110158924,"91,278.45",,Payments to main contractor,,,,,,No
The Royal Borough of Kensington and Chelsea,RBKC,,Capital Projects,Capital,,Mulalley & Company Ltd ,1231403,,,,13/02/2020,3110158925,"86,006.92",,Payments to main contractor,,,,,,No
The Royal Borough of Kensington and Chelsea,RBKC,,Capital Projects,Capital,,Mulalley & Company Ltd ,1231403,,,,17/03/2020,3110170644,"206,522.21",,Payments to main contractor,,,,,,No
The Royal Borough of Kensington and Chelsea,RBKC,,Capital Projects,Capital,,Murrill Construction Ltd ,1231405,,,,05/02/2020,2200073430,799.86,,Construction : enhancements,,,,,,No
The Royal Borough of Kensington and Chelsea,RBKC,,Capital Projects,Capital,,Murrill Construction Ltd ,1231405,,,,05/02/2020,2200073431,"1,999.14",,Construction : enhancements,,,,,,No
The Royal Borough of Kensington and Chelsea,RBKC,,Capital Projects,Capital,,NAL Ltd ,1235045,,,,28/02/2020,2200079876,"1,191.02",,Payments to main contractor,,,,,,No
The Royal Borough of Kensington and Chelsea,RBKC,,Capital Projects,Capital,,NCW Associates Ltd T/A SVM Associates,1230750,,,,06/01/2020,2200066910,840,,Other Consultants,,,,,,No
The Royal Borough of Kensington and Chelsea,RBKC,,Capital Projects,Capital,,NPS Property Consultants Ltd ,1235087,,,,03/01/2020,2200066559,"2,475.50",,Site Works,,,,,,No
The Royal Borough of Kensington and Chelsea,RBKC,,Capital Projects,Capital,,NPS Property Consultants Ltd ,1235087,,,,04/02/2020,2200072897,"3,000.50",,Site Works,,,,,,No
The Royal Borough of Kensington and Chelsea,RBKC,,Capital Projects,Capital,,NPS Property Consultants Ltd ,1235087,,,,03/03/2020,2200080519,"4,575.50",,Site Works,,,,,,No
The Royal Borough of Kensington and Chelsea,RBKC,,Capital Projects,Capital,,Netcall Telecom Ltd ,1230760,,,,14/02/2020,2200076327,528,,Creditors Control : AP GRIR,,,,,,No
The Royal Borough of Kensington and Chelsea,RBKC,,Capital Projects,Capital,,Norman Rourke Pryme Limited ,1230778,,,,28/01/2020,2200071581,777,,Payments to main contractor,,,,,,No
The Royal Borough of Kensington and Chelsea,RBKC,,Capital Projects,Capital,,Norman Rourke Pryme Limited ,1230778,,,,05/02/2020,2200073246,777,,Payments to main contractor,,,,,,No
The Royal Borough of Kensington and Chelsea,RBKC,,Capital Projects,Capital,,Norman Rourke Pryme Limited ,1230778,,,,04/03/2020,2200080659,777,,Payments to main contractor,,,,,,No
The Royal Borough of Kensington and Chelsea,RBKC,,Capital Projects,Capital,,Norman Rourke Pryme Limited ,1230778,,,,30/03/2020,2200086674,777,,Payments to main contractor,,,,,,No
The Royal Borough of Kensington and Chelsea,RBKC,,Capital Projects,Capital,,Notting Hill Housing Trust ,1235078,,,,09/03/2020,2200081929,"1,006,886.63",,Acquisition of Land & Buildings,,,,,,No
The Royal Borough of Kensington and Chelsea,RBKC,,Capital Projects,Capital,,Oakland Building Services Ltd ,1231410,,,,03/01/2020,2200066558,"5,740.00",,Professional Fees : Non Legal,,,,,,No
The Royal Borough of Kensington and Chelsea,RBKC,,Capital Projects,Capital,,Oakland Building Services Ltd ,1231410,,,,06/03/2020,2200081371,"4,920.00",,Professional Fees : Non Legal,,,,,,No
The Royal Borough of Kensington and Chelsea,RBKC,,Capital Projects,Capital,,Oakleaf Surveying Ltd ,1230946,,,,07/01/2020,2200067217,"3,747.00",,Professional Fees : Non Legal,,,,,,No
The Royal Borough of Kensington and Chelsea,RBKC,,Capital Projects,Capital,,Oakleaf Surveying Ltd ,1230946,,,,17/03/2020,2200083889,"13,840.00",,Professional Fees : Non Legal,,,,,,No
The Royal Borough of Kensington and Chelsea,RBKC,,Capital Projects,Capital,,Octavia Foundation ,1230953,,,,05/02/2020,2200073225,"54,183.74",,Acquisition of Land & Buildings,,,,,,No
The Royal Borough of Kensington and Chelsea,RBKC,,Capital Projects,Capital,,Octavia Housing (Main Account) ,1230955,,,,31/03/2020,2200086947,"7,171.00",,Payments to main contractor,,,,,,No
The Royal Borough of Kensington and Chelsea,RBKC,,Capital Projects,Capital,,Octavia Housing (Main Account) ,1230955,,,,31/03/2020,2200086948,"10,066.00",,Payments to main contractor,,,,,,No
The Royal Borough of Kensington and Chelsea,RBKC,,Capital Projects,Capital,,Octavia Housing (Main Account) ,1230955,,,,31/03/2020,2200086949,"10,205.00",,Payments to main contractor,,,,,,No
The Royal Borough of Kensington and Chelsea,RBKC,,Capital Projects,Capital,,Octavia Housing (Main Account) ,1230955,,,,31/03/2020,2200086950,"15,533.00",,Payments to main contractor,,,,,,No
The Royal Borough of Kensington and Chelsea,RBKC,,Capital Projects,Capital,,Octavia Housing (Main Account) ,1230955,,,,31/03/2020,2200086952,"11,280.00",,Payments to main contractor,,,,,,No
The Royal Borough of Kensington and Chelsea,RBKC,,Capital Projects,Capital,,Octavia Housing (Main Account) ,1230955,,,,31/03/2020,2200086953,"14,280.00",,Payments to main contractor,,,,,,No
The Royal Borough of Kensington and Chelsea,RBKC,,Capital Projects,Capital,,Octavia Housing (Main Account) ,1230955,,,,31/03/2020,2200086955,"10,370.00",,Payments to main contractor,,,,,,No
The Royal Borough of Kensington and Chelsea,RBKC,,Capital Projects,Capital,,Openview Security Solutions Ltd ,1231414,,,,24/01/2020,3110152193,"35,488.36",,Payments to main contractor,,,,,,No
The Royal Borough of Kensington and Chelsea,RBKC,,Capital Projects,Capital,,Openview Security Solutions Ltd ,1231414,,,,25/03/2020,3110173694,"118,984.46",,Payments to main contractor,,,,,,No
The Royal Borough of Kensington and Chelsea,RBKC,,Capital Projects,Capital,,Openview Security Solutions Ltd ,1231414,,,,25/03/2020,3110173695,"39,082.59",,Payments to main contractor,,,,,,No
The Royal Borough of Kensington and Chelsea,RBKC,,Capital Projects,Capital,,Orpwood Associates Limited ,1255586,,,,13/01/2020,2200068316,"2,532.00",,Professional Fees : Non Legal,,,,,,No
The Royal Borough of Kensington and Chelsea,RBKC,,Capital Projects,Capital,,Osborn Associates Ltd,1262963,,,,03/01/2020,2200066560,"9,800.00",,Construction : enhancements,,,,,,No
The Royal Borough of Kensington and Chelsea,RBKC,,Capital Projects,Capital,,Osborn Associates Ltd,1262963,,,,04/02/2020,2200072893,"1,400.00",,Construction : enhancements,,,,,,No
The Royal Borough of Kensington and Chelsea,RBKC,,Capital Projects,Capital,,Osborn Associates Ltd,1262963,,,,05/02/2020,2200073427,"10,780.00",,Site Works,,,,,,No
The Royal Borough of Kensington and Chelsea,RBKC,,Capital Projects,Capital,,Osborn Associates Ltd,1262963,,,,14/02/2020,2200076491,"4,100.00",,Other Consultants,,,,,,No
The Royal Borough of Kensington and Chelsea,RBKC,,Capital Projects,Capital,,Osborn Associates Ltd,1262963,,,,14/02/2020,2200076492,980,,Site Works,,,,,,No
The Royal Borough of Kensington and Chelsea,RBKC,,Capital Projects,Capital,,Osborn Associates Ltd,1262963,,,,27/02/2020,2200079547,"7,700.00",,Construction : enhancements,,,,,,No
The Royal Borough of Kensington and Chelsea,RBKC,,Capital Projects,Capital,,Osborn Associates Ltd,1262963,,,,26/03/2020,2200086051,"11,900.00",,Construction : enhancements,,,,,,No
The Royal Borough of Kensington and Chelsea,RBKC,,Capital Projects,Capital,,Pcw Drain Service Limited,1265005,,,,14/02/2020,2200076489,"3,750.00",,Payments to main contractor,,,,,,No
The Royal Borough of Kensington and Chelsea,RBKC,,Capital Projects,Capital,,Pcw Drain Service Limited,1265005,,,,24/02/2020,2200078620,"1,500.00",,Payments to main contractor,,,,,,No
The Royal Borough of Kensington and Chelsea,RBKC,,Capital Projects,Capital,,Pcw Drain Service Limited,1265005,,,,24/02/2020,2200078621,"1,500.00",,Payments to main contractor,,,,,,No
The Royal Borough of Kensington and Chelsea,RBKC,,Capital Projects,Capital,,Pcw Drain Service Limited,1265005,,,,24/02/2020,2200078622,"1,500.00",,Payments to main contractor,,,,,,No
The Royal Borough of Kensington and Chelsea,RBKC,,Capital Projects,Capital,,Pcw Drain Service Limited,1265005,,,,24/02/2020,2200078623,"1,500.00",,Payments to main contractor,,,,,,No
The Royal Borough of Kensington and Chelsea,RBKC,,Capital Projects,Capital,,Paragon Building Consultancy Ltd ,1230988,,,,25/02/2020,2200078882,"3,000.00",,Creditors Control : AP GRIR,,,,,,No
The Royal Borough of Kensington and Chelsea,RBKC,,Capital Projects,Capital,,Pders Key Lifts ,1231418,,,,17/03/2020,3110171501,"1,914.02",,Payments to main contractor,,,,,,No
The Royal Borough of Kensington and Chelsea,RBKC,,Capital Projects,Capital,,Pders Key Lifts ,1231418,,,,17/03/2020,3110171503,"1,745.25",,Payments to main contractor,,,,,,No
The Royal Borough of Kensington and Chelsea,RBKC,,Capital Projects,Capital,,Pders Key Lifts ,1231418,,,,17/03/2020,3110171504,"2,384.37",,Payments to main contractor,,,,,,No
The Royal Borough of Kensington and Chelsea,RBKC,,Capital Projects,Capital,,Pders Key Lifts ,1231418,,,,17/03/2020,3110171506,596,,Payments to main contractor,,,,,,No
The Royal Borough of Kensington and Chelsea,RBKC,,Capital Projects,Capital,,Pders Key Lifts ,1231418,,,,17/03/2020,3110171507,596,,Payments to main contractor,,,,,,No
The Royal Borough of Kensington and Chelsea,RBKC,,Capital Projects,Capital,,Pders Key Lifts ,1231418,,,,17/03/2020,3110171508,596,,Payments to main contractor,,,,,,No
The Royal Borough of Kensington and Chelsea,RBKC,,Capital Projects,Capital,,Pders Key Lifts ,1231418,,,,17/03/2020,3110171512,"2,691.16",,Payments to main contractor,,,,,,No
The Royal Borough of Kensington and Chelsea,RBKC,,Capital Projects,Capital,,Pders Key Lifts ,1231418,,,,17/03/2020,3110171513,725,,Payments to main contractor,,,,,,No
The Royal Borough of Kensington and Chelsea,RBKC,,Capital Projects,Capital,,Peter Randall-Page Studio,1264908,,,,17/02/2020,2200076920,"4,000.00",,Creditors Control : AP GRIR,,,,,,No
The Royal Borough of Kensington and Chelsea,RBKC,,Capital Projects,Capital,,Peter Randall-Page Studio,1264908,,,,28/02/2020,2200079844,"1,000.00",,Creditors Control : AP GRIR,,,,,,No
The Royal Borough of Kensington and Chelsea,RBKC,,Capital Projects,Capital,,Philip Pank Partnership,1264258,,,,03/01/2020,2200066491,"4,800.00",,Other Consultants,,,,,,No
The Royal Borough of Kensington and Chelsea,RBKC,,Capital Projects,Capital,,Philip Pank Partnership,1264258,,,,06/03/2020,2200081406,"4,240.00",,Other Consultants,,,,,,No
The Royal Borough of Kensington and Chelsea,RBKC,,Capital Projects,Capital,,Plowman Craven Ltd ,1235174,,,,05/02/2020,2200073426,"2,420.00",,Payments to main contractor,,,,,,No
The Royal Borough of Kensington and Chelsea,RBKC,,Capital Projects,Capital,,Potter Raper Partnership,1235188,,,,24/02/2020,2200078609,"8,580.00",,Professional Fees : Non Legal,,,,,,No
The Royal Borough of Kensington and Chelsea,RBKC,,Capital Projects,Capital,,Preferred Access Ramp Sys,1231420,,,,31/03/2020,2200087005,"2,382.00",,Payments to main contractor,,,,,,No
The Royal Borough of Kensington and Chelsea,RBKC,,Capital Projects,Capital,,Project Centre ,1235205,,,,19/02/2020,2200077954,"3,940.00",,Engineering Consultancy Fees,,,,,,No
The Royal Borough of Kensington and Chelsea,RBKC,,Capital Projects,Capital,,Project Centre ,1235205,,,,26/02/2020,2200079408,"2,480.00",,Engineering Consultancy Fees,,,,,,No
The Royal Borough of Kensington and Chelsea,RBKC,,Capital Projects,Capital,,Project Centre ,1235205,,,,05/03/2020,2200081176,"10,968.95",,Other Consultants,,,,,,No
The Royal Borough of Kensington and Chelsea,RBKC,,Capital Projects,Capital,,Project Centre ,1235205,,,,11/03/2020,2200082772,"11,028.18",,Engineering Consultancy Fees,,,,,,No
The Royal Borough of Kensington and Chelsea,RBKC,,Capital Projects,Capital,,Project Centre ,1235205,,,,27/03/2020,2200086223,"3,452.50",,Engineering Consultancy Fees,,,,,,No
The Royal Borough of Kensington and Chelsea,RBKC,,Capital Projects,Capital,,Project Centre ,1235205,,,,31/03/2020,2200086995,"3,140.00",,Engineering Consultancy Fees,,,,,,No
The Royal Borough of Kensington and Chelsea,RBKC,,Capital Projects,Capital,,Prontaprint Kensington ,1235206,,,,16/01/2020,2200069056,"1,008.00",,Creditors Control : AP GRIR,,,,,,No
The Royal Borough of Kensington and Chelsea,RBKC,,Capital Projects,Capital,,Prontaprint Kensington ,1235206,,,,27/01/2020,2200071063,"1,152.00",,Creditors Control : AP GRIR,,,,,,No
The Royal Borough of Kensington and Chelsea,RBKC,,Capital Projects,Capital,,Prontaprint Kensington ,1235206,,,,27/01/2020,2200071064,972,,Creditors Control : AP GRIR,,,,,,No
The Royal Borough of Kensington and Chelsea,RBKC,,Capital Projects,Capital,,Prontaprint Kensington ,1235206,,,,27/01/2020,2200071066,684,,Creditors Control : AP GRIR,,,,,,No
The Royal Borough of Kensington and Chelsea,RBKC,,Capital Projects,Capital,,Proun Architects ,1235211,,,,02/03/2020,2200080087,"2,500.00",,Other Consultants,,,,,,No
The Royal Borough of Kensington and Chelsea,RBKC,,Capital Projects,Capital,,Prp Architects Llp ,1235213,,,,13/01/2020,2200068425,"21,560.00",,Construction : enhancements,,,,,,No
The Royal Borough of Kensington and Chelsea,RBKC,,Capital Projects,Capital,,Prp Architects Llp ,1235213,,,,13/01/2020,2200068426,"6,321.00",,Construction : enhancements,,,,,,No
The Royal Borough of Kensington and Chelsea,RBKC,,Capital Projects,Capital,,Prp Architects Llp ,1235213,,,,13/01/2020,2200068427,"2,322.00",,Construction : enhancements,,,,,,No
The Royal Borough of Kensington and Chelsea,RBKC,,Capital Projects,Capital,,Prp Architects Llp ,1235213,,,,13/01/2020,2200068428,"15,631.58",,Construction : enhancements,,,,,,No
The Royal Borough of Kensington and Chelsea,RBKC,,Capital Projects,Capital,,Prp Architects Llp ,1235213,,,,10/02/2020,2200074267,"24,520.00",,Construction : enhancements,,,,,,No
The Royal Borough of Kensington and Chelsea,RBKC,,Capital Projects,Capital,,Prp Architects Llp ,1235213,,,,13/02/2020,2200075977,"12,685.00",,Construction : enhancements,,,,,,No
The Royal Borough of Kensington and Chelsea,RBKC,,Capital Projects,Capital,,Prp Architects Llp ,1235213,,,,06/03/2020,2200081528,"13,168.75",,Construction : enhancements,,,,,,No
The Royal Borough of Kensington and Chelsea,RBKC,,Capital Projects,Capital,,Prp Architects Llp ,1235213,,,,06/03/2020,2200081529,"25,017.40",,Construction : enhancements,,,,,,No
The Royal Borough of Kensington and Chelsea,RBKC,,Capital Projects,Capital,,Prp Architects Llp ,1235213,,,,06/03/2020,2200081531,"2,821.88",,Construction : enhancements,,,,,,No
The Royal Borough of Kensington and Chelsea,RBKC,,Capital Projects,Capital,,Prp Architects Llp ,1235213,,,,25/03/2020,2200085545,"33,240.00",,Construction : enhancements,,,,,,No
The Royal Borough of Kensington and Chelsea,RBKC,,Capital Projects,Capital,,Pudsey Diamond Engineerin,1231076,,,,17/02/2020,2200076690,"3,197.94",,Construction : enhancements,,,,,,No
The Royal Borough of Kensington and Chelsea,RBKC,,Capital Projects,Capital,,Quinn London Ltd,1235230,,,,23/01/2020,2200070427,"55,596.52",,Other Consultants,,,,,,No
The Royal Borough of Kensington and Chelsea,RBKC,,Capital Projects,Capital,,Quinn London Ltd,1235230,,,,10/02/2020,2200074265,"150,096.43",,Other Consultants,,,,,,No
The Royal Borough of Kensington and Chelsea,RBKC,,Capital Projects,Capital,,Quinn London Ltd,1235230,,,,11/03/2020,2200082578,"239,423.43",,Other Consultants,,,,,,No
The Royal Borough of Kensington and Chelsea,RBKC,,Capital Projects,Capital,,R Benson Property Mainten,1266216,,,,31/03/2020,2200087054,"35,472.33",,Payments to main contractor,,,,,,No
The Royal Borough of Kensington and Chelsea,RBKC,,Capital Projects,Capital,,Rtc Safety Surfaces Ltd,1231425,,,,14/02/2020,2200076343,"4,292.00",,Construction : enhancements,,,,,,No
The Royal Borough of Kensington and Chelsea,RBKC,,Capital Projects,Capital,,Rtc Safety Surfaces Ltd,1231425,,,,14/02/2020,2200076398,593,,Construction : enhancements,,,,,,No
The Royal Borough of Kensington and Chelsea,RBKC,,Capital Projects,Capital,,Rbkc Colville Primary School ,1236100,,,,03/02/2020,2200072616,"34,184.00",,Site Works,,,,,,No
The Royal Borough of Kensington and Chelsea,RBKC,,Capital Projects,Capital,,Rbkc Colville Primary School ,1236100,,,,04/02/2020,2200072983,"51,350.00",,Payments to main contractor,,,,,,No
The Royal Borough of Kensington and Chelsea,RBKC,,Capital Projects,Capital,,Restore Harrow Green Limi,1266104,,,,27/02/2020,2200079643,"1,335.00",,Other Consultants,,,,,,No
The Royal Borough of Kensington and Chelsea,RBKC,,Capital Projects,Capital,,Restore Harrow Green Limi,1266104,,,,27/02/2020,2200079644,947,,Other Consultants,,,,,,No
The Royal Borough of Kensington and Chelsea,RBKC,,Capital Projects,Capital,,Restore Harrow Green Limi,1266104,,,,27/02/2020,2200079645,955,,Other Consultants,,,,,,No
The Royal Borough of Kensington and Chelsea,RBKC,,Capital Projects,Capital,,Restore Harrow Green Limi,1266104,,,,28/02/2020,2200079803,"2,628.00",,Other Consultants,,,,,,No
The Royal Borough of Kensington and Chelsea,RBKC,,Capital Projects,Capital,,Ridge And Partners LLP ,1231273,,,,13/02/2020,3110158926,"1,000.00",,Professional Fees : Non Legal,,,,,,No
The Royal Borough of Kensington and Chelsea,RBKC,,Capital Projects,Capital,,Ridge And Partners LLP ,1231273,,,,27/03/2020,3110173905,"2,071.70",,Professional Fees : Non Legal,,,,,,No
The Royal Borough of Kensington and Chelsea,RBKC,,Capital Projects,Capital,,Rooff Ltd,1265589,,,,11/02/2020,2200074553,"1,500.00",,Payments to main contractor,,,,,,No
The Royal Borough of Kensington and Chelsea,RBKC,,Capital Projects,Capital,,S W Security Ltd ,1235300,,,,24/02/2020,2200078616,"2,767.00",,Payments to main contractor,,,,,,No
The Royal Borough of Kensington and Chelsea,RBKC,,Capital Projects,Capital,,S W Security Ltd ,1235300,,,,13/03/2020,2200083241,"11,365.00",,Payments to main contractor,,,,,,No
The Royal Borough of Kensington and Chelsea,RBKC,,Capital Projects,Capital,,Santia Asbestos Management Ltd ,1255345,,,,10/01/2020,2200068057,"26,793.75",,Other Consultants,,,,,,No
The Royal Borough of Kensington and Chelsea,RBKC,,Capital Projects,Capital,,Santia Asbestos Management Ltd ,1255345,,,,29/01/2020,2200071870,"6,456.25",,Other Consultants,,,,,,No
The Royal Borough of Kensington and Chelsea,RBKC,,Capital Projects,Capital,,Redact Details,1231428,,,,10/02/2020,2200074308,"1,710.00",,Construction : enhancements,,,,,,No
The Royal Borough of Kensington and Chelsea,RBKC,,Capital Projects,Capital,,Redact Details,1231428,,,,23/03/2020,2200084981,"1,710.00",,Construction : enhancements,,,,,,No
The Royal Borough of Kensington and Chelsea,RBKC,,Capital Projects,Capital,,Sharon Hosegood Associate,1266048,,,,03/02/2020,2200072649,800,,Creditors Control : AP GRIR,,,,,,No
The Royal Borough of Kensington and Chelsea,RBKC,,Capital Projects,Capital,,Sharon Hosegood Associate,1266048,,,,03/02/2020,2200072649,650,,Creditors Control : AP GRIR,,,,,,No
The Royal Borough of Kensington and Chelsea,RBKC,,Capital Projects,Capital,,Sharpe Pritchard ,1235336,,,,08/01/2020,2200067656,680,,Legal Fees & expenses,,,,,,No
The Royal Borough of Kensington and Chelsea,RBKC,,Capital Projects,Capital,,Siemens Plc,1256361,,,,16/01/2020,2200069003,"100,000.00",,Construction : enhancements,,,,,,No
The Royal Borough of Kensington and Chelsea,RBKC,,Capital Projects,Capital,,Siemens Plc,1256361,,,,17/01/2020,2200069173,"300,000.00",,Construction : enhancements,,,,,,No
The Royal Borough of Kensington and Chelsea,RBKC,,Capital Projects,Capital,,Skilled Careers Limited,1265647,,,,27/02/2020,2200079556,"1,257.60",,Planned Maintenance (CM),,,,,,No
The Royal Borough of Kensington and Chelsea,RBKC,,Capital Projects,Capital,,Skilled Careers Limited,1265647,,,,05/03/2020,2200081119,"1,048.00",,Planned Maintenance (CM),,,,,,No
The Royal Borough of Kensington and Chelsea,RBKC,,Capital Projects,Capital,,Skilled Careers Limited,1265647,,,,20/03/2020,2200084553,"1,048.00",,Planned Maintenance (CM),,,,,,No
The Royal Borough of Kensington and Chelsea,RBKC,,Capital Projects,Capital,,Skilled Careers Limited,1265647,,,,20/03/2020,2200084573,"1,048.00",,Planned Maintenance (CM),,,,,,No
The Royal Borough of Kensington and Chelsea,RBKC,,Capital Projects,Capital,,Skilled Careers Limited,1265647,,,,27/03/2020,2200086221,"1,048.00",,Planned Maintenance (CM),,,,,,No
The Royal Borough of Kensington and Chelsea,RBKC,,Capital Projects,Capital,,Southdowns Environmental,1267100,,,,12/03/2020,2200082888,"2,980.00",,Site Works,,,,,,No
The Royal Borough of Kensington and Chelsea,RBKC,,Capital Projects,Capital,,St Francis Rc Primary School ,1232833,,,,16/03/2020,2200083380,"21,300.00",,Payments to main contractor,,,,,,No
The Royal Borough of Kensington and Chelsea,RBKC,,Capital Projects,Capital,,St Francis Rc Primary School ,1232833,,,,18/03/2020,2200084136,"7,937.00",,Payments to main contractor,,,,,,No
The Royal Borough of Kensington and Chelsea,RBKC,,Capital Projects,Capital,,St Marys RC Primary School ,1232843,,,,18/02/2020,2200077510,"34,847.06",,Payments to main contractor,,,,,,No
The Royal Borough of Kensington and Chelsea,RBKC,,Capital Projects,Capital,,St Thomas C E Primary School ,1236114,,,,20/03/2020,2200084609,"30,000.00",,Payments to main contractor,,,,,,No
The Royal Borough of Kensington and Chelsea,RBKC,,Capital Projects,Capital,,Redact Details,1266191,,,,10/02/2020,2200074268,"1,500.00",,Site Works,,,,,,No
The Royal Borough of Kensington and Chelsea,RBKC,,Capital Projects,Capital,,Streetmaster (South Wales) Ltd,1231577,,,,30/03/2020,2200086623,"20,393.00",,Payments to main contractor,,,,,,No
The Royal Borough of Kensington and Chelsea,RBKC,,Capital Projects,Capital,,Tbap Trust ,1231607,,,,16/01/2020,2200069062,"17,472.39",,Payments to main contractor,,,,,,No
The Royal Borough of Kensington and Chelsea,RBKC,,Capital Projects,Capital,,Tbap Trust ,1231607,,,,24/02/2020,2200078627,"2,362.00",,Payments to main contractor,,,,,,No
The Royal Borough of Kensington and Chelsea,RBKC,,Capital Projects,Capital,,Tempus Facilities Management Ltd ,1235468,,,,25/03/2020,2200085536,"20,000.00",,Special Maintenance,,,,,,No
The Royal Borough of Kensington and Chelsea,RBKC,,Capital Projects,Capital,,Tempus Facilities Management Ltd ,1235468,,,,25/03/2020,2200085537,"40,000.00",,Special Maintenance,,,,,,No
The Royal Borough of Kensington and Chelsea,RBKC,,Capital Projects,Capital,,Tfl Surface Transport ,1235474,,,,24/01/2020,2200070776,"2,033.08",,Engineering Consultancy Fees,,,,,,No
The Royal Borough of Kensington and Chelsea,RBKC,,Capital Projects,Capital,,The Ecology Consultancy L,1261375,,,,12/03/2020,2200082919,"1,234.75",,Creditors Control : AP GRIR,,,,,,No
The Royal Borough of Kensington and Chelsea,RBKC,,Capital Projects,Capital,,Thomas Jones Primary School ,1232848,,,,14/02/2020,2200076469,"4,500.00",,Payments to main contractor,,,,,,No
The Royal Borough of Kensington and Chelsea,RBKC,,Capital Projects,Capital,,Thomas Jones Primary School ,1232848,,,,14/02/2020,2200076470,"4,500.00",,Payments to main contractor,,,,,,No
The Royal Borough of Kensington and Chelsea,RBKC,,Capital Projects,Capital,,Thomas Jones Primary School ,1232848,,,,14/02/2020,2200076471,"4,500.00",,Payments to main contractor,,,,,,No
The Royal Borough of Kensington and Chelsea,RBKC,,Capital Projects,Capital,,Thomas Jones Primary School ,1232848,,,,17/02/2020,2200077148,"4,500.00",,Payments to main contractor,,,,,,No
The Royal Borough of Kensington and Chelsea,RBKC,,Capital Projects,Capital,,Traffic Survey Partners Ltd ,1235572,,,,27/02/2020,2200079640,"1,080.00",,Construction : enhancements,,,,,,No
The Royal Borough of Kensington and Chelsea,RBKC,,Capital Projects,Capital,,Transport For London,1231876,,,,22/01/2020,2200070057,"82,546.00",,Payments to main contractor,,,,,,No
The Royal Borough of Kensington and Chelsea,RBKC,,Capital Projects,Capital,,Transport For London,1231876,,,,26/03/2020,2200086044,"1,026.00",,Design Consultant,,,,,,No
The Royal Borough of Kensington and Chelsea,RBKC,,Capital Projects,Capital,,Trueform Engineering Ltd ,1231440,,,,06/02/2020,2200073763,"5,362.84",,Payments to main contractor,,,,,,No
The Royal Borough of Kensington and Chelsea,RBKC,,Capital Projects,Capital,,Uk Power Networks(Operations) Ltd ,1231441,,,,02/01/2020,2200066383,"5,717.00",,Payments to main contractor,,,,,,No
The Royal Borough of Kensington and Chelsea,RBKC,,Capital Projects,Capital,,Uk Power Networks(Operations) Ltd ,1231441,,,,02/01/2020,2200066387,"3,279.00",,Payments to main contractor,,,,,,No
The Royal Borough of Kensington and Chelsea,RBKC,,Capital Projects,Capital,,VIKFIX LTD,1258701,,,,20/03/2020,2200084588,"54,832.00",,Special Maintenance,,,,,,No
The Royal Borough of Kensington and Chelsea,RBKC,,Capital Projects,Capital,,VIKFIX LTD,1258701,,,,20/03/2020,2200084589,"15,000.00",,Payments to main contractor,,,,,,No
The Royal Borough of Kensington and Chelsea,RBKC,,Capital Projects,Capital,,VIKFIX LTD,1258701,,,,20/03/2020,2200084591,"29,342.00",,Special Maintenance,,,,,,No
The Royal Borough of Kensington and Chelsea,RBKC,,Capital Projects,Capital,,VIKFIX LTD,1258701,,,,20/03/2020,2200084593,"13,068.00",,Special Maintenance,,,,,,No
The Royal Borough of Kensington and Chelsea,RBKC,,Capital Projects,Capital,,VIKFIX LTD,1258701,,,,20/03/2020,2200084594,"12,600.00",,Payments to main contractor,,,,,,No
The Royal Borough of Kensington and Chelsea,RBKC,,Capital Projects,Capital,,VIKFIX LTD,1258701,,,,20/03/2020,2200084595,"6,200.00",,Payments to main contractor,,,,,,No
The Royal Borough of Kensington and Chelsea,RBKC,,Capital Projects,Capital,,VIKFIX LTD,1258701,,,,20/03/2020,2200084596,"30,696.00",,Special Maintenance,,,,,,No
The Royal Borough of Kensington and Chelsea,RBKC,,Capital Projects,Capital,,VIKFIX LTD,1258701,,,,20/03/2020,2200084597,"44,904.00",,Special Maintenance,,,,,,No
The Royal Borough of Kensington and Chelsea,RBKC,,Capital Projects,Capital,,VIKFIX LTD,1258701,,,,20/03/2020,2200084599,"4,600.00",,Payments to main contractor,,,,,,No
The Royal Borough of Kensington and Chelsea,RBKC,,Capital Projects,Capital,,VIKFIX LTD,1258701,,,,20/03/2020,2200084600,"6,700.00",,Payments to main contractor,,,,,,No
The Royal Borough of Kensington and Chelsea,RBKC,,Capital Projects,Capital,,VIKFIX LTD,1258701,,,,20/03/2020,2200084601,"34,984.00",,Special Maintenance,,,,,,No
The Royal Borough of Kensington and Chelsea,RBKC,,Capital Projects,Capital,,VIKFIX LTD,1258701,,,,20/03/2020,2200084602,"30,656.00",,Special Maintenance,,,,,,No
The Royal Borough of Kensington and Chelsea,RBKC,,Capital Projects,Capital,,VIKFIX LTD,1258701,,,,20/03/2020,2200084603,"5,600.00",,Payments to main contractor,,,,,,No
The Royal Borough of Kensington and Chelsea,RBKC,,Capital Projects,Capital,,Venn Group Ltd ,1231925,,,,14/01/2020,2200068713,759,,Professional Fees : Non Legal,,,,,,No
The Royal Borough of Kensington and Chelsea,RBKC,,Capital Projects,Capital,,Wates Construction Ltd ,1235637,,,,14/02/2020,2200076490,"8,415.14",,Other Consultants,,,,,,No
The Royal Borough of Kensington and Chelsea,RBKC,,Capital Projects,Capital,,Westcotec Ltd,1260284,,,,26/03/2020,2200086056,"5,700.00",,Payments to main contractor,,,,,,No
The Royal Borough of Kensington and Chelsea,RBKC,,Capital Projects,Capital,,Wicksteed Leisure Ltd ,1231962,,,,19/02/2020,2200077948,"5,095.50",,Creditors Control : AP GRIR,,,,,,No
The Royal Borough of Kensington and Chelsea,RBKC,,Capital Projects,Capital,,Woodscape Limited,1266958,,,,26/03/2020,2200086071,"1,727.90",,Construction : enhancements,,,,,,No
The Royal Borough of Kensington and Chelsea,RBKC,,Capital Projects,Capital,,Woodscape Limited,1266958,,,,30/03/2020,2200086581,568,,Creditors Control : AP GRIR,,,,,,No
The Royal Borough of Kensington and Chelsea,RBKC,,Capital Projects,Capital,,Camlin Lonsdale Projects Ltd T/A Camlin Lonsdale,1233056,,,,29/01/2020,2200071880,746,,Creditors Control : AP GRIR,,,,,,No
The Royal Borough of Kensington and Chelsea,RBKC,,Capital Projects,Capital,,I-Transport Llp,1266004,,,,04/02/2020,2200073059,"1,081.50",,Site Works,,,,,,No
The Royal Borough of Kensington and Chelsea,RBKC,,Capital Projects,Capital,,I-Transport Llp,1266004,,,,12/02/2020,2200074923,"2,349.25",,Site Works,,,,,,No
The Royal Borough of Kensington and Chelsea,RBKC,,Grenfell Team,Grenfell Care & Support Assistant Dirctr,,City Of Westminster ,1231771,,,,31/01/2020,2200072389,"9,595.79",,Creditors Control : AP GRIR,,,,,,No
The Royal Borough of Kensington and Chelsea,RBKC,,Grenfell Team,Grenfell Care & Support Assistant Dirctr,,City Of Westminster ,1231771,,,,31/01/2020,2200072389,"8,722.32",,Creditors Control : AP GRIR,,,,,,No
The Royal Borough of Kensington and Chelsea,RBKC,,Grenfell Team,Grenfell Care & Support Assistant Dirctr,,City Of Westminster ,1231771,,,,31/01/2020,2200072389,"77,542.50",,Creditors Control : AP GRIR,,,,,,No
The Royal Borough of Kensington and Chelsea,RBKC,,Resources & Assets,Corporate Items,,Environment Agency ,1230799,,,,29/01/2020,3110153830,"55,451.25",,Levies,,,,,,No
The Royal Borough of Kensington and Chelsea,RBKC,,Resources & Assets,Corporate Items,,Greater London Authority (Levy Payments Only) ,1231779,,,,07/02/2020,3110157191,"141,981.10",,Levies,,,,,,No
The Royal Borough of Kensington and Chelsea,RBKC,,Resources & Assets,Corporate Items,,Greater London Authority (Levy Payments Only) ,1231779,,,,16/03/2020,3110169175,"141,981.10",,Levies,,,,,,No
The Royal Borough of Kensington and Chelsea,RBKC,,Resources & Assets,Corporate Items,,London Councils ,1231827,,,,11/02/2020,2200074500,"50,173.00",,Levies,,,,,,No
The Royal Borough of Kensington and Chelsea,RBKC,,Resources & Assets,Corporate Items,,London Councils ,1231827,,,,04/03/2020,2200080954,"29,420.00",,Subscriptions,,,,,,No
The Royal Borough of Kensington and Chelsea,RBKC,,Resources & Assets,Corporate Items,,Transport For London ,1231875,,,,11/02/2020,3110158124,"2,138,634.00",,Levies,,,,,,No
The Royal Borough of Kensington and Chelsea,RBKC,,Statutory Year End Accounting,Statutory Year End Accounting,,Carter Jonas Llp ,1233297,,,,31/03/2020,2200087043,"1,350.00",,Creditors Control : AP GRIR,,,,,,No
The Royal Borough of Kensington and Chelsea,RBKC,,Grenfell Team,Grenfell Executive Director,,BT Global Services ,1233001,,,,25/02/2020,2200079048,630,,Telephone : Rentals,,,,,,No
The Royal Borough of Kensington and Chelsea,RBKC,,Grenfell Team,Grenfell Executive Director,,Mitchell Damon Ltd ,1254304,,,,03/02/2020,2200072631,"2,250.00",,Training related expenditure,,,,,,No
The Royal Borough of Kensington and Chelsea,RBKC,,Grenfell Team,Grenfell Care & Support Assistant Dirctr,,Khoo Teck Puat UK Foundation ,1230545,,,,28/02/2020,3110163731,"53,460.00",,Premises Rent,,,,,,No
The Royal Borough of Kensington and Chelsea,RBKC,,Grenfell Team,Grenfell Care & Support Assistant Dirctr,,Khoo Teck Puat UK Foundation ,1230545,,,,28/02/2020,3110163731,"6,764.10",,Service Charges : Premises,,,,,,No
The Royal Borough of Kensington and Chelsea,RBKC,,Grenfell Team,Grenfell Resources and Assets,,Penna Plc ,1231010,,,,07/01/2020,2200067404,"7,475.00",,Creditors Control : AP GRIR,,,,,,No
The Royal Borough of Kensington and Chelsea,RBKC,,Grenfell Team,Grenfell Resources and Assets,,Penna Plc ,1231010,,,,07/01/2020,2200067405,"12,500.00",,Creditors Control : AP GRIR,,,,,,No
The Royal Borough of Kensington and Chelsea,RBKC,,Grenfell Team,Grenfell Resources and Assets,,Penna Plc ,1231010,,,,07/01/2020,2200067415,"7,762.50",,Creditors Control : AP GRIR,,,,,,No
The Royal Borough of Kensington and Chelsea,RBKC,,Grenfell Team,Grenfell Resources and Assets,,Penna Plc ,1231010,,,,08/01/2020,2200067503,"7,200.00",,Agency Staff,,,,,,No
The Royal Borough of Kensington and Chelsea,RBKC,,Grenfell Team,Grenfell Resources and Assets,,Penna Plc ,1231010,,,,05/02/2020,2200073542,"9,000.00",,Agency Staff,,,,,,No
The Royal Borough of Kensington and Chelsea,RBKC,,Grenfell Team,Grenfell Resources and Assets,,Penna Plc ,1231010,,,,07/02/2020,2200074005,"11,385.00",,Creditors Control : AP GRIR,,,,,,No
The Royal Borough of Kensington and Chelsea,RBKC,,Grenfell Team,Grenfell Resources and Assets,,Penna Plc ,1231010,,,,10/02/2020,2200074262,"8,222.50",,Creditors Control : AP GRIR,,,,,,No
The Royal Borough of Kensington and Chelsea,RBKC,,Grenfell Team,Grenfell Resources and Assets,,Penna Plc ,1231010,,,,10/02/2020,2200074282,"13,750.00",,Creditors Control : AP GRIR,,,,,,No
The Royal Borough of Kensington and Chelsea,RBKC,,Grenfell Team,Grenfell Resources and Assets,,Penna Plc ,1231010,,,,06/03/2020,2200081380,"7,475.00",,Creditors Control : AP GRIR,,,,,,No
The Royal Borough of Kensington and Chelsea,RBKC,,Grenfell Team,Grenfell Resources and Assets,,Penna Plc ,1231010,,,,06/03/2020,2200081381,"10,000.00",,Creditors Control : AP GRIR,,,,,,No
The Royal Borough of Kensington and Chelsea,RBKC,,Grenfell Team,Grenfell Resources and Assets,,Penna Plc ,1231010,,,,06/03/2020,2200081382,"10,350.00",,Creditors Control : AP GRIR,,,,,,No
The Royal Borough of Kensington and Chelsea,RBKC,,Grenfell Team,Grenfell Resources and Assets,,Penna Plc ,1231010,,,,12/03/2020,2200082889,"12,000.00",,Agency Staff,,,,,,No
The Royal Borough of Kensington and Chelsea,RBKC,,Grenfell Team,Grenfell Resources and Assets,,Vivandex Ltd,1258860,,,,27/01/2020,2200070890,"1,285.02",,Agency Staff,,,,,,No
The Royal Borough of Kensington and Chelsea,RBKC,,Grenfell Team,Grenfell Resources and Assets,,Vivandex Ltd,1258860,,,,12/03/2020,2200082890,"1,700.11",,Agency Staff,,,,,,No
The Royal Borough of Kensington and Chelsea,RBKC,,Grenfell Team,Grenfell Resources and Assets,,Vivandex Ltd,1258860,,,,29/03/2020,2200086509,"2,301.20",,Agency Staff,,,,,,No
The Royal Borough of Kensington and Chelsea,RBKC,,Grenfell Team,Grenfell Care & Support Assistant Dirctr,,Khoo Teck Puat UK Foundation ,1230545,,,,28/02/2020,3110163728,"6,611.10",,Service Charges : Premises,,,,,,No
The Royal Borough of Kensington and Chelsea,RBKC,,Grenfell Team,Grenfell Care & Support Assistant Dirctr,,Khoo Teck Puat UK Foundation ,1230545,,,,28/02/2020,3110163728,"51,366.00",,Premises Rent,,,,,,No
The Royal Borough of Kensington and Chelsea,RBKC,,Grenfell Team,Grenfell Care & Support Assistant Dirctr,,Chelsea & Westminster Hospital NHS Foundation Trust,1232021,,,,03/02/2020,2200072612,"4,533.01",,Creditors Control : AP GRIR,,,,,,No
The Royal Borough of Kensington and Chelsea,RBKC,,Grenfell Team,Grenfell Care & Support Assistant Dirctr,,Redact Details,D000000023,,,,08/01/2020,3110147610,"1,250.00",,Non:Staff Subsistence and Expenses,,,,,,No
The Royal Borough of Kensington and Chelsea,RBKC,,Grenfell Team,Grenfell Care & Support Assistant Dirctr,,Redact Details,D000000023,,,,24/02/2020,3110162065,600,,Non:Staff Subsistence and Expenses,,,,,,No
The Royal Borough of Kensington and Chelsea,RBKC,,Grenfell Team,Grenfell Care & Support Assistant Dirctr,,Redact Details,D000000023,,,,13/03/2020,3110168770,710.36,,Service Charges : Premises,,,,,,No
The Royal Borough of Kensington and Chelsea,RBKC,,Grenfell Team,Grenfell Care & Support Assistant Dirctr,,Prepaid Financial Services Ltd (Corporate Account),1231050,,,,02/03/2020,3110163884,"75,000.00",,Fees,,,,,,No
The Royal Borough of Kensington and Chelsea,RBKC,,Grenfell Team,Grenfell Communications,,London Letterbox Marketing ,1234938,,,,27/01/2020,2200071067,"1,993.88",,Marketing costs,,,,,,No
The Royal Borough of Kensington and Chelsea,RBKC,,Grenfell Team,Grenfell Communications,,London Letterbox Marketing ,1234938,,,,05/02/2020,2200073400,"1,993.88",,Postage and Delivery,,,,,,No
The Royal Borough of Kensington and Chelsea,RBKC,,Grenfell Team,Grenfell Communications,,London Letterbox Marketing ,1234938,,,,10/02/2020,2200074389,"1,993.88",,Postage and Delivery,,,,,,No
The Royal Borough of Kensington and Chelsea,RBKC,,Grenfell Team,Grenfell Communications,,The Language Shop Limited ,1255158,,,,09/03/2020,2200081916,"2,120.00",,Marketing costs,,,,,,No
The Royal Borough of Kensington and Chelsea,RBKC,,Grenfell Team,Grenfell Communications,,Babajani Ltd,1263023,,,,04/02/2020,2200072961,"6,535.00",,Creditors Control : AP GRIR,,,,,,No
The Royal Borough of Kensington and Chelsea,RBKC,,Grenfell Team,Grenfell Communications,,Babajani Ltd,1263023,,,,07/02/2020,2200073903,650,,Creditors Control : AP GRIR,,,,,,No
The Royal Borough of Kensington and Chelsea,RBKC,,Grenfell Team,Grenfell Communications,,Babajani Ltd,1263023,,,,10/02/2020,2200074221,780,,Creditors Control : AP GRIR,,,,,,No
The Royal Borough of Kensington and Chelsea,RBKC,,Grenfell Team,Grenfell Communications,,Babajani Ltd,1263023,,,,19/03/2020,2200084407,"6,000.00",,Creditors Control : AP GRIR,,,,,,No
The Royal Borough of Kensington and Chelsea,RBKC,,Grenfell Team,Grenfell Communications,,London Letterbox Marketing ,1234938,,,,29/01/2020,2200071777,"1,846.19",,Creditors Control : AP GRIR,,,,,,No
The Royal Borough of Kensington and Chelsea,RBKC,,Grenfell Team,Grenfell Communications,,Redact Details,1265072,,,,13/02/2020,2200076030,"12,972.00",,Creditors Control : AP GRIR,,,,,,No
The Royal Borough of Kensington and Chelsea,RBKC,,Grenfell Team,Grenfell Communications,,Central Event Hire Limite,1264733,,,,22/01/2020,2200070138,"1,723.00",,Creditors Control : AP GRIR,,,,,,No
The Royal Borough of Kensington and Chelsea,RBKC,,Grenfell Team,Grenfell Communications,,Central Event Hire Limite,1264733,,,,06/02/2020,2200073638,"1,827.25",,Creditors Control : AP GRIR,,,,,,No
The Royal Borough of Kensington and Chelsea,RBKC,,Grenfell Team,Grenfell Communications,,DA Languages Ltd ,1233749,,,,07/02/2020,2200073870,501.99,,Creditors Control : AP GRIR,,,,,,No
The Royal Borough of Kensington and Chelsea,RBKC,,Grenfell Team,Grenfell Communications,,Ferarts,1235801,,,,02/01/2020,2200066295,"7,000.00",,Creditors Control : AP GRIR,,,,,,No
The Royal Borough of Kensington and Chelsea,RBKC,,Grenfell Team,Grenfell Communications,,Fluid Design Ltd ,1234437,,,,02/03/2020,2200080175,"10,000.00",,Creditors Control : AP GRIR,,,,,,No
The Royal Borough of Kensington and Chelsea,RBKC,,Grenfell Team,Grenfell Communications,,Fluid Design Ltd ,1234437,,,,17/03/2020,2200083737,"10,000.00",,Creditors Control : AP GRIR,,,,,,No
The Royal Borough of Kensington and Chelsea,RBKC,,Grenfell Team,Grenfell Communications,,Fluid Design Ltd ,1234437,,,,17/03/2020,2200083880,"5,000.00",,Hired and Contracted Services,,,,,,No
The Royal Borough of Kensington and Chelsea,RBKC,,Grenfell Team,Grenfell Communications,,Harrow Club W10 ,1230381,,,,04/02/2020,2200072964,500,,Creditors Control : AP GRIR,,,,,,No
The Royal Borough of Kensington and Chelsea,RBKC,,Grenfell Team,Grenfell Communications,,London Audio Visual Ltd,1265436,,,,21/01/2020,2200069736,"3,784.70",,Creditors Control : AP GRIR,,,,,,No
The Royal Borough of Kensington and Chelsea,RBKC,,Grenfell Team,Grenfell Communications,,London Audio Visual Ltd,1265436,,,,21/01/2020,2200069765,"3,115.80",,Creditors Control : AP GRIR,,,,,,No
The Royal Borough of Kensington and Chelsea,RBKC,,Grenfell Team,Grenfell Communications,,London Audio Visual Ltd,1265436,,,,24/01/2020,2200070710,"5,341.10",,Creditors Control : AP GRIR,,,,,,No
The Royal Borough of Kensington and Chelsea,RBKC,,Grenfell Team,Grenfell Communications,,Mind United F.C.,1265413,,,,12/03/2020,2200082917,"10,000.00",,Creditors Control : AP GRIR,,,,,,No
The Royal Borough of Kensington and Chelsea,RBKC,,Grenfell Team,Grenfell Communications,,Optivote Ltd,1263076,,,,21/01/2020,2200069924,"3,000.00",,Hired and Contracted Services,,,,,,No
The Royal Borough of Kensington and Chelsea,RBKC,,Grenfell Team,Grenfell Communications,,Optivote Ltd,1263076,,,,11/02/2020,2200074535,"1,895.00",,Creditors Control : AP GRIR,,,,,,No
The Royal Borough of Kensington and Chelsea,RBKC,,Grenfell Team,Grenfell Communications,,Portobello Business Centre Ltd ,1231045,,,,06/02/2020,2200073632,"15,000.00",,Creditors Control : AP GRIR,,,,,,No
The Royal Borough of Kensington and Chelsea,RBKC,,Grenfell Team,Grenfell Communications,,Redact Details,1265451,,,,05/02/2020,2200073433,891,,Creditors Control : AP GRIR,,,,,,No
The Royal Borough of Kensington and Chelsea,RBKC,,Grenfell Team,Grenfell Communications,,Redact Details,1265451,,,,25/02/2020,2200078924,990,,Creditors Control : AP GRIR,,,,,,No
The Royal Borough of Kensington and Chelsea,RBKC,,Grenfell Team,Grenfell Communications,,Shared Assets CIC,1262694,,,,03/03/2020,2200080374,"2,000.00",,Creditors Control : AP GRIR,,,,,,No
The Royal Borough of Kensington and Chelsea,RBKC,,Grenfell Team,Grenfell Communications,,St Clement And St James PCC ,1235394,,,,26/02/2020,2200079425,983,,Creditors Control : AP GRIR,,,,,,No
The Royal Borough of Kensington and Chelsea,RBKC,,Grenfell Team,Grenfell Communications,,Sukha Consulting,1266634,,,,25/02/2020,2200078890,"15,000.00",,Creditors Control : AP GRIR,,,,,,No
The Royal Borough of Kensington and Chelsea,RBKC,,Grenfell Team,Grenfell Communications,,The Clement James Centre ,1235487,,,,26/02/2020,2200079422,586,,Creditors Control : AP GRIR,,,,,,No
The Royal Borough of Kensington and Chelsea,RBKC,,Grenfell Team,Grenfell Resources and Assets,,City Of Westminster ,1231771,,,,03/03/2020,2200080489,"13,580.00",,Coroner's Expenses,,,,,,No
The Royal Borough of Kensington and Chelsea,RBKC,,Grenfell Team,Grenfell Care & Support Assistant Dirctr,,Greenwich Leisure Ltd (Gll) ,1234678,,,,25/02/2020,2200078877,"7,630.20",,Hired and Contracted Services,,,,,,No
The Royal Borough of Kensington and Chelsea,RBKC,,Grenfell Team,Grenfell Care & Support Assistant Dirctr,,Incorpore Limited,1262303,,,,27/01/2020,2200071052,"9,414.90",,Hired and Contracted Services,,,,,,No
The Royal Borough of Kensington and Chelsea,RBKC,,Grenfell Team,Grenfell Care & Support Assistant Dirctr,,Incorpore Limited,1262303,,,,25/02/2020,2200078878,"16,073.50",,Hired and Contracted Services,,,,,,No
The Royal Borough of Kensington and Chelsea,RBKC,,Grenfell Team,Grenfell Care & Support Assistant Dirctr,,Explore Languages,1263503,,,,22/01/2020,2200070238,"1,020.00",,Creditors Control : AP GRIR,,,,,,No
The Royal Borough of Kensington and Chelsea,RBKC,,Grenfell Team,Grenfell Care & Support Assistant Dirctr,,For Go Karting For Fun Lt,1267011,,,,20/03/2020,2200084683,609,,Creditors Control : AP GRIR,,,,,,No
The Royal Borough of Kensington and Chelsea,RBKC,,Grenfell Team,Grenfell Care & Support Assistant Dirctr,,Redact Details,1265922,,,,03/02/2020,2200072714,"2,000.00",,Creditors Control : AP GRIR,,,,,,No
The Royal Borough of Kensington and Chelsea,RBKC,,Grenfell Team,Grenfell Care & Support Assistant Dirctr,,Meadowview Child Care,1266110,,,,19/03/2020,2200084446,"4,000.00",,Creditors Control : AP GRIR,,,,,,No
The Royal Borough of Kensington and Chelsea,RBKC,,Grenfell Team,Grenfell Care & Support Assistant Dirctr,,Once Upon a Time Day Nurseries,1262271,,,,05/03/2020,2200081088,785.5,,Creditors Control : AP GRIR,,,,,,No
The Royal Borough of Kensington and Chelsea,RBKC,,Grenfell Team,Grenfell Care & Support Assistant Dirctr,,Action For Children Services Ltd,1232313,,,,22/01/2020,2200070075,"158,119.75",,Hired and Contracted Services,,,,,,No
The Royal Borough of Kensington and Chelsea,RBKC,,Grenfell Team,Grenfell Care & Support Assistant Dirctr,,City Of Westminster ,1231771,,,,09/03/2020,2200082120,"77,542.50",,Creditors Control : AP GRIR,,,,,,No
The Royal Borough of Kensington and Chelsea,RBKC,,Grenfell Team,Grenfell Care & Support Assistant Dirctr,,DA Languages Ltd ,1233749,,,,03/02/2020,2200072618,762.9,,Interpreters Fees,,,,,,No
The Royal Borough of Kensington and Chelsea,RBKC,,Grenfell Team,Grenfell Care & Support Assistant Dirctr,,DA Languages Ltd ,1233749,,,,25/02/2020,2200079062,996.46,,Interpreters Fees,,,,,,No
The Royal Borough of Kensington and Chelsea,RBKC,,Grenfell Team,Grenfell Care & Support Assistant Dirctr,,DA Languages Ltd ,1233749,,,,19/03/2020,2200084294,835.75,,Interpreters Fees,,,,,,No
The Royal Borough of Kensington and Chelsea,RBKC,,Grenfell Team,Grenfell Care & Support Assistant Dirctr,,Netcall Telecom Ltd ,1230760,,,,22/01/2020,2200070136,"31,920.00",,IT Software Maintenance,,,,,,No
The Royal Borough of Kensington and Chelsea,RBKC,,Grenfell Team,Grenfell Care & Support Assistant Dirctr,,Odgers Interim T/A Irg Advisors Llp,1235093,,,,08/01/2020,2200067670,"10,363.71",,Agency Staff,,,,,,No
The Royal Borough of Kensington and Chelsea,RBKC,,Grenfell Team,Grenfell Care & Support Assistant Dirctr,,Odgers Interim T/A Irg Advisors Llp,1235093,,,,14/01/2020,2200068657,"9,870.20",,Agency Staff,,,,,,No
The Royal Borough of Kensington and Chelsea,RBKC,,Grenfell Team,Grenfell Care & Support Assistant Dirctr,,Odgers Interim T/A Irg Advisors Llp,1235093,,,,06/03/2020,2200081421,"11,350.73",,Agency Staff,,,,,,No
The Royal Borough of Kensington and Chelsea,RBKC,,Grenfell Team,Grenfell Care & Support Assistant Dirctr,,Odgers Interim T/A Irg Advisors Llp,1235093,,,,09/03/2020,2200081883,"9,870.20",,Agency Staff,,,,,,No
The Royal Borough of Kensington and Chelsea,RBKC,,Grenfell Team,Grenfell Care & Support Assistant Dirctr,,Prepaid Financial Services Ltd (Corporate Account),1231050,,,,05/03/2020,2200081366,"3,750.00",,Hired and Contracted Services,,,,,,No
The Royal Borough of Kensington and Chelsea,RBKC,,Grenfell Team,Grenfell Care & Support Assistant Dirctr,,App Workshops Ltd,1258682,,,,03/03/2020,2200080487,"2,400.00",,Education Support,,,,,,No
The Royal Borough of Kensington and Chelsea,RBKC,,Grenfell Team,Grenfell Care & Support Assistant Dirctr,,The City Literature Insti,1263294,,,,13/01/2020,2200068431,579,,Education Support,,,,,,No
The Royal Borough of Kensington and Chelsea,RBKC,,Grenfell Team,Grenfell Care & Support Assistant Dirctr,,We Are Digital Training L,1261383,,,,19/02/2020,2200077848,"7,807.50",,Bought In Professional Services : Other E28,,,,,,No
The Royal Borough of Kensington and Chelsea,RBKC,,Grenfell Team,Grenfell Care & Support Assistant Dirctr,,We Are Digital Training L,1261383,,,,26/02/2020,2200079234,"2,602.50",,Bought In Professional Services : Other E28,,,,,,No
The Royal Borough of Kensington and Chelsea,RBKC,,Grenfell Team,Grenfell Resources and Assets,,Basis Ltd ,1232709,,,,22/01/2020,2200070149,"2,975.00",,Creditors Control : AP GRIR,,,,,,No
The Royal Borough of Kensington and Chelsea,RBKC,,Grenfell Team,Grenfell Resources and Assets,,JARRETT CONSULTING LTD,1263384,,,,22/01/2020,2200070135,"19,978.66",,Fees,,,,,,No
The Royal Borough of Kensington and Chelsea,RBKC,,Grenfell Team,Grenfell Resources and Assets,,JARRETT CONSULTING LTD,1263384,,,,17/03/2020,2200083786,"22,064.02",,Creditors Control : AP GRIR,,,,,,No
The Royal Borough of Kensington and Chelsea,RBKC,,Grenfell Team,Grenfell Resources and Assets,,Public Intelligence Ltd,1263415,,,,07/01/2020,2200067216,"9,690.00",,Fees,,,,,,No
The Royal Borough of Kensington and Chelsea,RBKC,,Grenfell Team,Grenfell Resources and Assets,,Whatever Next Productions Ltd ,1235658,,,,28/02/2020,2200079834,"9,100.00",,Hired and Contracted Services,,,,,,No
The Royal Borough of Kensington and Chelsea,RBKC,,Grenfell Team,Grenfell Resources and Assets,,Whatever Next Productions Ltd ,1235658,,,,31/03/2020,2200087055,"8,775.00",,Hired and Contracted Services,,,,,,No
The Royal Borough of Kensington and Chelsea,RBKC,,Grenfell Team,Grenfell Housing Needs and Supply,,69 Elsham Road Limited,1266205,,,,13/03/2020,2200083215,921,,Service Charges : Premises,,,,,,No
The Royal Borough of Kensington and Chelsea,RBKC,,Grenfell Team,Grenfell Housing Needs and Supply,,A2Dominion Housing Group,1232099,,,,28/02/2020,2200079793,"1,700.30",,Creditors Control : AP GRIR,,,,,,No
The Royal Borough of Kensington and Chelsea,RBKC,,Grenfell Team,Grenfell Housing Needs and Supply,,Best Gapp & Cassells ,1232732,,,,13/03/2020,2200083214,646.1,,Service Charges : Premises,,,,,,No
The Royal Borough of Kensington and Chelsea,RBKC,,Grenfell Team,Grenfell Housing Needs and Supply,,Burlington Estates (London) Ltd,1233017,,,,18/03/2020,3110172018,"2,115.00",,Service Charges : Premises,,,,,,No
The Royal Borough of Kensington and Chelsea,RBKC,,Grenfell Team,Grenfell Housing Needs and Supply,,City Of Westminster ,1231771,,,,17/01/2020,3110149399,"1,694.11",,Service Charges : Premises,,,,,,No
The Royal Borough of Kensington and Chelsea,RBKC,,Grenfell Team,Grenfell Housing Needs and Supply,,City Of Westminster ,1231771,,,,17/01/2020,3110149402,"1,894.29",,Service Charges : Premises,,,,,,No
The Royal Borough of Kensington and Chelsea,RBKC,,Grenfell Team,Grenfell Housing Needs and Supply,,City Of Westminster ,1231771,,,,20/01/2020,3110149492,"1,114.61",,Service Charges : Premises,,,,,,No
The Royal Borough of Kensington and Chelsea,RBKC,,Grenfell Team,Grenfell Housing Needs and Supply,,City Of Westminster ,1231771,,,,10/03/2020,2200082291,"2,116.94",,Creditors Control : AP GRIR,,,,,,No
The Royal Borough of Kensington and Chelsea,RBKC,,Grenfell Team,Grenfell Housing Needs and Supply,,City Of Westminster ,1231771,,,,23/03/2020,3110172720,"1,111.34",,Service Charges : Premises,,,,,,No
The Royal Borough of Kensington and Chelsea,RBKC,,Grenfell Team,Grenfell Housing Needs and Supply,,City Of Westminster ,1231771,,,,23/03/2020,3110172775,"1,846.22",,Service Charges : Premises,,,,,,No
The Royal Borough of Kensington and Chelsea,RBKC,,Grenfell Team,Grenfell Housing Needs and Supply,,City Of Westminster ,1231771,,,,24/03/2020,3110173078,"1,630.07",,Service Charges : Premises,,,,,,No
The Royal Borough of Kensington and Chelsea,RBKC,,Grenfell Team,Grenfell Housing Needs and Supply,,City Of Westminster ,1231771,,,,24/03/2020,3110173125,"1,950.70",,Service Charges : Premises,,,,,,No
The Royal Borough of Kensington and Chelsea,RBKC,,Grenfell Team,Grenfell Housing Needs and Supply,,Danebury (Kensington) Ltd ,1233756,,,,10/01/2020,3110147954,750,,Service Charges : Premises,,,,,,No
The Royal Borough of Kensington and Chelsea,RBKC,,Grenfell Team,Grenfell Housing Needs and Supply,,G&Hz Limited,1254849,,,,27/02/2020,3110163655,936.18,,Service Charges : Premises,,,,,,No
The Royal Borough of Kensington and Chelsea,RBKC,,Grenfell Team,Grenfell Housing Needs and Supply,,RMG London - Central & Metropolitan,D000000023,,,,10/01/2020,3110147927,731.68,,Service Charges : Premises,,,,,,No
The Royal Borough of Kensington and Chelsea,RBKC,,Grenfell Team,Grenfell Housing Needs and Supply,,Simon Levy Associates,D000000023,,,,10/01/2020,3110147933,"1,800.17",,Hired and Contracted Services,,,,,,No
The Royal Borough of Kensington and Chelsea,RBKC,,Grenfell Team,Grenfell Housing Needs and Supply,,RMG London - Central & Metropolitan,D000000023,,,,10/01/2020,3110147934,939.84,,Service Charges : Premises,,,,,,No
The Royal Borough of Kensington and Chelsea,RBKC,,Grenfell Team,Grenfell Housing Needs and Supply,,RMG London - Central & Metropolitan,D000000023,,,,10/01/2020,3110147937,850.84,,Service Charges : Premises,,,,,,No
The Royal Borough of Kensington and Chelsea,RBKC,,Grenfell Team,Grenfell Housing Needs and Supply,,Estmanco (Porchester Triangle) Ltd,D000000023,,,,10/01/2020,3110147948,850,,Service Charges : Premises,,,,,,No
The Royal Borough of Kensington and Chelsea,RBKC,,Grenfell Team,Grenfell Housing Needs and Supply,,North Central Property Management,D000000023,,,,10/01/2020,3110147950,"1,200.00",,Service Charges : Premises,,,,,,No
The Royal Borough of Kensington and Chelsea,RBKC,,Grenfell Team,Grenfell Housing Needs and Supply,,297 Westbourne (residents ) Limited,D000000023,,,,22/01/2020,3110151701,"1,080.00",,Service Charges : Premises,,,,,,No
The Royal Borough of Kensington and Chelsea,RBKC,,Grenfell Team,Grenfell Housing Needs and Supply,,HATHERLEY TWELVE COLLECTIVE LIMITED,D000000023,,,,05/02/2020,3110156523,800,,Service Charges : Premises,,,,,,No
The Royal Borough of Kensington and Chelsea,RBKC,,Grenfell Team,Grenfell Housing Needs and Supply,,Redact Details,D000000023,,,,21/02/2020,3110161943,"2,940.36",,Service Charges : Premises,,,,,,No
The Royal Borough of Kensington and Chelsea,RBKC,,Grenfell Team,Grenfell Housing Needs and Supply,,Rendall & Rittner Limited,D000000023,,,,27/02/2020,3110163631,"1,503.84",,Service Charges : Premises,,,,,,No
The Royal Borough of Kensington and Chelsea,RBKC,,Grenfell Team,Grenfell Housing Needs and Supply,,RMG London - Central & Metropolitan,D000000023,,,,27/02/2020,3110163637,731.68,,Service Charges : Premises,,,,,,No
The Royal Borough of Kensington and Chelsea,RBKC,,Grenfell Team,Grenfell Housing Needs and Supply,,RMG London - Central & Metropolitan,D000000023,,,,27/02/2020,3110163639,939.84,,Service Charges : Premises,,,,,,No
The Royal Borough of Kensington and Chelsea,RBKC,,Grenfell Team,Grenfell Housing Needs and Supply,,Together Property Management Limite,D000000023,,,,27/02/2020,3110163640,904.06,,Service Charges : Premises,,,,,,No
The Royal Borough of Kensington and Chelsea,RBKC,,Grenfell Team,Grenfell Housing Needs and Supply,,RMG London - Central & Metropolitan,D000000023,,,,27/02/2020,3110163641,885.59,,Service Charges : Premises,,,,,,No
The Royal Borough of Kensington and Chelsea,RBKC,,Grenfell Team,Grenfell Housing Needs and Supply,,RMG London - Central & Metropolitan,D000000023,,,,02/03/2020,3110163967,731.68,,Service Charges : Premises,,,,,,No
The Royal Borough of Kensington and Chelsea,RBKC,,Grenfell Team,Grenfell Housing Needs and Supply,,RMG London - Central & Metropolitan,D000000023,,,,02/03/2020,3110163968,939.84,,Service Charges : Premises,,,,,,No
The Royal Borough of Kensington and Chelsea,RBKC,,Grenfell Team,Grenfell Housing Needs and Supply,,RMG London - Central & Metropolitan,D000000023,,,,02/03/2020,3110163971,885.59,,Service Charges : Premises,,,,,,No
The Royal Borough of Kensington and Chelsea,RBKC,,Grenfell Team,Grenfell Housing Needs and Supply,,Warmans Asset Management,D000000023,,,,10/03/2020,3110167893,"2,375.00",,Service Charges : Premises,,,,,,No
The Royal Borough of Kensington and Chelsea,RBKC,,Grenfell Team,Grenfell Housing Needs and Supply,,Peabody,D000000023,,,,13/03/2020,3110168773,"1,053.84",,Service Charges : Premises,,,,,,No
The Royal Borough of Kensington and Chelsea,RBKC,,Grenfell Team,Grenfell Housing Needs and Supply,,Urbanpoint Property Management Ltd,D000000023,,,,17/03/2020,3110171228,"1,183.58",,Service Charges : Premises,,,,,,No
The Royal Borough of Kensington and Chelsea,RBKC,,Grenfell Team,Grenfell Housing Needs and Supply,,Notting Hill Home Ownership,D000000023,,,,17/03/2020,3110171229,"1,631.16",,Service Charges : Premises,,,,,,No
The Royal Borough of Kensington and Chelsea,RBKC,,Grenfell Team,Grenfell Housing Needs and Supply,,Notting Hill Home Ownership,D000000023,,,,18/03/2020,3110172012,"1,762.92",,Service Charges : Premises,,,,,,No
The Royal Borough of Kensington and Chelsea,RBKC,,Grenfell Team,Grenfell Housing Needs and Supply,,Notting Hill Home Ownership,D000000023,,,,23/03/2020,3110172712,644.76,,Service Charges : Premises,,,,,,No
The Royal Borough of Kensington and Chelsea,RBKC,,Grenfell Team,Grenfell Housing Needs and Supply,,Orbiton Estates Ralph Court,1235114,,,,29/01/2020,3110153828,"2,235.90",,Service Charges : Premises,,,,,,No
The Royal Borough of Kensington and Chelsea,RBKC,,Grenfell Team,Grenfell Housing Needs and Supply,,Places For People Homes L,1231102,,,,31/03/2020,3110176330,"1,721.52",,Service Charges : Premises,,,,,,No
The Royal Borough of Kensington and Chelsea,RBKC,,Grenfell Team,Grenfell Housing Needs and Supply,,Premier Block Management Ltd ,1257286,,,,02/03/2020,2200080052,"1,044.25",,Service Charges : Premises,,,,,,No
The Royal Borough of Kensington and Chelsea,RBKC,,Grenfell Team,Grenfell Housing Needs and Supply,,Quadrant Property Management Ltd ,1235222,,,,16/03/2020,2200083382,"1,762.00",,Service Charges : Premises,,,,,,No
The Royal Borough of Kensington and Chelsea,RBKC,,Grenfell Team,Grenfell Housing Needs and Supply,,SP Sharkey Consulting Ltd ,1257479,,,,11/02/2020,2200074563,675,,Hired and Contracted Services,,,,,,No
The Royal Borough of Kensington and Chelsea,RBKC,,Grenfell Team,Grenfell Housing Needs and Supply,,SP Sharkey Consulting Ltd ,1257479,,,,11/02/2020,2200074677,562.5,,Hired and Contracted Services,,,,,,No
The Royal Borough of Kensington and Chelsea,RBKC,,Grenfell Team,Grenfell Housing Needs and Supply,,SP Sharkey Consulting Ltd ,1257479,,,,17/02/2020,2200076669,750,,Hired and Contracted Services,,,,,,No
The Royal Borough of Kensington and Chelsea,RBKC,,Grenfell Team,Grenfell Housing Needs and Supply,,SP Sharkey Consulting Ltd ,1257479,,,,18/02/2020,2200077480,562.5,,Hired and Contracted Services,,,,,,No
The Royal Borough of Kensington and Chelsea,RBKC,,Grenfell Team,Grenfell Housing Needs and Supply,,SP Sharkey Consulting Ltd ,1257479,,,,05/03/2020,2200081045,975,,Hired and Contracted Services,,,,,,No
The Royal Borough of Kensington and Chelsea,RBKC,,Grenfell Team,Grenfell Housing Needs and Supply,,Tempus Facilities Management Ltd ,1235468,,,,03/01/2020,2200066514,"5,697.40",,Reactive repairs and maintenance : Buildings,,,,,,No
The Royal Borough of Kensington and Chelsea,RBKC,,Grenfell Team,Grenfell Housing Needs and Supply,,Tempus Facilities Management Ltd ,1235468,,,,03/01/2020,2200066520,812.5,,Reactive repairs and maintenance : Buildings,,,,,,No
The Royal Borough of Kensington and Chelsea,RBKC,,Grenfell Team,Grenfell Housing Needs and Supply,,Tempus Facilities Management Ltd ,1235468,,,,13/01/2020,2200068439,509.38,,Reactive repairs and maintenance : Buildings,,,,,,No
The Royal Borough of Kensington and Chelsea,RBKC,,Grenfell Team,Grenfell Housing Needs and Supply,,Tempus Facilities Management Ltd ,1235468,,,,13/01/2020,2200068440,630.59,,Reactive repairs and maintenance : Buildings,,,,,,No
The Royal Borough of Kensington and Chelsea,RBKC,,Grenfell Team,Grenfell Housing Needs and Supply,,Tempus Facilities Management Ltd ,1235468,,,,13/01/2020,2200068447,"1,355.39",,Reactive repairs and maintenance : Buildings,,,,,,No
The Royal Borough of Kensington and Chelsea,RBKC,,Grenfell Team,Grenfell Housing Needs and Supply,,Tempus Facilities Management Ltd ,1235468,,,,13/01/2020,2200068450,"5,720.00",,Reactive repairs and maintenance : Buildings,,,,,,No
The Royal Borough of Kensington and Chelsea,RBKC,,Grenfell Team,Grenfell Housing Needs and Supply,,Tempus Facilities Management Ltd ,1235468,,,,22/01/2020,2200070182,682.13,,Reactive repairs and maintenance : Buildings,,,,,,No
The Royal Borough of Kensington and Chelsea,RBKC,,Grenfell Team,Grenfell Housing Needs and Supply,,Tempus Facilities Management Ltd ,1235468,,,,05/02/2020,2200073193,"3,606.25",,Reactive repairs and maintenance : Buildings,,,,,,No
The Royal Borough of Kensington and Chelsea,RBKC,,Grenfell Team,Grenfell Housing Needs and Supply,,Tempus Facilities Management Ltd ,1235468,,,,05/02/2020,2200073210,614.5,,Reactive repairs and maintenance : Buildings,,,,,,No
The Royal Borough of Kensington and Chelsea,RBKC,,Grenfell Team,Grenfell Housing Needs and Supply,,Tempus Facilities Management Ltd ,1235468,,,,05/02/2020,2200073214,"1,093.25",,Reactive repairs and maintenance : Buildings,,,,,,No
The Royal Borough of Kensington and Chelsea,RBKC,,Grenfell Team,Grenfell Housing Needs and Supply,,Tempus Facilities Management Ltd ,1235468,,,,05/02/2020,2200073220,862.28,,Reactive repairs and maintenance : Buildings,,,,,,No
The Royal Borough of Kensington and Chelsea,RBKC,,Grenfell Team,Grenfell Housing Needs and Supply,,Tempus Facilities Management Ltd ,1235468,,,,19/02/2020,2200077869,785,,Reactive repairs and maintenance : Buildings,,,,,,No
The Royal Borough of Kensington and Chelsea,RBKC,,Grenfell Team,Grenfell Housing Needs and Supply,,Tempus Facilities Management Ltd ,1235468,,,,19/02/2020,2200077878,624.75,,Reactive repairs and maintenance : Buildings,,,,,,No
The Royal Borough of Kensington and Chelsea,RBKC,,Grenfell Team,Grenfell Housing Needs and Supply,,Tempus Facilities Management Ltd ,1235468,,,,19/02/2020,2200077885,911.63,,Reactive repairs and maintenance : Buildings,,,,,,No
The Royal Borough of Kensington and Chelsea,RBKC,,Grenfell Team,Grenfell Housing Needs and Supply,,Tempus Facilities Management Ltd ,1235468,,,,05/03/2020,2200081022,761.25,,Reactive repairs and maintenance : Buildings,,,,,,No
The Royal Borough of Kensington and Chelsea,RBKC,,Grenfell Team,Grenfell Housing Needs and Supply,,Tempus Facilities Management Ltd ,1235468,,,,09/03/2020,2200081932,500.13,,Reactive repairs and maintenance : Buildings,,,,,,No
The Royal Borough of Kensington and Chelsea,RBKC,,Grenfell Team,Grenfell Housing Needs and Supply,,Tempus Facilities Management Ltd ,1235468,,,,09/03/2020,2200081969,637.5,,Reactive repairs and maintenance : Buildings,,,,,,No
The Royal Borough of Kensington and Chelsea,RBKC,,Grenfell Team,Grenfell Housing Needs and Supply,,Tempus Facilities Management Ltd ,1235468,,,,09/03/2020,2200081998,566.25,,Reactive repairs and maintenance : Buildings,,,,,,No
The Royal Borough of Kensington and Chelsea,RBKC,,Grenfell Team,Grenfell Housing Needs and Supply,,Tempus Facilities Management Ltd ,1235468,,,,24/03/2020,2200085269,705.5,,Reactive repairs and maintenance : Buildings,,,,,,No
The Royal Borough of Kensington and Chelsea,RBKC,,Grenfell Team,Grenfell Housing Needs and Supply,,Tempus Facilities Management Ltd ,1235468,,,,24/03/2020,2200085273,510,,Reactive repairs and maintenance : Buildings,,,,,,No
The Royal Borough of Kensington and Chelsea,RBKC,,Grenfell Team,Grenfell Housing Needs and Supply,,Tempus Facilities Management Ltd ,1235468,,,,24/03/2020,2200085274,"1,291.95",,Reactive repairs and maintenance : Buildings,,,,,,No
The Royal Borough of Kensington and Chelsea,RBKC,,Grenfell Team,Grenfell Housing Needs and Supply,,Tempus Facilities Management Ltd ,1235468,,,,25/03/2020,2200085559,700,,Reactive repairs and maintenance : Buildings,,,,,,No
The Royal Borough of Kensington and Chelsea,RBKC,,Grenfell Team,Care for Grenfell Service Delivery,,Bullrush Services Limited,1259645,,,,09/01/2020,2200067791,"3,850.00",,Agency Staff,,,,,,No
The Royal Borough of Kensington and Chelsea,RBKC,,Grenfell Team,Care for Grenfell Service Delivery,,Bullrush Services Limited,1259645,,,,03/02/2020,2200072751,"5,250.00",,Agency Staff,,,,,,No
The Royal Borough of Kensington and Chelsea,RBKC,,Grenfell Team,Care for Grenfell Service Delivery,,Bullrush Services Limited,1259645,,,,09/03/2020,2200081925,"5,600.00",,Agency Staff,,,,,,No
The Royal Borough of Kensington and Chelsea,RBKC,,Grenfell Team,Care for Grenfell Service Delivery,,Bullrush Services Limited,1259645,,,,27/03/2020,2200086230,"3,850.00",,Agency Staff,,,,,,No
The Royal Borough of Kensington and Chelsea,RBKC,,Grenfell Team,Grenfell Resources and Assets,,Addison Lee ,1232326,,,,21/01/2020,3110151531,660.36,,Fees,,,,,,No
The Royal Borough of Kensington and Chelsea,RBKC,,Grenfell Team,Grenfell Resources and Assets,,Addison Lee ,1232326,,,,19/02/2020,3110161617,702.9,,Fees,,,,,,No
The Royal Borough of Kensington and Chelsea,RBKC,,Grenfell Team,Grenfell Resources and Assets,,Dwf Llp ,1234046,,,,21/02/2020,2200078375,"5,597.35",,Creditors Control : AP GRIR,,,,,,No
The Royal Borough of Kensington and Chelsea,RBKC,,Grenfell Team,Grenfell Resources and Assets,,Shepherdbush Tutors Limited,D000000023,,,,03/01/2020,3110144536,780,,Fees,,,,,,No
The Royal Borough of Kensington and Chelsea,RBKC,,Grenfell Team,Grenfell Resources and Assets,,Anglia Case Management Ltd,D000000023,,,,15/01/2020,3110149145,"1,856.00",,Fees,,,,,,No
The Royal Borough of Kensington and Chelsea,RBKC,,Grenfell Team,Grenfell Resources and Assets,,Redact Details,D000000023,,,,04/02/2020,3110154578,"10,000.00",,Fees,,,,,,No
The Royal Borough of Kensington and Chelsea,RBKC,,Grenfell Team,Grenfell Resources and Assets,,Redact Details,D000000023,,,,12/02/2020,3110158262,"12,500.00",,Fees,,,,,,No
The Royal Borough of Kensington and Chelsea,RBKC,,Grenfell Team,Grenfell Resources and Assets,,Bindmans LLP,D000000023,,,,25/02/2020,3110162423,"5,000.00",,Fees,,,,,,No
The Royal Borough of Kensington and Chelsea,RBKC,,Grenfell Team,Grenfell Resources and Assets,,Redact Details,D000000026,,,,03/01/2020,3110144531,780,,Fees,,,,,,No
The Royal Borough of Kensington and Chelsea,RBKC,,Grenfell Team,Grenfell Resources and Assets,,Redact Details,D000000026,,,,03/01/2020,3110144538,780,,Fees,,,,,,No
The Royal Borough of Kensington and Chelsea,RBKC,,Grenfell Team,Grenfell Resources and Assets,,Redact Details,D000000026,,,,07/01/2020,3110146901,"1,617.80",,Fees,,,,,,No
The Royal Borough of Kensington and Chelsea,RBKC,,Grenfell Team,Grenfell Resources and Assets,,Redact Details,D000000026,,,,07/01/2020,3110146901,"1,671.65",,Fees,,,,,,No
The Royal Borough of Kensington and Chelsea,RBKC,,Grenfell Team,Grenfell Resources and Assets,,Redact Details,D000000026,,,,10/01/2020,3110147928,"10,000.00",,Fees,,,,,,No
The Royal Borough of Kensington and Chelsea,RBKC,,Grenfell Team,Grenfell Resources and Assets,,Redact Details,D000000026,,,,15/01/2020,3110149151,"10,000.00",,Fees,,,,,,No
The Royal Borough of Kensington and Chelsea,RBKC,,Grenfell Team,Grenfell Resources and Assets,,Redact Details,D000000026,,,,16/01/2020,3110149247,"1,659.75",,Fees,,,,,,No
The Royal Borough of Kensington and Chelsea,RBKC,,Grenfell Team,Grenfell Resources and Assets,,Redact Details,D000000026,,,,16/01/2020,3110149256,"10,000.00",,Fees,,,,,,No
The Royal Borough of Kensington and Chelsea,RBKC,,Grenfell Team,Grenfell Resources and Assets,,Redact Details,D000000026,,,,21/01/2020,3110151536,880.61,,Fees,,,,,,No
The Royal Borough of Kensington and Chelsea,RBKC,,Grenfell Team,Grenfell Resources and Assets,,Redact Details,D000000026,,,,21/01/2020,3110151550,579.52,,Fees,,,,,,No
The Royal Borough of Kensington and Chelsea,RBKC,,Grenfell Team,Grenfell Resources and Assets,,Redact Details,D000000026,,,,22/01/2020,3110151696,"2,437.70",,Fees,,,,,,No
The Royal Borough of Kensington and Chelsea,RBKC,,Grenfell Team,Grenfell Resources and Assets,,Redact Details,D000000026,,,,24/01/2020,3110152140,"1,807.80",,Fees,,,,,,No
The Royal Borough of Kensington and Chelsea,RBKC,,Grenfell Team,Grenfell Resources and Assets,,Redact Details,D000000026,,,,29/01/2020,3110153799,"10,000.00",,Fees,,,,,,No
The Royal Borough of Kensington and Chelsea,RBKC,,Grenfell Team,Grenfell Resources and Assets,,Redact Details,D000000026,,,,29/01/2020,3110153804,"10,000.00",,Fees,,,,,,No
The Royal Borough of Kensington and Chelsea,RBKC,,Grenfell Team,Grenfell Resources and Assets,,Redact Details,D000000026,,,,29/01/2020,3110153812,"12,500.00",,Fees,,,,,,No
The Royal Borough of Kensington and Chelsea,RBKC,,Grenfell Team,Grenfell Resources and Assets,,Redact Details,D000000026,,,,31/01/2020,3110154040,607.42,,Fees,,,,,,No
The Royal Borough of Kensington and Chelsea,RBKC,,Grenfell Team,Grenfell Resources and Assets,,Redact Details,D000000026,,,,04/02/2020,3110154580,580,,Fees,,,,,,No
The Royal Borough of Kensington and Chelsea,RBKC,,Grenfell Team,Grenfell Resources and Assets,,Redact Details,D000000026,,,,06/02/2020,3110156731,"2,200.00",,Fees,,,,,,No
The Royal Borough of Kensington and Chelsea,RBKC,,Grenfell Team,Grenfell Resources and Assets,,Redact Details,D000000026,,,,07/02/2020,3110157187,"10,000.00",,Fees,,,,,,No
The Royal Borough of Kensington and Chelsea,RBKC,,Grenfell Team,Grenfell Resources and Assets,,Redact Details,D000000026,,,,11/02/2020,3110157598,"1,758.16",,Fees,,,,,,No
The Royal Borough of Kensington and Chelsea,RBKC,,Grenfell Team,Grenfell Resources and Assets,,Redact Details,D000000026,,,,13/02/2020,3110158987,"1,458.16",,Fees,,,,,,No
The Royal Borough of Kensington and Chelsea,RBKC,,Grenfell Team,Grenfell Resources and Assets,,Redact Details,D000000026,,,,13/02/2020,3110158988,527.35,,Fees,,,,,,No
The Royal Borough of Kensington and Chelsea,RBKC,,Grenfell Team,Grenfell Resources and Assets,,Redact Details,D000000026,,,,13/02/2020,3110159010,792.3,,Fees,,,,,,No
The Royal Borough of Kensington and Chelsea,RBKC,,Grenfell Team,Grenfell Resources and Assets,,Redact Details,D000000026,,,,14/02/2020,3110159155,650.85,,Fees,,,,,,No
The Royal Borough of Kensington and Chelsea,RBKC,,Grenfell Team,Grenfell Resources and Assets,,Redact Details,D000000026,,,,17/02/2020,3110159250,"1,458.16",,Fees,,,,,,No
The Royal Borough of Kensington and Chelsea,RBKC,,Grenfell Team,Grenfell Resources and Assets,,Redact Details,D000000026,,,,17/02/2020,3110159258,"6,504.00",,Fees,,,,,,No
The Royal Borough of Kensington and Chelsea,RBKC,,Grenfell Team,Grenfell Resources and Assets,,Redact Details,D000000026,,,,17/02/2020,3110159259,"1,320.00",,Fees,,,,,,No
The Royal Borough of Kensington and Chelsea,RBKC,,Grenfell Team,Grenfell Resources and Assets,,Redact Details,D000000026,,,,19/02/2020,3110161622,"2,080.30",,Fees,,,,,,No
The Royal Borough of Kensington and Chelsea,RBKC,,Grenfell Team,Grenfell Resources and Assets,,Redact Details,D000000026,,,,19/02/2020,3110161626,"1,152.25",,Fees,,,,,,No
The Royal Borough of Kensington and Chelsea,RBKC,,Grenfell Team,Grenfell Resources and Assets,,Redact Details,D000000026,,,,20/02/2020,3110161852,966.1,,Fees,,,,,,No
The Royal Borough of Kensington and Chelsea,RBKC,,Grenfell Team,Grenfell Resources and Assets,,Redact Details,D000000026,,,,25/02/2020,3110162420,"1,800.00",,Fees,,,,,,No
The Royal Borough of Kensington and Chelsea,RBKC,,Grenfell Team,Grenfell Resources and Assets,,Redact Details,D000000026,,,,25/02/2020,3110162467,"5,000.00",,Fees,,,,,,No
The Royal Borough of Kensington and Chelsea,RBKC,,Grenfell Team,Grenfell Resources and Assets,,Redact Details,D000000026,,,,25/02/2020,3110162503,757.23,,Fees,,,,,,No
The Royal Borough of Kensington and Chelsea,RBKC,,Grenfell Team,Grenfell Resources and Assets,,Redact Details,D000000026,,,,25/02/2020,3110162503,"2,300.00",,Fees,,,,,,No
The Royal Borough of Kensington and Chelsea,RBKC,,Grenfell Team,Grenfell Resources and Assets,,Redact Details,D000000026,,,,02/03/2020,3110163973,700,,Fees,,,,,,No
The Royal Borough of Kensington and Chelsea,RBKC,,Grenfell Team,Grenfell Resources and Assets,,Redact Details,D000000026,,,,04/03/2020,3110166360,514.17,,Fees,,,,,,No
The Royal Borough of Kensington and Chelsea,RBKC,,Grenfell Team,Grenfell Resources and Assets,,Redact Details,D000000026,,,,04/03/2020,3110166431,770.13,,Fees,,,,,,No
The Royal Borough of Kensington and Chelsea,RBKC,,Grenfell Team,Grenfell Resources and Assets,,Redact Details,D000000026,,,,12/03/2020,3110168167,956.36,,Fees,,,,,,No
The Royal Borough of Kensington and Chelsea,RBKC,,Grenfell Team,Grenfell Resources and Assets,,Redact Details,D000000026,,,,12/03/2020,3110168175,685.15,,Fees,,,,,,No
The Royal Borough of Kensington and Chelsea,RBKC,,Grenfell Team,Grenfell Resources and Assets,,Redact Details,D000000026,,,,13/03/2020,3110168775,"1,647.41",,Fees,,,,,,No
The Royal Borough of Kensington and Chelsea,RBKC,,Grenfell Team,Grenfell Resources and Assets,,Redact Details,D000000026,,,,13/03/2020,3110168776,702.98,,Fees,,,,,,No
The Royal Borough of Kensington and Chelsea,RBKC,,Grenfell Team,Grenfell Resources and Assets,,Redact Details,D000000026,,,,16/03/2020,3110169145,640.46,,Fees,,,,,,No
The Royal Borough of Kensington and Chelsea,RBKC,,Grenfell Team,Grenfell Resources and Assets,,Redact Details,D000000026,,,,17/03/2020,3110171226,"2,940.00",,Fees,,,,,,No
The Royal Borough of Kensington and Chelsea,RBKC,,Grenfell Team,Grenfell Resources and Assets,,Redact Details,D000000026,,,,17/03/2020,3110171226,"2,940.00",,Fees,,,,,,No
The Royal Borough of Kensington and Chelsea,RBKC,,Grenfell Team,Grenfell Resources and Assets,,Redact Details,D000000026,,,,17/03/2020,3110171233,"2,402.25",,Fees,,,,,,No
The Royal Borough of Kensington and Chelsea,RBKC,,Grenfell Team,Grenfell Resources and Assets,,Redact Details,D000000026,,,,20/03/2020,3110172365,"5,000.00",,Fees,,,,,,No
The Royal Borough of Kensington and Chelsea,RBKC,,Grenfell Team,Grenfell Resources and Assets,,Redact Details,D000000026,,,,23/03/2020,3110172703,534.41,,Fees,,,,,,No
The Royal Borough of Kensington and Chelsea,RBKC,,Grenfell Team,Grenfell Resources and Assets,,Redact Details,D000000026,,,,23/03/2020,3110172715,"5,000.00",,Fees,,,,,,No
The Royal Borough of Kensington and Chelsea,RBKC,,Grenfell Team,Grenfell Resources and Assets,,Redact Details,D000000026,,,,24/03/2020,3110173057,"1,079.72",,Fees,,,,,,No
The Royal Borough of Kensington and Chelsea,RBKC,,Grenfell Team,Grenfell Resources and Assets,,Redact Details,D000000026,,,,25/03/2020,3110173680,"12,500.00",,Fees,,,,,,No
The Royal Borough of Kensington and Chelsea,RBKC,,Grenfell Team,Grenfell Resources and Assets,,Redact Details,D000000026,,,,27/03/2020,3110173835,594,,Fees,,,,,,No
The Royal Borough of Kensington and Chelsea,RBKC,,Grenfell Team,Grenfell Resources and Assets,,Jan Harrison Ltd ,1230497,,,,03/01/2020,3110144539,984.8,,Fees,,,,,,No
The Royal Borough of Kensington and Chelsea,RBKC,,Grenfell Team,Grenfell Resources and Assets,,Jan Harrison Ltd ,1230497,,,,15/01/2020,3110149160,954.3,,Fees,,,,,,No
The Royal Borough of Kensington and Chelsea,RBKC,,Grenfell Team,Grenfell Resources and Assets,,Jan Harrison Ltd ,1230497,,,,21/01/2020,3110151527,"1,558.80",,Fees,,,,,,No
The Royal Borough of Kensington and Chelsea,RBKC,,Grenfell Team,Grenfell Resources and Assets,,Jan Harrison Ltd ,1230497,,,,04/02/2020,3110156375,816.7,,Fees,,,,,,No
The Royal Borough of Kensington and Chelsea,RBKC,,Grenfell Team,Grenfell Resources and Assets,,Jan Harrison Ltd ,1230497,,,,05/02/2020,3110156517,"1,008.60",,Insurance Claim Settlements,,,,,,No
The Royal Borough of Kensington and Chelsea,RBKC,,Grenfell Team,Grenfell Resources and Assets,,Jan Harrison Ltd ,1230497,,,,20/02/2020,3110161814,840.78,,Fees,,,,,,No
The Royal Borough of Kensington and Chelsea,RBKC,,Grenfell Team,Grenfell Resources and Assets,,Jan Harrison Ltd ,1230497,,,,20/02/2020,3110161818,"1,540.78",,Fees,,,,,,No
The Royal Borough of Kensington and Chelsea,RBKC,,Grenfell Team,Grenfell Resources and Assets,,Jan Harrison Ltd ,1230497,,,,25/02/2020,3110163026,791,,Fees,,,,,,No
The Royal Borough of Kensington and Chelsea,RBKC,,Grenfell Team,Grenfell Resources and Assets,,Jan Harrison Ltd ,1230497,,,,04/03/2020,3110166383,"1,209.20",,Fees,,,,,,No
The Royal Borough of Kensington and Chelsea,RBKC,,Grenfell Team,Grenfell Resources and Assets,,Jan Harrison Ltd ,1230497,,,,04/03/2020,3110166398,891,,Fees,,,,,,No
The Royal Borough of Kensington and Chelsea,RBKC,,Grenfell Team,Grenfell Resources and Assets,,Jan Harrison Ltd ,1230497,,,,04/03/2020,3110166408,"1,591.00",,Fees,,,,,,No
The Royal Borough of Kensington and Chelsea,RBKC,,Grenfell Team,Grenfell Resources and Assets,,Jan Harrison Ltd ,1230497,,,,12/03/2020,3110168158,805.5,,Fees,,,,,,No
The Royal Borough of Kensington and Chelsea,RBKC,,Grenfell Team,Grenfell Resources and Assets,,Jan Harrison Ltd ,1230497,,,,17/03/2020,3110171531,532.95,,Insurance Costs,,,,,,No
The Royal Borough of Kensington and Chelsea,RBKC,,Grenfell Team,Grenfell Resources and Assets,,Jan Harrison Ltd ,1230497,,,,20/03/2020,3110172417,"1,560.00",,Fees,,,,,,No
The Royal Borough of Kensington and Chelsea,RBKC,,Grenfell Team,Grenfell Resources and Assets,,NeuroHealth Case Management Services,1230765,,,,04/02/2020,3110156372,"1,436.49",,Fees,,,,,,No
The Royal Borough of Kensington and Chelsea,RBKC,,Grenfell Team,Grenfell Resources and Assets,,NeuroHealth Case Management Services,1230765,,,,04/03/2020,3110166400,"1,743.52",,Fees,,,,,,No
The Royal Borough of Kensington and Chelsea,RBKC,,Grenfell Team,Grenfell Site Management Team,,Big Yellow Self Storage North Kensington,1232745,,,,23/01/2020,2200070502,546.33,,Creditors Control : AP GRIR,,,,,,No
The Royal Borough of Kensington and Chelsea,RBKC,,Grenfell Team,Grenfell Site Management Team,,Big Yellow Self Storage North Kensington,1232745,,,,23/01/2020,2200070504,702,,Creditors Control : AP GRIR,,,,,,No
The Royal Borough of Kensington and Chelsea,RBKC,,Grenfell Team,Grenfell Site Management Team,,Kenyon International Emergency Services Ltd,1230539,,,,26/02/2020,2200079180,"36,518.39",,Fees,,,,,,No
The Royal Borough of Kensington and Chelsea,RBKC,,Grenfell Team,Grenfell Site Management Team,,Kenyon International Emergency Services Ltd,1230539,,,,26/02/2020,2200079181,"34,512.54",,Fees,,,,,,No
The Royal Borough of Kensington and Chelsea,RBKC,,Grenfell Team,Grenfell Site Management Team,,Kenyon International Emergency Services Ltd,1230539,,,,28/02/2020,2200079828,"35,950.01",,Fees,,,,,,No
The Royal Borough of Kensington and Chelsea,RBKC,,Grenfell Team,Grenfell Site Management Team,,Kenyon International Emergency Services Ltd,1230539,,,,13/03/2020,2200083191,"14,942.53",,Fees,,,,,,No
The Royal Borough of Kensington and Chelsea,RBKC,,Grenfell Team,Grenfell Site Management Team,,Kenyon International Emergency Services Ltd,1230539,,,,27/03/2020,2200086333,"16,796.98",,Fees,,,,,,No
The Royal Borough of Kensington and Chelsea,RBKC,,Grenfell Team,Grenfell Resources and Assets,,4-5 Gray's Inn Square Limited ,1253572,,,,21/02/2020,2200078416,"3,516.67",,Legal Costs,,,,,,No
The Royal Borough of Kensington and Chelsea,RBKC,,Grenfell Team,Grenfell Resources and Assets,,Bindmans Llp,1232748,,,,29/01/2020,3110153832,"35,000.00",,Legal Costs,,,,,,No
The Royal Borough of Kensington and Chelsea,RBKC,,Grenfell Team,Grenfell Resources and Assets,,Cornerstone Barristers ,1233685,,,,22/01/2020,2200070178,"1,625.00",,Legal Costs,,,,,,No
The Royal Borough of Kensington and Chelsea,RBKC,,Grenfell Team,Grenfell Resources and Assets,,Cornerstone Barristers ,1233685,,,,26/02/2020,2200079348,"2,210.00",,Legal Costs,,,,,,No
The Royal Borough of Kensington and Chelsea,RBKC,,Grenfell Team,Grenfell Resources and Assets,,Cornerstone Barristers ,1233685,,,,17/03/2020,2200083730,"1,500.00",,Legal Costs,,,,,,No
The Royal Borough of Kensington and Chelsea,RBKC,,Grenfell Team,Grenfell Resources and Assets,,Dwf Llp ,1234046,,,,16/01/2020,2200069027,"23,150.88",,Legal Costs,,,,,,No
The Royal Borough of Kensington and Chelsea,RBKC,,Grenfell Team,Grenfell Resources and Assets,,Dwf Llp ,1234046,,,,16/01/2020,2200069028,"26,297.15",,Legal Costs,,,,,,No
The Royal Borough of Kensington and Chelsea,RBKC,,Grenfell Team,Grenfell Resources and Assets,,Dwf Llp ,1234046,,,,17/01/2020,2200069254,"126,847.44",,Legal Costs,,,,,,No
The Royal Borough of Kensington and Chelsea,RBKC,,Grenfell Team,Grenfell Resources and Assets,,Dwf Llp ,1234046,,,,21/01/2020,2200069675,"149,928.01",,Legal Costs,,,,,,No
The Royal Borough of Kensington and Chelsea,RBKC,,Grenfell Team,Grenfell Resources and Assets,,Dwf Llp ,1234046,,,,21/01/2020,2200069766,"46,378.77",,Legal Costs,,,,,,No
The Royal Borough of Kensington and Chelsea,RBKC,,Grenfell Team,Grenfell Resources and Assets,,Dwf Llp ,1234046,,,,21/01/2020,2200069767,"16,967.12",,Legal Costs,,,,,,No
The Royal Borough of Kensington and Chelsea,RBKC,,Grenfell Team,Grenfell Resources and Assets,,Dwf Llp ,1234046,,,,21/01/2020,2200069768,"12,920.00",,Legal Costs,,,,,,No
The Royal Borough of Kensington and Chelsea,RBKC,,Grenfell Team,Grenfell Resources and Assets,,Dwf Llp ,1234046,,,,14/02/2020,2200076333,"5,675.00",,Legal Costs,,,,,,No
The Royal Borough of Kensington and Chelsea,RBKC,,Grenfell Team,Grenfell Resources and Assets,,Dwf Llp ,1234046,,,,14/02/2020,2200076340,"11,053.22",,Legal Costs,,,,,,No
The Royal Borough of Kensington and Chelsea,RBKC,,Grenfell Team,Grenfell Resources and Assets,,Dwf Llp ,1234046,,,,14/02/2020,2200076342,"15,924.35",,Legal Costs,,,,,,No
The Royal Borough of Kensington and Chelsea,RBKC,,Grenfell Team,Grenfell Resources and Assets,,Dwf Llp ,1234046,,,,14/02/2020,2200076345,"186,914.27",,Legal Costs,,,,,,No
The Royal Borough of Kensington and Chelsea,RBKC,,Grenfell Team,Grenfell Resources and Assets,,Dwf Llp ,1234046,,,,20/03/2020,2200084616,"22,000.50",,Legal Costs,,,,,,No
The Royal Borough of Kensington and Chelsea,RBKC,,Grenfell Team,Grenfell Resources and Assets,,Dwf Llp ,1234046,,,,20/03/2020,2200084617,"11,163.00",,Legal Costs,,,,,,No
The Royal Borough of Kensington and Chelsea,RBKC,,Grenfell Team,Grenfell Resources and Assets,,Dwf Llp ,1234046,,,,20/03/2020,2200084618,"21,998.21",,Legal Costs,,,,,,No
The Royal Borough of Kensington and Chelsea,RBKC,,Grenfell Team,Grenfell Resources and Assets,,Dwf Llp ,1234046,,,,20/03/2020,2200084647,"195,266.51",,Legal Costs,,,,,,No
The Royal Borough of Kensington and Chelsea,RBKC,,Grenfell Team,Grenfell Resources and Assets,,3Bm Ltd ,1232075,,,,21/01/2020,2200069674,"10,378.33",,Hired and Contracted Services,,,,,,No
The Royal Borough of Kensington and Chelsea,RBKC,,Grenfell Team,Grenfell Resources and Assets,,3Bm Ltd ,1232075,,,,11/02/2020,2200074480,"12,733.33",,Hired and Contracted Services,,,,,,No
The Royal Borough of Kensington and Chelsea,RBKC,,Grenfell Team,Grenfell Resources and Assets,,3Bm Ltd ,1232075,,,,05/03/2020,2200081044,"10,644.44",,Hired and Contracted Services,,,,,,No
The Royal Borough of Kensington and Chelsea,RBKC,,Grenfell Team,Grenfell Resources and Assets,,3Bm Ltd ,1232075,,,,30/03/2020,2200086530,"11,975.00",,Hired and Contracted Services,,,,,,No
The Royal Borough of Kensington and Chelsea,RBKC,,Grenfell Team,Grenfell Resources and Assets,,Frankham Risk Management Services Ltd,1234584,,,,24/01/2020,2200070660,"4,230.60",,Planned repairs and maintenance : Other,,,,,,No
The Royal Borough of Kensington and Chelsea,RBKC,,Grenfell Team,Grenfell Resources and Assets,,Gerda Security Products Ltd ,1234642,,,,04/03/2020,2200080879,"5,940.70",,Building Maintenace and Improvement :E12,,,,,,No
The Royal Borough of Kensington and Chelsea,RBKC,,Grenfell Team,Grenfell Site Management Team,,London Fire & Emergency Planning Authority,1234930,,,,17/02/2020,2200077033,"3,359.37",,Creditors Control : AP GRIR,,,,,,No
The Royal Borough of Kensington and Chelsea,RBKC,,Grenfell Team,Grenfell Site Management Team,,Public Health England ,1230815,,,,03/02/2020,2200072605,"20,598.00",,Hired and Contracted Services,,,,,,No
The Royal Borough of Kensington and Chelsea,RBKC,,Grenfell Team,Grenfell Site Management Team,,Public Health England ,1230815,,,,03/02/2020,2200072606,"20,912.82",,Hired and Contracted Services,,,,,,No
The Royal Borough of Kensington and Chelsea,RBKC,,Grenfell Team,Grenfell Site Management Team,,Public Health England ,1230815,,,,07/02/2020,2200073925,"13,367.00",,Creditors Control : AP GRIR,,,,,,No
The Royal Borough of Kensington and Chelsea,RBKC,,Grenfell Team,Grenfell Resources and Assets,,Redact Details,D000000023,,,,20/01/2020,3110149488,"2,754.00",,Hired and Contracted Services,,,,,,No
The Royal Borough of Kensington and Chelsea,RBKC,,Grenfell Team,Grenfell Resources and Assets,,Redact Details,D000000023,,,,24/03/2020,3110173061,"1,524.00",,Hired and Contracted Services,,,,,,No
The Royal Borough of Kensington and Chelsea,RBKC,,Grenfell Team,Grenfell Resources and Assets,,Redact Details,D000000023,,,,31/03/2020,3110176323,912,,Hired and Contracted Services,,,,,,No
The Royal Borough of Kensington and Chelsea,RBKC,,Grenfell Team,Grenfell Care & Support Assistant Dirctr,,Humankind Charity,1262842,,,,05/02/2020,2200073450,"16,285.00",,Hired and Contracted Services,,,,,,No
The Royal Borough of Kensington and Chelsea,RBKC,,Resources & Assets,Corporate Items,,Browne Jacobson Llp ,1232992,,,,20/01/2020,2200069530,"2,199.00",,Creditors Control : AP GRIR,,,,,,No
The Royal Borough of Kensington and Chelsea,RBKC,,Resources & Assets,Corporate Items,,Redact Details,D000000026,,,,20/03/2020,3110172374,"35,000.00",,Insurance Claim Settlements,,,,,,No
The Royal Borough of Kensington and Chelsea,RBKC,,Grenfell Team,Grenell Commissioning,,A Hall Maintenance ,1232090,,,,04/02/2020,2200073071,"4,587.00",,Building Maintenace and Improvement :E12,,,,,,No
The Royal Borough of Kensington and Chelsea,RBKC,,Grenfell Team,Grenell Commissioning,,Bell Decorating & Building Ltd ,1232723,,,,15/01/2020,2200068911,"45,027.00",,Hired and Contracted Services,,,,,,No
The Royal Borough of Kensington and Chelsea,RBKC,,Grenfell Team,Grenell Commissioning,,Hays Specialist Recruitment Ltd ,1234704,,,,15/01/2020,2200068910,"1,500.00",,Recruitment Advertising,,,,,,No
The Royal Borough of Kensington and Chelsea,RBKC,,Grenfell Team,Grenell Commissioning,,Michael Page International Recruitment Ltd,1235002,,,,17/02/2020,2200077110,"1,147.60",,Agency Staff,,,,,,No
The Royal Borough of Kensington and Chelsea,RBKC,,Grenfell Team,Grenell Commissioning,,Michael Page International Recruitment Ltd,1235002,,,,17/02/2020,2200077112,"1,377.12",,Agency Staff,,,,,,No
The Royal Borough of Kensington and Chelsea,RBKC,,Grenfell Team,Grenell Commissioning,,Michael Page International Recruitment Ltd,1235002,,,,17/02/2020,2200077113,918.08,,Agency Staff,,,,,,No
The Royal Borough of Kensington and Chelsea,RBKC,,Grenfell Team,Grenell Commissioning,,Michael Page International Recruitment Ltd,1235002,,,,17/02/2020,2200077115,"1,147.60",,Agency Staff,,,,,,No
The Royal Borough of Kensington and Chelsea,RBKC,,Grenfell Team,Grenell Commissioning,,Michael Page International Recruitment Ltd,1235002,,,,17/02/2020,2200077116,"1,147.60",,Agency Staff,,,,,,No
The Royal Borough of Kensington and Chelsea,RBKC,,Grenfell Team,Grenell Commissioning,,Michael Page International Recruitment Ltd,1235002,,,,17/02/2020,2200077117,"1,147.60",,Agency Staff,,,,,,No
The Royal Borough of Kensington and Chelsea,RBKC,,Grenfell Team,Grenell Commissioning,,Michael Page International Recruitment Ltd,1235002,,,,17/02/2020,2200077120,"1,147.60",,Agency Staff,,,,,,No
The Royal Borough of Kensington and Chelsea,RBKC,,Grenfell Team,Grenell Commissioning,,Michael Page International Recruitment Ltd,1235002,,,,17/02/2020,2200077121,"1,147.60",,Agency Staff,,,,,,No
The Royal Borough of Kensington and Chelsea,RBKC,,Grenfell Team,Grenell Commissioning,,Michael Page International Recruitment Ltd,1235002,,,,17/02/2020,2200077123,"1,147.60",,Agency Staff,,,,,,No
The Royal Borough of Kensington and Chelsea,RBKC,,Grenfell Team,Grenell Commissioning,,Michael Page International Recruitment Ltd,1235002,,,,19/02/2020,2200077926,918.08,,Agency Staff,,,,,,No
The Royal Borough of Kensington and Chelsea,RBKC,,Grenfell Team,Grenell Commissioning,,Michael Page International Recruitment Ltd,1235002,,,,26/02/2020,2200079364,"1,147.60",,Agency Staff,,,,,,No
The Royal Borough of Kensington and Chelsea,RBKC,,Grenfell Team,Grenell Commissioning,,Michael Page International Recruitment Ltd,1235002,,,,03/03/2020,2200080448,"1,147.60",,Agency Staff,,,,,,No
The Royal Borough of Kensington and Chelsea,RBKC,,Grenfell Team,Grenell Commissioning,,Michael Page International Recruitment Ltd,1235002,,,,11/03/2020,2200082565,"1,147.60",,Agency Staff,,,,,,No
The Royal Borough of Kensington and Chelsea,RBKC,,Grenfell Team,Grenell Commissioning,,Osborn Associates Ltd,1262963,,,,21/02/2020,2200078330,"1,400.00",,Building Maintenace and Improvement :E12,,,,,,No
The Royal Borough of Kensington and Chelsea,RBKC,,Grenfell Team,Grenell Commissioning,,Osborn Associates Ltd,1262963,,,,21/02/2020,2200078331,"9,000.00",,Surveys,,,,,,No
The Royal Borough of Kensington and Chelsea,RBKC,,Grenfell Team,Grenell Commissioning,,Osborn Associates Ltd,1262963,,,,09/03/2020,2200081889,"6,275.00",,Building Maintenace and Improvement :E12,,,,,,No
The Royal Borough of Kensington and Chelsea,RBKC,,Grenfell Team,Grenell Commissioning,,Osborn Associates Ltd,1262963,,,,18/03/2020,2200084159,"27,100.00",,Building Maintenace and Improvement :E12,,,,,,No
The Royal Borough of Kensington and Chelsea,RBKC,,Grenfell Team,Grenell Commissioning,,Resourcing Group ,1235269,,,,22/01/2020,2200070027,"1,056.16",,Agency Staff,,,,,,No
The Royal Borough of Kensington and Chelsea,RBKC,,Grenfell Team,Grenell Commissioning,,Resourcing Group ,1235269,,,,22/01/2020,2200070028,"1,030.40",,Agency Staff,,,,,,No
The Royal Borough of Kensington and Chelsea,RBKC,,Grenfell Team,Grenell Commissioning,,Resourcing Group ,1235269,,,,22/01/2020,2200070030,"1,030.40",,Agency Staff,,,,,,No
The Royal Borough of Kensington and Chelsea,RBKC,,Grenfell Team,Grenell Commissioning,,Resourcing Group ,1235269,,,,22/01/2020,2200070032,"1,210.72",,Agency Staff,,,,,,No
The Royal Borough of Kensington and Chelsea,RBKC,,Grenfell Team,Grenell Commissioning,,Resourcing Group ,1235269,,,,22/01/2020,2200070033,"1,236.48",,Agency Staff,,,,,,No
The Royal Borough of Kensington and Chelsea,RBKC,,Grenfell Team,Grenell Commissioning,,Resourcing Group ,1235269,,,,22/01/2020,2200070035,"1,030.40",,Agency Staff,,,,,,No
The Royal Borough of Kensington and Chelsea,RBKC,,Grenfell Team,Grenell Commissioning,,Resourcing Group ,1235269,,,,22/01/2020,2200070036,"1,030.40",,Agency Staff,,,,,,No
The Royal Borough of Kensington and Chelsea,RBKC,,Grenfell Team,Grenell Commissioning,,Resourcing Group ,1235269,,,,22/01/2020,2200070037,"1,030.40",,Agency Staff,,,,,,No
The Royal Borough of Kensington and Chelsea,RBKC,,Grenfell Team,Grenell Commissioning,,Resourcing Group ,1235269,,,,22/01/2020,2200070041,"1,030.40",,Agency Staff,,,,,,No
The Royal Borough of Kensington and Chelsea,RBKC,,Grenfell Team,Grenell Commissioning,,Resourcing Group ,1235269,,,,27/01/2020,2200070913,"1,107.68",,Agency Staff,,,,,,No
The Royal Borough of Kensington and Chelsea,RBKC,,Grenfell Team,Grenell Commissioning,,Resourcing Group ,1235269,,,,27/01/2020,2200070914,"1,081.92",,Agency Staff,,,,,,No
The Royal Borough of Kensington and Chelsea,RBKC,,Grenfell Team,Grenell Commissioning,,Resourcing Group ,1235269,,,,13/02/2020,2200075947,"1,081.92",,Agency Staff,,,,,,No
The Royal Borough of Kensington and Chelsea,RBKC,,Grenfell Team,Grenell Commissioning,,Resourcing Group ,1235269,,,,13/02/2020,2200075949,"1,030.40",,Agency Staff,,,,,,No
The Royal Borough of Kensington and Chelsea,RBKC,,Grenfell Team,Grenell Commissioning,,Resourcing Group ,1235269,,,,13/02/2020,2200075954,"1,107.68",,Agency Staff,,,,,,No
The Royal Borough of Kensington and Chelsea,RBKC,,Grenfell Team,Grenell Commissioning,,Resourcing Group ,1235269,,,,13/02/2020,2200075958,"1,030.40",,Agency Staff,,,,,,No
The Royal Borough of Kensington and Chelsea,RBKC,,Grenfell Team,Grenell Commissioning,,Resourcing Group ,1235269,,,,17/02/2020,2200077141,"1,030.40",,Agency Staff,,,,,,No
The Royal Borough of Kensington and Chelsea,RBKC,,Grenfell Team,Grenell Commissioning,,Resourcing Group ,1235269,,,,26/02/2020,2200079374,"1,107.68",,Agency Staff,,,,,,No
The Royal Borough of Kensington and Chelsea,RBKC,,Grenfell Team,Grenell Commissioning,,Resourcing Group ,1235269,,,,04/03/2020,2200080706,"1,332.48",,Agency Staff,,,,,,No
The Royal Borough of Kensington and Chelsea,RBKC,,Grenfell Team,Grenell Commissioning,,Resourcing Group ,1235269,,,,04/03/2020,2200080707,"1,110.40",,Agency Staff,,,,,,No
The Royal Borough of Kensington and Chelsea,RBKC,,Grenfell Team,Grenell Commissioning,,Resourcing Group ,1235269,,,,04/03/2020,2200080709,"1,030.40",,Agency Staff,,,,,,No
The Royal Borough of Kensington and Chelsea,RBKC,,Grenfell Team,Grenell Commissioning,,Resourcing Group ,1235269,,,,04/03/2020,2200080710,"1,210.72",,Agency Staff,,,,,,No
The Royal Borough of Kensington and Chelsea,RBKC,,Grenfell Team,Grenell Commissioning,,Resourcing Group ,1235269,,,,04/03/2020,2200080712,888.32,,Agency Staff,,,,,,No
The Royal Borough of Kensington and Chelsea,RBKC,,Grenfell Team,Grenell Commissioning,,Resourcing Group ,1235269,,,,04/03/2020,2200080713,"1,110.40",,Agency Staff,,,,,,No
The Royal Borough of Kensington and Chelsea,RBKC,,Grenfell Team,Grenell Commissioning,,Resourcing Group ,1235269,,,,04/03/2020,2200080717,"1,332.48",,Agency Staff,,,,,,No
The Royal Borough of Kensington and Chelsea,RBKC,,Grenfell Team,Grenell Commissioning,,Resourcing Group ,1235269,,,,04/03/2020,2200080718,888.32,,Agency Staff,,,,,,No
The Royal Borough of Kensington and Chelsea,RBKC,,Grenfell Team,Grenell Commissioning,,Resourcing Group ,1235269,,,,04/03/2020,2200080720,"1,110.40",,Agency Staff,,,,,,No
The Royal Borough of Kensington and Chelsea,RBKC,,Grenfell Team,Grenell Commissioning,,Resourcing Group ,1235269,,,,10/03/2020,2200082360,"1,110.40",,Agency Staff,,,,,,No
The Royal Borough of Kensington and Chelsea,RBKC,,Grenfell Team,Grenell Commissioning,,Resourcing Group ,1235269,,,,10/03/2020,2200082363,"1,081.92",,Agency Staff,,,,,,No
The Royal Borough of Kensington and Chelsea,RBKC,,Grenfell Team,Grenell Commissioning,,Resourcing Group ,1235269,,,,10/03/2020,2200082369,"1,332.48",,Agency Staff,,,,,,No
The Royal Borough of Kensington and Chelsea,RBKC,,Grenfell Team,Grenell Commissioning,,Resourcing Group ,1235269,,,,10/03/2020,2200082375,"1,110.40",,Agency Staff,,,,,,No
The Royal Borough of Kensington and Chelsea,RBKC,,Grenfell Team,Grenell Commissioning,,Resourcing Group ,1235269,,,,10/03/2020,2200082377,"1,030.40",,Agency Staff,,,,,,No
The Royal Borough of Kensington and Chelsea,RBKC,,Grenfell Team,Grenell Commissioning,,Resourcing Group ,1235269,,,,11/03/2020,2200082563,"1,030.40",,Agency Staff,,,,,,No
The Royal Borough of Kensington and Chelsea,RBKC,,Grenfell Team,Grenell Commissioning,,Resourcing Group ,1235269,,,,11/03/2020,2200082564,824.32,,Agency Staff,,,,,,No
The Royal Borough of Kensington and Chelsea,RBKC,,Grenfell Team,Grenell Commissioning,,Skilled Careers Limited,1265647,,,,24/01/2020,2200070761,"5,275.68",,Agency Staff,,,,,,No
The Royal Borough of Kensington and Chelsea,RBKC,,Grenfell Team,Grenell Commissioning,,Skilled Careers Limited,1265647,,,,31/01/2020,2200072353,"3,870.40",,Agency Staff,,,,,,No
The Royal Borough of Kensington and Chelsea,RBKC,,Grenfell Team,Grenell Commissioning,,Skilled Careers Limited,1265647,,,,17/02/2020,2200077131,"1,048.00",,Agency Staff,,,,,,No
The Royal Borough of Kensington and Chelsea,RBKC,,Grenfell Team,Grenell Commissioning,,Skilled Careers Limited,1265647,,,,17/02/2020,2200077132,"1,048.00",,Agency Staff,,,,,,No
The Royal Borough of Kensington and Chelsea,RBKC,,Grenfell Team,Grenell Commissioning,,Skilled Careers Limited,1265647,,,,17/02/2020,2200077133,979.4,,Agency Staff,,,,,,No
The Royal Borough of Kensington and Chelsea,RBKC,,Grenfell Team,Grenell Commissioning,,Skilled Careers Limited,1265647,,,,17/02/2020,2200077134,"1,233.60",,Agency Staff,,,,,,No
The Royal Borough of Kensington and Chelsea,RBKC,,Grenfell Team,Grenell Commissioning,,Skilled Careers Limited,1265647,,,,17/02/2020,2200077135,"1,234.80",,Agency Staff,,,,,,No
The Royal Borough of Kensington and Chelsea,RBKC,,Grenfell Team,Grenell Commissioning,,Skilled Careers Limited,1265647,,,,17/02/2020,2200077136,"1,257.60",,Agency Staff,,,,,,No
The Royal Borough of Kensington and Chelsea,RBKC,,Grenfell Team,Grenell Commissioning,,Skilled Careers Limited,1265647,,,,17/02/2020,2200077137,"1,048.00",,Agency Staff,,,,,,No
The Royal Borough of Kensington and Chelsea,RBKC,,Grenfell Team,Grenell Commissioning,,Skilled Careers Limited,1265647,,,,17/02/2020,2200077140,"1,402.00",,Agency Staff,,,,,,No
The Royal Borough of Kensington and Chelsea,RBKC,,Grenfell Team,Grenell Commissioning,,Skilled Careers Limited,1265647,,,,20/02/2020,2200078103,838.4,,Agency Staff,,,,,,No
The Royal Borough of Kensington and Chelsea,RBKC,,Grenfell Team,Grenell Commissioning,,Skilled Careers Limited,1265647,,,,20/02/2020,2200078104,"1,472.10",,Agency Staff,,,,,,No
The Royal Borough of Kensington and Chelsea,RBKC,,Grenfell Team,Grenell Commissioning,,Skilled Careers Limited,1265647,,,,20/02/2020,2200078105,"1,048.00",,Agency Staff,,,,,,No
The Royal Borough of Kensington and Chelsea,RBKC,,Grenfell Team,Grenell Commissioning,,Skilled Careers Limited,1265647,,,,20/02/2020,2200078106,971.46,,Agency Staff,,,,,,No
The Royal Borough of Kensington and Chelsea,RBKC,,Grenfell Team,Grenell Commissioning,,Skilled Careers Limited,1265647,,,,20/02/2020,2200078108,"1,257.60",,Agency Staff,,,,,,No
The Royal Borough of Kensington and Chelsea,RBKC,,Grenfell Team,Grenell Commissioning,,Skilled Careers Limited,1265647,,,,20/02/2020,2200078110,838.4,,Agency Staff,,,,,,No
The Royal Borough of Kensington and Chelsea,RBKC,,Grenfell Team,Grenell Commissioning,,Skilled Careers Limited,1265647,,,,20/02/2020,2200078111,"1,358.28",,Agency Staff,,,,,,No
The Royal Borough of Kensington and Chelsea,RBKC,,Grenfell Team,Grenell Commissioning,,Skilled Careers Limited,1265647,,,,20/02/2020,2200078112,"1,048.00",,Agency Staff,,,,,,No
The Royal Borough of Kensington and Chelsea,RBKC,,Grenfell Team,Grenell Commissioning,,Skilled Careers Limited,1265647,,,,20/02/2020,2200078113,"1,048.00",,Agency Staff,,,,,,No
The Royal Borough of Kensington and Chelsea,RBKC,,Grenfell Team,Grenell Commissioning,,Skilled Careers Limited,1265647,,,,20/02/2020,2200078115,"1,048.00",,Agency Staff,,,,,,No
The Royal Borough of Kensington and Chelsea,RBKC,,Grenfell Team,Grenell Commissioning,,Skilled Careers Limited,1265647,,,,20/02/2020,2200078116,"1,048.00",,Agency Staff,,,,,,No
The Royal Borough of Kensington and Chelsea,RBKC,,Grenfell Team,Grenell Commissioning,,Skilled Careers Limited,1265647,,,,20/02/2020,2200078117,838.4,,Agency Staff,,,,,,No
The Royal Borough of Kensington and Chelsea,RBKC,,Grenfell Team,Grenell Commissioning,,Skilled Careers Limited,1265647,,,,20/02/2020,2200078119,"1,048.00",,Agency Staff,,,,,,No
The Royal Borough of Kensington and Chelsea,RBKC,,Grenfell Team,Grenell Commissioning,,Skilled Careers Limited,1265647,,,,20/02/2020,2200078120,"1,048.00",,Agency Staff,,,,,,No
The Royal Borough of Kensington and Chelsea,RBKC,,Grenfell Team,Grenell Commissioning,,Skilled Careers Limited,1265647,,,,20/02/2020,2200078121,"1,048.00",,Agency Staff,,,,,,No
The Royal Borough of Kensington and Chelsea,RBKC,,Grenfell Team,Grenell Commissioning,,Skilled Careers Limited,1265647,,,,20/02/2020,2200078122,"1,257.60",,Agency Staff,,,,,,No
The Royal Borough of Kensington and Chelsea,RBKC,,Grenfell Team,Grenell Commissioning,,Skilled Careers Limited,1265647,,,,20/02/2020,2200078124,"1,121.60",,Agency Staff,,,,,,No
The Royal Borough of Kensington and Chelsea,RBKC,,Grenfell Team,Grenell Commissioning,,Skilled Careers Limited,1265647,,,,20/02/2020,2200078125,"1,233.60",,Agency Staff,,,,,,No
The Royal Borough of Kensington and Chelsea,RBKC,,Grenfell Team,Grenell Commissioning,,Skilled Careers Limited,1265647,,,,20/02/2020,2200078126,838.4,,Agency Staff,,,,,,No
The Royal Borough of Kensington and Chelsea,RBKC,,Grenfell Team,Grenell Commissioning,,Skilled Careers Limited,1265647,,,,20/02/2020,2200078127,"1,048.00",,Agency Staff,,,,,,No
The Royal Borough of Kensington and Chelsea,RBKC,,Grenfell Team,Grenell Commissioning,,Skilled Careers Limited,1265647,,,,20/02/2020,2200078128,"1,234.80",,Agency Staff,,,,,,No
The Royal Borough of Kensington and Chelsea,RBKC,,Grenfell Team,Grenell Commissioning,,Skilled Careers Limited,1265647,,,,27/02/2020,2200079525,"1,402.00",,Agency Staff,,,,,,No
The Royal Borough of Kensington and Chelsea,RBKC,,Grenfell Team,Grenell Commissioning,,Skilled Careers Limited,1265647,,,,27/02/2020,2200079554,"1,234.80",,Agency Staff,,,,,,No
The Royal Borough of Kensington and Chelsea,RBKC,,Grenfell Team,Grenell Commissioning,,Skilled Careers Limited,1265647,,,,27/02/2020,2200079555,"1,048.00",,Agency Staff,,,,,,No
The Royal Borough of Kensington and Chelsea,RBKC,,Grenfell Team,Grenell Commissioning,,Skilled Careers Limited,1265647,,,,27/02/2020,2200079557,"1,233.60",,Agency Staff,,,,,,No
The Royal Borough of Kensington and Chelsea,RBKC,,Grenfell Team,Grenell Commissioning,,Skilled Careers Limited,1265647,,,,27/02/2020,2200079559,"1,257.60",,Agency Staff,,,,,,No
The Royal Borough of Kensington and Chelsea,RBKC,,Grenfell Team,Grenell Commissioning,,Skilled Careers Limited,1265647,,,,27/02/2020,2200079561,"1,048.00",,Agency Staff,,,,,,No
The Royal Borough of Kensington and Chelsea,RBKC,,Grenfell Team,Grenell Commissioning,,Skilled Careers Limited,1265647,,,,05/03/2020,2200081114,890.8,,Agency Staff,,,,,,No
The Royal Borough of Kensington and Chelsea,RBKC,,Grenfell Team,Grenell Commissioning,,Skilled Careers Limited,1265647,,,,05/03/2020,2200081115,"1,048.00",,Agency Staff,,,,,,No
The Royal Borough of Kensington and Chelsea,RBKC,,Grenfell Team,Grenell Commissioning,,Skilled Careers Limited,1265647,,,,05/03/2020,2200081117,"1,233.60",,Agency Staff,,,,,,No
The Royal Borough of Kensington and Chelsea,RBKC,,Grenfell Team,Grenell Commissioning,,Skilled Careers Limited,1265647,,,,05/03/2020,2200081120,"1,402.00",,Agency Staff,,,,,,No
The Royal Borough of Kensington and Chelsea,RBKC,,Grenfell Team,Grenell Commissioning,,Skilled Careers Limited,1265647,,,,05/03/2020,2200081121,"1,234.80",,Agency Staff,,,,,,No
The Royal Borough of Kensington and Chelsea,RBKC,,Grenfell Team,Grenell Commissioning,,Skilled Careers Limited,1265647,,,,20/03/2020,2200084548,"1,257.60",,Agency Staff,,,,,,No
The Royal Borough of Kensington and Chelsea,RBKC,,Grenfell Team,Grenell Commissioning,,Skilled Careers Limited,1265647,,,,20/03/2020,2200084550,"1,402.00",,Agency Staff,,,,,,No
The Royal Borough of Kensington and Chelsea,RBKC,,Grenfell Team,Grenell Commissioning,,Skilled Careers Limited,1265647,,,,20/03/2020,2200084551,"1,202.76",,Agency Staff,,,,,,No
The Royal Borough of Kensington and Chelsea,RBKC,,Grenfell Team,Grenell Commissioning,,Skilled Careers Limited,1265647,,,,20/03/2020,2200084554,"1,234.80",,Agency Staff,,,,,,No
The Royal Borough of Kensington and Chelsea,RBKC,,Grenfell Team,Grenell Commissioning,,Skilled Careers Limited,1265647,,,,20/03/2020,2200084555,"1,048.00",,Agency Staff,,,,,,No
The Royal Borough of Kensington and Chelsea,RBKC,,Grenfell Team,Grenell Commissioning,,Skilled Careers Limited,1265647,,,,20/03/2020,2200084570,"1,048.00",,Agency Staff,,,,,,No
The Royal Borough of Kensington and Chelsea,RBKC,,Grenfell Team,Grenell Commissioning,,Skilled Careers Limited,1265647,,,,20/03/2020,2200084571,"1,048.00",,Agency Staff,,,,,,No
The Royal Borough of Kensington and Chelsea,RBKC,,Grenfell Team,Grenell Commissioning,,Skilled Careers Limited,1265647,,,,20/03/2020,2200084574,"1,402.00",,Agency Staff,,,,,,No
The Royal Borough of Kensington and Chelsea,RBKC,,Grenfell Team,Grenell Commissioning,,Skilled Careers Limited,1265647,,,,20/03/2020,2200084575,"1,233.60",,Agency Staff,,,,,,No
The Royal Borough of Kensington and Chelsea,RBKC,,Grenfell Team,Grenell Commissioning,,Skilled Careers Limited,1265647,,,,20/03/2020,2200084576,"1,100.40",,Agency Staff,,,,,,No
The Royal Borough of Kensington and Chelsea,RBKC,,Grenfell Team,Grenell Commissioning,,Skilled Careers Limited,1265647,,,,20/03/2020,2200084577,"1,234.80",,Agency Staff,,,,,,No
The Royal Borough of Kensington and Chelsea,RBKC,,Grenfell Team,Grenell Commissioning,,Skilled Careers Limited,1265647,,,,27/03/2020,2200086213,"1,349.43",,Agency Staff,,,,,,No
The Royal Borough of Kensington and Chelsea,RBKC,,Grenfell Team,Grenell Commissioning,,Skilled Careers Limited,1265647,,,,27/03/2020,2200086214,"1,048.00",,Agency Staff,,,,,,No
The Royal Borough of Kensington and Chelsea,RBKC,,Grenfell Team,Grenell Commissioning,,Skilled Careers Limited,1265647,,,,27/03/2020,2200086215,"1,257.60",,Agency Staff,,,,,,No
The Royal Borough of Kensington and Chelsea,RBKC,,Grenfell Team,Grenell Commissioning,,Skilled Careers Limited,1265647,,,,27/03/2020,2200086218,"1,234.80",,Agency Staff,,,,,,No
The Royal Borough of Kensington and Chelsea,RBKC,,Grenfell Team,Grenell Commissioning,,Skilled Careers Limited,1265647,,,,27/03/2020,2200086219,"1,187.34",,Agency Staff,,,,,,No
The Royal Borough of Kensington and Chelsea,RBKC,,Grenfell Team,Grenell Commissioning,,Surefire Services Limited,1263781,,,,11/03/2020,2200082593,"2,297.00",,Acquisition of land and existing buildings :CE01,,,,,,No
The Royal Borough of Kensington and Chelsea,RBKC,,Grenfell Team,Grenfell Housing Needs and Supply,,Millennium & Copthorne Hotels ,1235015,,,,24/02/2020,2200078647,"17,978.50",,Creditors Control : AP GRIR,,,,,,No
The Royal Borough of Kensington and Chelsea,RBKC,,Grenfell Team,Grenfell Housing Needs and Supply,,Millennium & Copthorne Hotels ,1235015,,,,25/02/2020,2200078887,993.07,,Creditors Control : AP GRIR,,,,,,No
The Royal Borough of Kensington and Chelsea,RBKC,,Grenfell Team,Grenfell Housing Needs and Supply,,Millennium & Copthorne Hotels ,1235015,,,,25/02/2020,2200078887,"14,002.08",,Creditors Control : AP GRIR,,,,,,No
The Royal Borough of Kensington and Chelsea,RBKC,,Grenfell Team,Grenfell Housing Needs and Supply,,Millennium & Copthorne Hotels ,1235015,,,,25/02/2020,2200078907,"15,006.70",,Creditors Control : AP GRIR,,,,,,No
The Royal Borough of Kensington and Chelsea,RBKC,,Grenfell Team,Grenfell Housing Needs and Supply,,Millennium & Copthorne Hotels ,1235015,,,,25/02/2020,2200078908,"6,763.37",,Creditors Control : AP GRIR,,,,,,No
The Royal Borough of Kensington and Chelsea,RBKC,,Grenfell Team,Grenfell Housing Needs and Supply,,Millennium & Copthorne Hotels ,1235015,,,,25/02/2020,2200078915,"8,609.87",,Creditors Control : AP GRIR,,,,,,No
The Royal Borough of Kensington and Chelsea,RBKC,,Grenfell Team,Grenfell Housing Needs and Supply,,Redefine Earls Court Management Ltd T/A Holiday Inn Express London,1231244,,,,22/01/2020,2200070104,"1,258.33",,Temporary Accommodation,,,,,,No
The Royal Borough of Kensington and Chelsea,RBKC,,Grenfell Team,Grenfell Housing Needs and Supply,,Redefine Earls Court Management Ltd T/A Holiday Inn Express London,1231244,,,,28/01/2020,2200071388,"1,858.33",,Temporary Accommodation,,,,,,No
The Royal Borough of Kensington and Chelsea,RBKC,,Grenfell Team,Grenfell Housing Needs and Supply,,Redefine Earls Court Management Ltd T/A Holiday Inn Express London,1231244,,,,05/02/2020,2200073233,"1,435.67",,Temporary Accommodation,,,,,,No
The Royal Borough of Kensington and Chelsea,RBKC,,Grenfell Team,Grenfell Housing Needs and Supply,,Redefine Earls Court Management Ltd T/A Holiday Inn Express London,1231244,,,,18/02/2020,2200077653,"1,611.67",,Temporary Accommodation,,,,,,No
The Royal Borough of Kensington and Chelsea,RBKC,,Grenfell Team,Grenfell Housing Needs and Supply,,Redact Details,1235698,,,,21/01/2020,3110151533,"12,000.00",,Temporary Accommodation,,,,,,No
The Royal Borough of Kensington and Chelsea,RBKC,,Grenfell Team,Grenfell Housing Needs and Supply,,Anscombe & Ringland The Chancellors Group of Estate Agents,1232406,,,,02/01/2020,3110144512,"3,800.00",,Temporary Accommodation,,,,,,No
The Royal Borough of Kensington and Chelsea,RBKC,,Grenfell Team,Grenfell Housing Needs and Supply,,Anscombe & Ringland The Chancellors Group of Estate Agents,1232406,,,,03/02/2020,3110154154,"3,800.00",,Temporary Accommodation,,,,,,No
The Royal Borough of Kensington and Chelsea,RBKC,,Grenfell Team,Grenfell Housing Needs and Supply,,Anscombe & Ringland The Chancellors Group of Estate Agents,1232406,,,,02/03/2020,3110163886,"3,800.00",,Temporary Accommodation,,,,,,No
The Royal Borough of Kensington and Chelsea,RBKC,,Grenfell Team,Grenfell Housing Needs and Supply,,Redact Details,1232718,,,,07/01/2020,3110146921,"2,145.00",,Temporary Accommodation,,,,,,No
The Royal Borough of Kensington and Chelsea,RBKC,,Grenfell Team,Grenfell Housing Needs and Supply,,Redact Details,1232718,,,,09/01/2020,3110147856,"2,145.00",,Temporary Accommodation,,,,,,No
The Royal Borough of Kensington and Chelsea,RBKC,,Grenfell Team,Grenfell Housing Needs and Supply,,Redact Details,1232718,,,,06/02/2020,3110156744,"2,145.00",,Temporary Accommodation,,,,,,No
The Royal Borough of Kensington and Chelsea,RBKC,,Grenfell Team,Grenfell Housing Needs and Supply,,Redact Details,1232718,,,,11/02/2020,3110158120,"2,145.00",,Temporary Accommodation,,,,,,No
The Royal Borough of Kensington and Chelsea,RBKC,,Grenfell Team,Grenfell Housing Needs and Supply,,Redact Details,1232718,,,,04/03/2020,3110166415,"2,145.00",,Temporary Accommodation,,,,,,No
The Royal Borough of Kensington and Chelsea,RBKC,,Grenfell Team,Grenfell Housing Needs and Supply,,Redact Details,1232718,,,,10/03/2020,3110167900,"2,145.00",,Temporary Accommodation,,,,,,No
The Royal Borough of Kensington and Chelsea,RBKC,,Grenfell Team,Grenfell Housing Needs and Supply,,Chesterton Global Ltd ,1233351,,,,28/01/2020,3110153692,"2,331.87",,Temporary Accommodation,,,,,,No
The Royal Borough of Kensington and Chelsea,RBKC,,Grenfell Team,Grenfell Housing Needs and Supply,,Chesterton Global Ltd ,1233351,,,,25/02/2020,3110163030,"2,331.87",,Temporary Accommodation,,,,,,No
The Royal Borough of Kensington and Chelsea,RBKC,,Grenfell Team,Grenfell Housing Needs and Supply,,Chesterton Global Ltd ,1233351,,,,26/03/2020,3110173809,"2,331.87",,Temporary Accommodation,,,,,,No
The Royal Borough of Kensington and Chelsea,RBKC,,Grenfell Team,Grenfell Housing Needs and Supply,,Redact Details,1235759,,,,08/01/2020,3110147616,"2,175.25",,Temporary Accommodation,,,,,,No
The Royal Borough of Kensington and Chelsea,RBKC,,Grenfell Team,Grenfell Housing Needs and Supply,,Redact Details,1235759,,,,10/02/2020,3110157276,"2,175.25",,Temporary Accommodation,,,,,,No
The Royal Borough of Kensington and Chelsea,RBKC,,Grenfell Team,Grenfell Housing Needs and Supply,,Redact Details,1235759,,,,10/03/2020,3110167896,"2,175.25",,Temporary Accommodation,,,,,,No
The Royal Borough of Kensington and Chelsea,RBKC,,Grenfell Team,Grenfell Housing Needs and Supply,,Countrywide Residential Lettings Ltd (Nottingham),1233694,,,,07/01/2020,3110146924,"5,525.00",,Temporary Accommodation,,,,,,No
The Royal Borough of Kensington and Chelsea,RBKC,,Grenfell Team,Grenfell Housing Needs and Supply,,Countrywide Residential Lettings Ltd (Nottingham),1233694,,,,28/01/2020,3110153694,"4,469.17",,Temporary Accommodation,,,,,,No
The Royal Borough of Kensington and Chelsea,RBKC,,Grenfell Team,Grenfell Housing Needs and Supply,,Countrywide Residential Lettings Ltd (Nottingham),1233694,,,,30/01/2020,3110153914,"2,708.33",,Temporary Accommodation,,,,,,No
